{"text_format":"1","workbook":"xlsx","n_sheets":23,"sheets":["AIX-MARSEILLE","AMIENS","BORDEAUX","BOURGOGNE FRANCHE COMTE","CLERMONT FERRAND","CRETEIL","PARIS","GRENOBLE","LILLE","LIMOGES","LORRAINE","LYON","MONTPELLIER","NANTES","NICE-TOULON","Normandie","ORLEANS TOURS","POITIERS","REIMS","RENNES-BRETAGNE","STRASBOURG","TOULOUSE","VERSAILLES"],"not_rendered":{"charts":0,"images":0,"macros":1,"external_links":0,"defined_names":0,"comments":0,"pivot_tables":0},"unopened":[],"bounds":{"document_bytes":16777216,"sheet_cells":100000,"rows_first":2000,"rows_last":500,"rows_between":2000,"halvings":0,"cell_chars":16384,"cell_head_chars":4096},"cells_cut":0,"cells_raw":0,"read":"whole","date_system":"1900"}

{"sheet":"AIX-MARSEILLE","index":0,"n_rows":54,"n_cols":13,"rows_kept":54,"cut":false,"hidden":false,"merged":[]}
[]
[]
["Etablissement","NB Chb","Dispo (resp. SC) (%)","Dispo (toutes resp) (%)","LatMax (ms)","BPMin (Mb/s)","BPMoy (Mb/s)","BPMin 19h-23h (Mb/s)","BPMoy 19h-23h (Mb/s)","Nb de Chb fibrées","Nb de Chb en cours de fibrage"]
["CROUS AIX-MARSEILLE",{"$f":"SUM(B8:B54)","v":10373},{"$f":"SUMPRODUCT(B8:B54,C8:C54)/SUM(B8:B54)","v":99.923014557023052},{"$f":"SUMPRODUCT(B8:B54,D8:D54)/SUM(B8:B54)","v":99.786683698062276},{"$f":"SUMPRODUCT(B8:B54,E8:E54)/SUM(B8:B54)","v":17.809023426202643},{"$f":"SUMPRODUCT(B8:B54,F8:F54)/SUM(B8:B54)","v":163.05053504289981},{"$f":"SUMPRODUCT(B8:B54,G8:G54)/SUM(B8:B54)","v":198.08686011761307},{"$f":"SUMPRODUCT(B8:B54,H8:H54)/SUM(B8:B54)","v":145.57737395160513},{"$f":"SUMPRODUCT(B8:B54,I8:I54)/SUM(B8:B54)","v":175.00452135351398},{"$f":"SUMIFS(B8:B54,K8:K54,\"=Fibre\")","v":10037},{"$f":"SUMIFS(B8:B54,K8:K54,\"=Fibrage en cours\")","v":0}]
["","","","","","","","","",{"$f":"J4/B4","v":0.96760821363154348},{"$f":"K4/B4","v":0}]
[]
["Résidence","NB Chb","Dispo (resp. SC) (%)","Dispo (toutes resp) (%)","LatMax (ms)","BPMin (Mb/s)","BPMoy (Mb/s)","BPMin 19h-23h (Mb/s)","BPMoy 19h-23h (Mb/s)","Hors GTR","Collecte","Type de service","Remarques"]
["Canada",98,100,99.96,19,73.900000000000006,88.1,63.7,78,0,"Fibre","SmartCampus","Le 14/06/21 / responsabilité SmartCampus / Site injoignable / durée  : 0.0 heure(s) : Site injoignable / service Wifirst totalement indisponible\nDiagnostic : Les équipements Wifirst sont injoignables ou les services Wifirst ne sont plus opérationnels\nPérimètre : l’ensemble du site\nImpact : Service interrompu \nRésultat : Action(s) réalisée(s) :\nCommentaire :"]
["Chabran",53,100,100,19,80.7,87.1,75.599999999999994,83.8,0,"Fibre","SmartCampus",""]
["Chatenoud 1 et 2",237,100,100,17,136.30000000000001,173.5,114.4,149.4,0,"Fibre","SmartCampus",""]
["Chatenoud 3",133,100,100,19,112.2,128.5,102,119.3,0,"Fibre","SmartCampus",""]
["Chatenoud Studios SC",240,100,100,20,162.9,186.3,156.1,169.7,0,"Fibre","SmartCampus",""]
["Cité Arc de Meyran",409,100,99.98,16,253.6,313.3,220.8,271.7,0,"Fibre","SmartCampus","Le 09/06/21 / responsabilité SmartCampus / Site injoignable / durée  : 0.0 heure(s) : Site injoignable\n                          Diagnostic : aucun équipement n'est joignable sur le site\n                          Périmètre de l'incident : l'ensemble du site.\n                          Impact de l'incident : coupure du service\n                          Le site a-t-il été informé? non\n\n                          Alerte Kiwi \"#21449028\" ouverte le 09/06/2021 à 19:24\n                          Ouverture de l'incident suite à une réouverture de l'alerte Last Seen à 09/06/2021 à 19:32\n \nRésultat : Le service est rétabli sur le site Cité Arc de Meyran\n                          suite à la prise en charge de l'incident par nos équipes.\n"]
["Cité des Gazelles - Pav1 Pav2 Pav3 Pav4",300,100,100,13,172.6,209.3,165.9,187.4,0,"Fibre","SmartCampus",""]
["Cité des Gazelles - Pav5 Pav6",351,100,100,16,204,252.1,180,220.3,0,"Fibre","SmartCampus",""]
["Cité des Gazelles - Pav7 Pav8",401,100,100,18,281.8,300,275,289.3,0,"Fibre","SmartCampus",""]
["Cité Internationale de Cuques",387,100,100,11,127.7,193.4,84,146.6,0,"Fibre","SmartCampus",""]
["Cuques P1",322,100,100,14,153.69999999999999,196.5,130.80000000000001,171.8,0,"Fibre","SmartCampus",""]
["Cuques P2",338,100,99.96,14,177.2,214.7,160.9,190.8,0,"Fibre","SmartCampus","Le 19/06/21 / responsabilité SmartCampus / Site injoignable / durée  : 0.0 heure(s) : Site injoignable\n                          Diagnostic : aucun équipement n'est joignable sur le site\n                          Périmètre de l'incident : l'ensemble du site.\n                          Impact de l'incident : coupure du service\n                          Le site a-t-il été informé? non\n\n                          Alerte Kiwi \"#21449515\" ouverte le 19/06/2021 à 13:38\n                          \n \nRésultat : Le service est rétabli sur le site Cuques\n                          suite à la prise en charge de l'incident par nos équipes.\n"]
["Cuques P3",319,100,100,14,139.19999999999999,156.30000000000001,132.6,147.80000000000001,0,"Fibre","SmartCampus",""]
["Cuques P4",321,100,100,14,143,159.5,138,152.9,0,"Fibre","SmartCampus",""]
["Delormes",595,100,100,15,357,454.5,305.60000000000002,382.9,0,"Fibre","PlanetCampus",""]
["Dos Felibre",200,100,100,22,105.7,152.80000000000001,88.5,124.8,0,"Fibre","PlanetCampus",""]
["Estelan bat G & F",499,100,100,17,284.3,330.2,276.3,300.2,0,"Fibre","SmartCampus",""]
["Estelan Les Abeilles",71,100,100,15,49.9,71.400000000000006,42,58,0,"Fibre","SmartCampus",""]
["Fenouillères",100,100,100,37,58.6,78.900000000000006,51.3,68.2,0,"Fibre","SmartCampus",""]
["Galinat",312,100,99.49,18,227.5,230.8,225.7,229.9,0,"Fibre","SmartCampus","Le 10/06/21 / responsabilité SmartCampus / Site injoignable / durée  : 2.0 heure(s) : Site injoignable\n                          Diagnostic : aucun équipement n'est joignable sur le site\n                          Périmètre de l'incident : l'ensemble du site.\n                          Impact de l'incident : coupure du service\n                          Le site a-t-il été informé? non\n\n                          Alerte Kiwi \"#21449115\" ouverte le 10/06/2021 à 12:58\n                          \n \nRésultat : Le service est rétabli sur le site Galinat\n                          suite à la prise en charge de l'incident par nos équipes.\n\n\nLe 14/06/21 / responsabilité SmartCampus / Site injoignable / durée  : 0.0 heure(s) : Site injoignable / service Wifirst totalement indisponible\nDiagnostic : Les équipements Wifirst sont injoignables ou les services Wifirst ne sont plus opérationnels\nPérimètre : l’ensemble du site\nImpact : Service interrompu \nRésultat : Action(s) réalisée(s) :\nCommentaire :\n\nLe 14/06/21 / responsabilité SmartCampus / Site injoignable / durée  : 0.0 heure(s) : Site injoignable\n                          Diagnostic : aucun équipement n'est joignable sur le site\n                          Périmètre de l'incident : l'ensemble du site.\n                          Impact de l'incident : coupure du service\n                          Le site a-t-il été informé? non\n\n                          Alerte Kiwi \"#21449245\" ouverte le 14/06/2021 à 11:48\n                          \n \nRésultat : Le service est rétabli sur le site Galinat\n                          suite à la prise en charge de l'incident par nos équipes.\n"]
["Gaston Berger",396,100,100,13,162.5,222,130,179.2,0,"Fibre","SmartCampus",""]
["Jean Zay (Agroparc)",170,100,100,17,149.9,169,143.5,158.1,0,"Fibre","SmartCampus",""]
["La Cité Cornil (A) et la Résidence (Cornil 2)",523,99.17,98.51,20,257.89999999999998,321.60000000000002,217.8,275.7,2,"Fibre","SmartCampus","Le 15/06/21 / responsabilité SmartCampus / Site injoignable / durée  : 4.0 heure(s) : Site injoignable\n                          Diagnostic : aucun équipement n'est joignable sur le site\n                          Périmètre de l'incident : l'ensemble du site.\n                          Impact de l'incident : coupure du service\n                          Le site a-t-il été informé? non\n\n                          Alerte Kiwi \"#21449304\" ouverte le 15/06/2021 à 11:12\n                          \n \nRésultat : Le service est rétabli sur le site Cornil\n                          suite à la prise en charge de l'incident par nos équipes.\n\n\nLe 15/06/21 / responsabilité SmartCampus / Site injoignable / durée  : 5.0 heure(s) : Site injoignable / service Wifirst totalement indisponible\nDiagnostic : Les équipements Wifirst sont injoignables ou les services Wifirst ne sont plus opérationnels\nPérimètre : l’ensemble du site\nImpact : Service interrompu \nRésultat : sites de nouveaux joignables"]
["La Cité Cornil B C D E F G",272,99.17,98.51,15,152,182.3,135,160.80000000000001,2,"Fibre","SmartCampus","Le 15/06/21 / responsabilité SmartCampus / Site injoignable / durée  : 4.0 heure(s) : Site injoignable\n                          Diagnostic : aucun équipement n'est joignable sur le site\n                          Périmètre de l'incident : l'ensemble du site.\n                          Impact de l'incident : coupure du service\n                          Le site a-t-il été informé? non\n\n                          Alerte Kiwi \"#21449305\" ouverte le 15/06/2021 à 11:14\n                          \n \nRésultat : Le service est rétabli sur le site Cornil\n                          suite à la prise en charge de l'incident par nos équipes.\n\n\nLe 15/06/21 / responsabilité SmartCampus / Site injoignable / durée  : 5.0 heure(s) : Site injoignable / service Wifirst totalement indisponible\nDiagnostic : Les équipements Wifirst sont injoignables ou les services Wifirst ne sont plus opérationnels\nPérimètre : l’ensemble du site\nImpact : Service interrompu \nRésultat : sites de nouveaux joignables"]
["La Garidelle",77,100,100,12,78.599999999999994,86.6,73.599999999999994,81.900000000000006,0,"Fibre","SmartCampus",""]
["La Miroiterie Avignonaise",111,100,100,19,97.8,104.1,94.7,101.2,0,"Fibre","SmartCampus",""]
["La Verdiere",204,99.32,99.32,14,145.69999999999999,167.8,129.9,153.30000000000001,1,"Fibre","SmartCampus","Le 02/06/21 / responsabilité SmartCampus / Site injoignable / durée  : 4.0 heure(s) : Site injoignable / service Wifirst totalement indisponible\nDiagnostic : Les équipements Wifirst sont injoignables ou les services Wifirst ne sont plus opérationnels\nPérimètre : l’ensemble du site\nImpact : Service interrompu \nRésultat : Action(s) réalisée(s) :ticket opérateur\nCommentaire :le service est rétabli suite au changement de notre RAD sur site."]
["Laugier",80,100,99.26,29,81,87.1,76.2,84.4,0,"Fibre","SmartCampus","Le 14/06/21 / responsabilité SmartCampus / Site injoignable / durée  : 3.0 heure(s) : Site injoignable\n                          Diagnostic : aucun équipement n'est joignable sur le site\n                          Périmètre de l'incident : l'ensemble du site.\n                          Impact de l'incident : coupure du service\n                          Le site a-t-il été informé? non\n\n                          Alerte Kiwi \"#21449233\" ouverte le 14/06/2021 à 09:04\n                          \n \nRésultat : Le service est rétabli sur le site Laugier\n                          suite à la prise en charge de l'incident par nos équipes.\n\n\nLe 15/06/21 / responsabilité SmartCampus / Site injoignable / durée  : 1.0 heure(s) : Site injoignable\n                          Diagnostic : aucun équipement n'est joignable sur le site\n                          Périmètre de l'incident : l'ensemble du site.\n                          Impact de l'incident : coupure du service\n                          Le site a-t-il été informé? non\n\n                          Alerte Kiwi \"#21449291\" ouverte le 15/06/2021 à 08:56\n                          \n \nRésultat : Coupure volontaire du client durant toute la semaine"]
["Les balustres",126,100,100,32,5.6,5.6,5.6,5.6,0,"ADSL","SmartCampus",""]
["Li passeroun 12",21,100,100,58,2.8,4.7,3,4.7,0,"ADSL","SmartCampus",""]
["Li passeroun 13",27,100,99.98,34,5.7,8.1999999999999993,2.1,7.7,0,"ADSL","SmartCampus","Le 09/06/21 / responsabilité SmartCampus / Site injoignable / durée  : 0.0 heure(s) : Site injoignable\n                          Diagnostic : aucun équipement n'est joignable sur le site\n                          Périmètre de l'incident : l'ensemble du site.\n                          Impact de l'incident : coupure du service\n                          Le site a-t-il été informé? non\n\n                          Alerte Kiwi \"#21449029\" ouverte le 09/06/2021 à 19:24\n                          Ouverture de l'incident suite à une réouverture de l'alerte Last Seen à 09/06/2021 à 19:32\n \nRésultat : Le service est rétabli sur le site Li passeroun\n                          suite à la prise en charge de l'incident par nos équipes.\n"]
["Li passeroun 14, 15, 16",81,100,100,56,5.3,5.3,4.9000000000000004,5.3,0,"ADSL","SmartCampus",""]
["Li passeroun 6, 7, 8",81,100,100,66,3.4,4.8,3,4.4000000000000004,0,"ADSL","SmartCampus",""]
["Luminy bat A",315,100,99.69,13,35.1,65.599999999999994,14.6,44.7,0,"Fibre","SmartCampus","Le 21/06/21 / responsabilité SmartCampus / Site injoignable / durée  : 1.0 heure(s) : Site injoignable\n                          Diagnostic : aucun équipement n'est joignable sur le site\n                          Périmètre de l'incident : l'ensemble du site.\n                          Impact de l'incident : coupure du service\n                          Le site a-t-il été informé? non\n\n                          Alerte Kiwi \"#21449581\" ouverte le 21/06/2021 à 10:40\n                          \n \nRésultat : Le service est rétabli sur le site Luminy\n                          suite à la prise en charge de l'incident par nos équipes.\n\n\nLe 21/06/21 / responsabilité SmartCampus / Site injoignable / durée  : 1.0 heure(s) : Site injoignable\n                          Diagnostic : aucun équipement n'est joignable sur le site\n                          Périmètre de l'incident : l'ensemble du site.\n                          Impact de l'incident : coupure du service\n                          Le site a-t-il été informé? non\n\n                          Alerte Kiwi \"#21449583\" ouverte le 21/06/2021 à 10:40\n                          \n \nRésultat : Le service est rétabli sur le site Luminy\n                          suite à la prise en charge de l'incident par nos équipes.\n"]
["Luminy bat B",181,100,99.85,13,47.9,60.9,33.6,52.1,0,"Fibre","SmartCampus","Le 21/06/21 / responsabilité SmartCampus / Site injoignable / durée  : 1.0 heure(s) : Site injoignable\n                          Diagnostic : aucun équipement n'est joignable sur le site\n                          Périmètre de l'incident : l'ensemble du site.\n                          Impact de l'incident : coupure du service\n                          Le site a-t-il été informé? non\n\n                          Alerte Kiwi \"#21449581\" ouverte le 21/06/2021 à 10:40\n                          \n \nRésultat : Le service est rétabli sur le site Luminy\n                          suite à la prise en charge de l'incident par nos équipes.\n"]
["Luminy bat C",321,100,99.7,13,81.2,87.5,76.900000000000006,85.4,0,"Fibre","SmartCampus","Le 21/06/21 / responsabilité SmartCampus / Site injoignable / durée  : 1.0 heure(s) : Site injoignable\n                          Diagnostic : aucun équipement n'est joignable sur le site\n                          Périmètre de l'incident : l'ensemble du site.\n                          Impact de l'incident : coupure du service\n                          Le site a-t-il été informé? non\n\n                          Alerte Kiwi \"#21449581\" ouverte le 21/06/2021 à 10:40\n                          \n \nRésultat : Le service est rétabli sur le site Luminy\n                          suite à la prise en charge de l'incident par nos équipes.\n\n\nLe 21/06/21 / responsabilité SmartCampus / Site injoignable / durée  : 1.0 heure(s) : Site injoignable\n                          Diagnostic : aucun équipement n'est joignable sur le site\n                          Périmètre de l'incident : l'ensemble du site.\n                          Impact de l'incident : coupure du service\n                          Le site a-t-il été informé? non\n\n                          Alerte Kiwi \"#21449586\" ouverte le 21/06/2021 à 10:42\n                          \n \nRésultat : Le service est rétabli sur le site Luminy\n                          suite à la prise en charge de l'incident par nos équipes.\n"]
["Luminy bat D",136,100,98.9,16,44.9,65.3,36.4,52,1,"Fibre","SmartCampus","Le 21/06/21 / responsabilité SmartCampus / Site injoignable / durée  : 1.0 heure(s) : Site injoignable\n                          Diagnostic : aucun équipement n'est joignable sur le site\n                          Périmètre de l'incident : l'ensemble du site.\n                          Impact de l'incident : coupure du service\n                          Le site a-t-il été informé? non\n\n                          Alerte Kiwi \"#21449581\" ouverte le 21/06/2021 à 10:40\n                          \n \nRésultat : Le service est rétabli sur le site Luminy\n                          suite à la prise en charge de l'incident par nos équipes.\n\n\nLe 21/06/21 / responsabilité SmartCampus / Site injoignable / durée  : 1.0 heure(s) : Site injoignable\n                          Diagnostic : aucun équipement n'est joignable sur le site\n                          Périmètre de l'incident : l'ensemble du site.\n                          Impact de l'incident : coupure du service\n                          Le site a-t-il été informé? non\n\n                          Alerte Kiwi \"#21449584\" ouverte le 21/06/2021 à 10:42\n                          \n \nRésultat : Le service est rétabli sur le site Luminy\n                          suite à la prise en charge de l'incident par nos équipes.\n\n\nLe 21/06/21 / responsabilité SmartCampus / Site injoignable / durée  : 5.0 heure(s) : Site injoignable\n                          Diagnostic : aucun équipement n'est joignable sur le site\n                          Périmètre de l'incident : l'ensemble du site.\n                          Impact de l'incident : coupure du service\n                          Le site a-t-il été informé? non\n\n                          Alerte Kiwi \"#21449604\" ouverte le 21/06/2021 à 14:06\n                          \n \nRésultat : Action(s) réalisée(s) : Le switch est remonté une fois l'alimentation rétabli\nCommentaire :\nDes ravaux avait lieu sur le site et l'alimentation avait été coupé."]
["Luminy bat E",211,100,99.48,15,103.2,114.3,101.1,111.3,0,"Fibre","SmartCampus","Le 21/06/21 / responsabilité SmartCampus / Site injoignable / durée  : 1.0 heure(s) : Site injoignable\n                          Diagnostic : aucun équipement n'est joignable sur le site\n                          Périmètre de l'incident : l'ensemble du site.\n                          Impact de l'incident : coupure du service\n                          Le site a-t-il été informé? non\n\n                          Alerte Kiwi \"#21449581\" ouverte le 21/06/2021 à 10:40\n                          \n \nRésultat : Le service est rétabli sur le site Luminy\n                          suite à la prise en charge de l'incident par nos équipes.\n\n\nLe 21/06/21 / responsabilité SmartCampus / Site injoignable / durée  : 1.0 heure(s) : Site injoignable\n                          Diagnostic : aucun équipement n'est joignable sur le site\n                          Périmètre de l'incident : l'ensemble du site.\n                          Impact de l'incident : coupure du service\n                          Le site a-t-il été informé? non\n\n                          Alerte Kiwi \"#21449582\" ouverte le 21/06/2021 à 10:40\n                          \n \nRésultat : Le service est rétabli sur le site Luminy\n                          suite à la prise en charge de l'incident par nos équipes.\n\n\nLe 21/06/21 / responsabilité SmartCampus / Site injoignable / durée  : 1.0 heure(s) : Site injoignable\n                          Diagnostic : aucun équipement n'est joignable sur le site\n                          Périmètre de l'incident : l'ensemble du site.\n                          Impact de l'incident : coupure du service\n                          Le site a-t-il été informé? non\n\n                          Alerte Kiwi \"#21449605\" ouverte le 21/06/2021 à 14:08\n                          \n \nRésultat : Le service est rétabli sur le site Luminy\n                          suite à la prise en charge de l'incident par nos équipes.\n"]
["Luminy bat F",208,100,99.49,15,42.6,88.7,15.7,69.599999999999994,0,"Fibre","SmartCampus","Le 21/06/21 / responsabilité SmartCampus / Site injoignable / durée  : 1.0 heure(s) : Site injoignable\n                          Diagnostic : aucun équipement n'est joignable sur le site\n                          Périmètre de l'incident : l'ensemble du site.\n                          Impact de l'incident : coupure du service\n                          Le site a-t-il été informé? non\n\n                          Alerte Kiwi \"#21449581\" ouverte le 21/06/2021 à 10:40\n                          \n \nRésultat : Le service est rétabli sur le site Luminy\n                          suite à la prise en charge de l'incident par nos équipes.\n\n\nLe 21/06/21 / responsabilité SmartCampus / Site injoignable / durée  : 1.0 heure(s) : Site injoignable\n                          Diagnostic : aucun équipement n'est joignable sur le site\n                          Périmètre de l'incident : l'ensemble du site.\n                          Impact de l'incident : coupure du service\n                          Le site a-t-il été informé? non\n\n                          Alerte Kiwi \"#21449585\" ouverte le 21/06/2021 à 10:42\n                          \n \nRésultat : Le service est rétabli sur le site Luminy\n                          suite à la prise en charge de l'incident par nos équipes.\n\n\nLe 21/06/21 / responsabilité SmartCampus / Site injoignable / durée  : 1.0 heure(s) : Site injoignable\n                          Diagnostic : aucun équipement n'est joignable sur le site\n                          Périmètre de l'incident : l'ensemble du site.\n                          Impact de l'incident : coupure du service\n                          Le site a-t-il été informé? non\n\n                          Alerte Kiwi \"#21449607\" ouverte le 21/06/2021 à 14:08\n                          \n \nRésultat : Le service est rétabli sur le site Luminy\n                          suite à la prise en charge de l'incident par nos équipes.\n"]
["Madagascar",137,100,100,13,73.8,105.1,60.8,83.3,0,"Fibre","SmartCampus",""]
["Résidence Averroes",120,100,99.99,15,159.19999999999999,172.4,153.80000000000001,164.9,0,"Fibre","SmartCampus","Le 24/06/21 / responsabilité SmartCampus / Site injoignable / durée  : 0.0 heure(s) : Site injoignable / service Wifirst totalement indisponible\nDiagnostic : Les équipements Wifirst sont injoignables ou les services Wifirst ne sont plus opérationnels\nPérimètre : l’ensemble du site\nImpact : Service interrompu \nRésultat : site à nouveau joignable"]
["RESIDENCE PAULIANE",300,100,100,12,211.2,232.4,196.3,218.6,0,"Fibre","PlanetCampus",""]
["Rocher des Doms",53,100,100,16,73.400000000000006,84.2,65.3,77.599999999999994,0,"Fibre","SmartCampus",""]
["Sainte Baume",217,100,99.96,67,126.9,147.69999999999999,122.1,133.4,0,"Fibre","SmartCampus","Le 14/06/21 / responsabilité SmartCampus / Site injoignable / durée  : 0.0 heure(s) : Site injoignable / service Wifirst totalement indisponible\nDiagnostic : Les équipements Wifirst sont injoignables ou les services Wifirst ne sont plus opérationnels\nPérimètre : l’ensemble du site\nImpact : Service interrompu \nRésultat : Action(s) réalisée(s) :\nCommentaire :"]
["Studio Luminy",157,100,99.7,13,41.7,69.8,37.200000000000003,51.8,0,"Fibre","SmartCampus","Le 21/06/21 / responsabilité SmartCampus / Site injoignable / durée  : 1.0 heure(s) : Site injoignable\n                          Diagnostic : aucun équipement n'est joignable sur le site\n                          Périmètre de l'incident : l'ensemble du site.\n                          Impact de l'incident : coupure du service\n                          Le site a-t-il été informé? non\n\n                          Alerte Kiwi \"#21449581\" ouverte le 21/06/2021 à 10:40\n                          \n \nRésultat : Le service est rétabli sur le site Luminy\n                          suite à la prise en charge de l'incident par nos équipes.\n\n\nLe 21/06/21 / responsabilité SmartCampus / Site injoignable / durée  : 1.0 heure(s) : Site injoignable\n                          Diagnostic : aucun équipement n'est joignable sur le site\n                          Périmètre de l'incident : l'ensemble du site.\n                          Impact de l'incident : coupure du service\n                          Le site a-t-il été informé? non\n\n                          Alerte Kiwi \"#21449587\" ouverte le 21/06/2021 à 10:42\n                          \n \nRésultat : Le service est rétabli sur le site Studio Luminy\n                          suite à la prise en charge de l'incident par nos équipes.\n"]
["Studios Arc de meyran",137,100,100,13,90.6,109.3,82.8,96.8,0,"Fibre","SmartCampus",""]
["Sylvabelle",25,100,99.94,11,86.8,89.1,85.3,88.2,0,"Fibre","SmartCampus","Le 23/06/21 / responsabilité SmartCampus / Site injoignable / durée  : 0.0 heure(s) : Site injoignable\n                          Diagnostic : aucun équipement n'est joignable sur le site\n                          Périmètre de l'incident : l'ensemble du site.\n                          Impact de l'incident : coupure du service\n                          Le site a-t-il été informé? non\n\n                          Alerte Kiwi \"#21449728\" ouverte le 23/06/2021 à 10:42\n                          \n \nRésultat : Le service est rétabli sur le site Sylvabelle\n                          suite à la prise en charge de l'incident par nos équipes.\n\n\nLe 23/06/21 / responsabilité SmartCampus / Site injoignable / durée  : 0.0 heure(s) : Site injoignable\n                          Diagnostic : aucun équipement n'est joignable sur le site\n                          Périmètre de l'incident : l'ensemble du site.\n                          Impact de l'incident : coupure du service\n                          Le site a-t-il été informé? non\n\n                          Alerte Kiwi \"#21449737\" ouverte le 23/06/2021 à 12:34\n                          Ouverture de l'incident suite à une réouverture de l'alerte Last Seen à 23/06/2021 à 12:42\n \nRésultat : Le service est rétabli sur le site Sylvabelle\n                          suite à la prise en charge de l'incident par nos équipes.\n"]

{"sheet":"AMIENS","index":1,"n_rows":20,"n_cols":13,"rows_kept":20,"cut":false,"hidden":false,"merged":[]}
[]
[]
["Etablissement","NB Chb","Dispo (resp. SC) (%)","Dispo (toutes resp) (%)","LatMax (ms)","BPMin (Mb/s)","BPMoy (Mb/s)","BPMin 19h-23h (Mb/s)","BPMoy 19h-23h (Mb/s)","Nb de Chb fibrées","Nb de Chb en cours de fibrage"]
["CROUS AMIENS",{"$f":"SUM(B8:B20)","v":1959},{"$f":"SUMPRODUCT(B8:B20,C8:C20)/SUM(B8:B20)","v":100},{"$f":"SUMPRODUCT(B8:B20,D8:D20)/SUM(B8:B20)","v":99.93054109239408},{"$f":"SUMPRODUCT(B8:B20,E8:E20)/SUM(B8:B20)","v":13.523736600306279},{"$f":"SUMPRODUCT(B8:B20,F8:F20)/SUM(B8:B20)","v":166.51403777437469},{"$f":"SUMPRODUCT(B8:B20,G8:G20)/SUM(B8:B20)","v":193.98044920877999},{"$f":"SUMPRODUCT(B8:B20,H8:H20)/SUM(B8:B20)","v":150.56855538540074},{"$f":"SUMPRODUCT(B8:B20,I8:I20)/SUM(B8:B20)","v":175.58534966819806},{"$f":"SUMIFS(B8:B20,K8:K20,\"=Fibre\")","v":1783},{"$f":"SUMIFS(B8:B20,K8:K20,\"=Fibrage en cours\")","v":0}]
["","","","","","","","","",{"$f":"J4/B4","v":0.91015824400204182},{"$f":"K4/B4","v":0}]
[]
["Résidence","NB Chb","Dispo (resp. SC) (%)","Dispo (toutes resp) (%)","LatMax (ms)","BPMin (Mb/s)","BPMoy (Mb/s)","BPMin 19h-23h (Mb/s)","BPMoy 19h-23h (Mb/s)","Hors GTR","Collecte","Type de service","Remarques"]
["Bailly B",214,100,100,9,123.5,150.30000000000001,108.9,134.9,0,"Fibre","SmartCampus",""]
["Bailly C et D",283,100,100,8,116.1,162.69999999999999,84.4,131.80000000000001,0,"Fibre","PlanetCampus",""]
["Castillon",294,100,100,7,557.1,596.20000000000005,538.70000000000005,568.70000000000005,0,"Fibre","PlanetCampus",""]
["Charles de Gaulle",93,100,100,9,57.4,75.5,46.2,65.900000000000006,0,"Fibre","PlanetCampus",""]
["Creil",97,100,100,20,44.7,70.900000000000006,31.9,53.4,0,"Fibre","PlanetCampus",""]
["DELOUARD",106,100,100,9,81,99,73.5,87.9,0,"Fibre","PlanetCampus",""]
["Friant",90,100,100,49,4.8,6.1,4.5,5.3,0,"ADSL","SmartCampus",""]
["Friant 2",86,100,100,47,5.4,5.6,5.2,5.5,0,"ADSL","SmartCampus",""]
["Hotoie",140,100,100,9,79.3,103.1,67.599999999999994,87.7,0,"Fibre","PlanetCampus",""]
["Kennedy",99,100,99.62,7,59.2,79.2,47.3,66.2,0,"Fibre","PlanetCampus","Le 10/06/21 / responsabilité SmartCampus / Site injoignable / durée  : 1.0 heure(s) : Site injoignable\n                          Diagnostic : aucun équipement n'est joignable sur le site\n                          Périmètre de l'incident : l'ensemble du site.\n                          Impact de l'incident : coupure du service\n                          Le site a-t-il été informé? non\n\n                          Alerte Kiwi \"#21449100\" ouverte le 10/06/2021 à 08:56\n                          \n \nRésultat : Le service est rétabli sur le site Kennedy\n                          suite à la prise en charge de l'incident par nos équipes.\n\n\nLe 10/06/21 / responsabilité SmartCampus / Site injoignable / durée  : 1.0 heure(s) : Site injoignable\n                          Diagnostic : aucun équipement n'est joignable sur le site\n                          Périmètre de l'incident : l'ensemble du site.\n                          Impact de l'incident : coupure du service\n                          Le site a-t-il été informé? non\n\n                          Alerte Kiwi \"#21449116\" ouverte le 10/06/2021 à 13:00\n                          \n \nRésultat : Le service est rétabli sur le site Kennedy\n                          suite à la prise en charge de l'incident par nos équipes.\n"]
["Résidence St Firmin",55,100,98.21,7,265.60000000000002,268.8,263.60000000000002,267.60000000000002,2,"Fibre","PlanetCampus","Le 07/06/21 / responsabilité SmartCampus / Site injoignable / durée  : 7.0 heure(s) : Site injoignable\n                          Diagnostic : aucun équipement n'est joignable sur le site\n                          Périmètre de l'incident : l'ensemble du site.\n                          Impact de l'incident : coupure du service\n                          Le site a-t-il été informé? non\n\n                          Alerte Kiwi \"#21448866\" ouverte le 07/06/2021 à 10:22\n                          \n \nRésultat : Le service est rétabli sur le site Résidence St Firmin\n                          suite à la prise en charge de l'incident par nos équipes.\n\n\nLe 30/06/21 / responsabilité SmartCampus / Site injoignable / durée  : 5.0 heure(s) : Site injoignable\n                          Diagnostic : aucun équipement n'est joignable sur le site\n                          Périmètre de l'incident : l'ensemble du site.\n                          Impact de l'incident : coupure du service\n                          Le site a-t-il été informé? non\n\n                          Alerte Kiwi \"#21450018\" ouverte le 30/06/2021 à 08:38\n                          \n \nRésultat : Le service est rétabli sur le site Résidence St Firmin\n                          suite à la prise en charge de l'incident par nos équipes.\n"]
["Saint Leu",114,100,100,30,65.3,86,60.3,72.099999999999994,0,"Fibre","PlanetCampus",""]
["Thil",288,100,100,8,156.1,188.3,131.4,164.1,0,"Fibre","PlanetCampus",""]

{"sheet":"BORDEAUX","index":2,"n_rows":62,"n_cols":13,"rows_kept":62,"cut":false,"hidden":false,"merged":[]}
[]
[]
["Etablissement","NB Chb","Dispo (resp. SC) (%)","Dispo (toutes resp) (%)","LatMax (ms)","BPMin (Mb/s)","BPMoy (Mb/s)","BPMin 19h-23h (Mb/s)","BPMoy 19h-23h (Mb/s)","Nb de Chb fibrées","Nb de Chb en cours de fibrage"]
["CROUS BORDEAUX",{"$f":"SUM(B8:B62)","v":9149},{"$f":"SUMPRODUCT(B8:B62,C8:C62)/SUM(B8:B62)","v":99.945931795824677},{"$f":"SUMPRODUCT(B8:B62,D8:D62)/SUM(B8:B62)","v":99.881840638321137},{"$f":"SUMPRODUCT(B8:B62,E8:E62)/SUM(B8:B62)","v":12.1106131817685},{"$f":"SUMPRODUCT(B8:B62,F8:F62)/SUM(B8:B62)","v":184.4699639304842},{"$f":"SUMPRODUCT(B8:B62,G8:G62)/SUM(B8:B62)","v":227.97981200131164},{"$f":"SUMPRODUCT(B8:B62,H8:H62)/SUM(B8:B62)","v":165.02010055743798},{"$f":"SUMPRODUCT(B8:B62,I8:I62)/SUM(B8:B62)","v":198.22229751885448},{"$f":"SUMIFS(B8:B62,K8:K62,\"=Fibre\")","v":9113},{"$f":"SUMIFS(B8:B62,K8:K62,\"=Fibrage en cours\")","v":0}]
["","","","","","","","","",{"$f":"J4/B4","v":0.99606514373155541},{"$f":"K4/B4","v":0}]
[]
["Résidence","NB Chb","Dispo (resp. SC) (%)","Dispo (toutes resp) (%)","LatMax (ms)","BPMin (Mb/s)","BPMoy (Mb/s)","BPMin 19h-23h (Mb/s)","BPMoy 19h-23h (Mb/s)","Hors GTR","Collecte","Type de service","Remarques"]
["Andre Malraux",80,100,100,28,77,83.6,74.7,80.3,0,"Fibre","PlanetCampus",""]
["Arancette",156,100,100,17,94.5,142.80000000000001,81.8,108.3,0,"Fibre","PlanetCampus",""]
["Ausone",120,100,100,9,30.1,34,30.1,32.6,0,"Fibre","PlanetCampus",""]
["Budos",231,100,100,15,95.9,142.30000000000001,79,112.4,0,"Fibre","PlanetCampus",""]
["Carreire",52,100,100,23,53.7,67.7,48.4,61.5,0,"Fibre","PlanetCampus",""]
["Caserne  Bosquet",76,100,100,31,70.2,80,62.7,74.7,0,"Fibre","PlanetCampus",""]
["Clairefontaine Bat A",88,100,100,19,68.8,83.2,63.2,76.3,0,"Fibre","SmartCampus",""]
["Clairefontaine Bat B C",88,100,100,22,116.7,134.30000000000001,102.2,123.9,0,"Fibre","SmartCampus",""]
["Clairefontaine bat E-D",100,100,100,17,81.3,93,69.3,86,0,"Fibre","PlanetCampus",""]
["Clé de Sol",102,99.34,99.34,19,64.8,79.099999999999994,56.4,69.8,1,"Fibre","SmartCampus","Le 17/06/21 / responsabilité SmartCampus / fr-FR, incident.typology.primary_wan_unavailable / durée  : 4.0 heure(s) : WAN principal indisponible mais backup fonctionnel\nDiagnostic : L'accès WAN principal n'est plus fonctionnel mais l'accès WAN de backup a pris le relai\nPérimètre : Tout le site\nImpact : Aucun \nRésultat : Action(s) réalisée(s) : correction d'un défaut sur la route optique de votre client\nCommentaire : fibre cassée dans une boîte"]
["Clé des Champs",180,100,100,15,848.4,877.9,835.4,861.1,0,"Fibre","SmartCampus",""]
["Coeur de Bastide",234,100,100,19,126.7,189.7,98.3,141,0,"Fibre","PlanetCampus",""]
["Condorcet",116,100,100,9,71.5,100.9,62.6,84.7,0,"Fibre","PlanetCampus",""]
["Emile Durkheim",320,100,100,9,68,96.2,55.8,74.400000000000006,0,"Fibre","PlanetCampus",""]
["Ernest Gabard",204,100,100,20,814,860.9,799.9,833.9,0,"Fibre","SmartCampus",""]
["Eugene Goyheneche",80,100,100,17,48.3,77.3,35.700000000000003,61.2,0,"Fibre","PlanetCampus",""]
["Francois Mauriac",270,100,100,9,86.6,125.8,76.2,98,0,"Fibre","PlanetCampus",""]
["Galilée",182,100,100,8,34.299999999999997,49.7,28.7,38.9,0,"Fibre","PlanetCampus",""]
["Gaston Phoebus",535,100,100,14,175.7,275.3,119.2,204.8,0,"Fibre","SmartCampus",""]
["Josephine Baker (Nouveau V4)",402,100,99.7,9,101.1,199.9,71.3,141.1,0,"Fibre","SmartCampus","Le 16/06/21 / responsabilité SmartCampus / Site injoignable / durée  : 2.0 heure(s) : Site injoignable\n                          Diagnostic : aucun équipement n'est joignable sur le site\n                          Périmètre de l'incident : l'ensemble du site.\n                          Impact de l'incident : coupure du service\n                          Le site a-t-il été informé? non\n\n                          Alerte Kiwi \"#21449380\" ouverte le 16/06/2021 à 22:48\n                          \n \nRésultat : Le service est rétabli sur le site Josephine Baker (Nouveau V4)\n                          suite à la prise en charge de l'incident par nos équipes.\n"]
["La Boetie",131,100,100,8,73.099999999999994,103.7,55.9,86.6,0,"Fibre","PlanetCampus",""]
["La Cressonniere",80,100,100,25,69.7,80.3,64.599999999999994,74.900000000000006,0,"Fibre","PlanetCampus",""]
["La Marne",161,100,100,9,126.2,156.80000000000001,114.7,134.5,0,"Fibre","SmartCampus",""]
["La Victoire",84,100,100,9,19.2,46.3,8.6999999999999993,27.2,0,"Fibre","PlanetCampus",""]
["Le General",27,100,100,10,71.3,84.6,67.900000000000006,79,0,"Fibre","PlanetCampus",""]
["Le Musee",23,100,100,11,49.1,50,47.6,49.7,0,"Fibre","SmartCampus",""]
["Le Patio - Perigueux",23,100,100,11,80.900000000000006,87.5,76.2,84.9,0,"Fibre","PlanetCampus",""]
["Le Théleme",149,100,100,15,406.5,430.8,392.5,415.4,0,"Fibre","SmartCampus",""]
["Le Velum Calmette bat A",36,100,100,37,5.2,5.5,5,5.4,0,"ADSL","SmartCampus",""]
["Le Velum Guerin bat B",42,100,100,30,82,84.1,81.400000000000006,83.5,0,"Fibre","SmartCampus",""]
["Léo Drouyn - Bordeaux",8,100,100,9,40.799999999999997,41.3,40.700000000000003,41.2,0,"Fibre","PlanetCampus",""]
["Les Erables",36,100,100,15,74.599999999999994,85.3,70.400000000000006,79.099999999999994,0,"Fibre","SmartCampus",""]
["Les Grandes Arcades",86,100,100,14,71.400000000000006,82.7,68.2,76,0,"Fibre","PlanetCampus",""]
["Les Lumières",254,100,99.71,8,53.9,76,45,64.400000000000006,0,"Fibre","PlanetCampus","Le 16/06/21 / responsabilité SmartCampus / Site injoignable / durée  : 2.0 heure(s) : Site injoignable\n                          Diagnostic : aucun équipement n'est joignable sur le site\n                          Périmètre de l'incident : l'ensemble du site.\n                          Impact de l'incident : coupure du service\n                          Le site a-t-il été informé? non\n\n                          Alerte Kiwi \"#21449379\" ouverte le 16/06/2021 à 22:48\n                          \n \nRésultat : Le service est rétabli sur le site Les Lumières\n                          suite à la prise en charge de l'incident par nos équipes.\n"]
["Les Tanneries",73,100,100,22,65.400000000000006,75.3,62.1,69.900000000000006,0,"Fibre","PlanetCampus",""]
["Maison des Etudiants - Bordeaux",61,100,100,10,50.2,65.8,42.8,56.7,0,"Fibre","PlanetCampus",""]
["Maison des Scientifiques",150,100,100,8,41.5,53.2,35.9,46.9,0,"Fibre","PlanetCampus",""]
["Michel de Montaigne",61,100,100,9,51.1,65.8,45.5,54.7,0,"Fibre","PlanetCampus",""]
["Michel Serres",101,100,100,9,256.8,270.7,248.2,261.8,0,"Fibre","PlanetCampus",""]
["Montesquieu - Pessac",204,100,99.16,9,41.2,65.099999999999994,29.9,52.3,1,"Fibre","SmartCampus","Le 04/06/21 / responsabilité SmartCampus / Site injoignable / durée  : 6.0 heure(s) : Site injoignable\n                          Diagnostic : aucun équipement n'est joignable sur le site\n                          Périmètre de l'incident : l'ensemble du site.\n                          Impact de l'incident : coupure du service\n                          Le site a-t-il été informé? non\n\n                          Alerte Kiwi \"#21448787\" ouverte le 04/06/2021 à 10:02\n                          \n \nRésultat : Action(s) réalisée(s) :\nCommentaire :"]
["Pierre Bidart",78,100,100,17,50.7,77.5,30.2,61.2,0,"Fibre","PlanetCampus",""]
["Pierre et Marie Curie",321,100,100,9,115,149.5,100.4,121.4,0,"Fibre","PlanetCampus",""]
["Pierre Gilles de Gennes - Bordeaux",150,100,99.94,11,50.2,75.900000000000006,46,60.6,0,"Fibre","SmartCampus","Le 18/06/21 / responsabilité SmartCampus / Site injoignable / durée  : 0.0 heure(s) : Site injoignable\n                          Diagnostic : aucun équipement n'est joignable sur le site\n                          Périmètre de l'incident : l'ensemble du site.\n                          Impact de l'incident : coupure du service\n                          Le site a-t-il été informé? non\n\n                          Alerte Kiwi \"#21449470\" ouverte le 18/06/2021 à 10:28\n                          \n \nRésultat : Le service est rétabli sur le site Pierre Gilles de Gennes - Bordeaux\n                          suite à la prise en charge de l'incident par nos équipes.\n"]
["Résidence Francis Jammes",214,100,100,15,119.7,145.4,109.1,128.4,0,"Fibre","SmartCampus",""]
["Résidence Jean Anouilh",18,100,100,9,59.7,64,61.2,64.2,0,"Fibre","SmartCampus",""]
["Résidence Kattalin Aguirre (Bâtiment C, Ilôt Bovero)",51,100,100,18,72.2,83.6,65.3,77.099999999999994,0,"Fibre","SmartCampus",""]
["Roland Barthes",76,100,100,18,48.4,76,31.1,58.8,0,"Fibre","PlanetCampus",""]
["Ronsard",179,100,100,15,862.5,883.6,855.8,869.8,0,"Fibre","SmartCampus",""]
["Simone Veil (CROUS BORDEAUX)",253,100,100,9,88.6,135.4,50.6,100.3,0,"Fibre","SmartCampus",""]
["Tauzin",201,100,100,12,95.3,143.5,78.8,113.9,0,"Fibre","PlanetCampus",""]
["Village Universitaire 1",385,98.89,98.34,9,430.6,518.29999999999995,399.9,447.5,1,"Fibre","PlanetCampus","Le 12/06/21 / responsabilité SmartCampus / Site injoignable / durée  : 3.0 heure(s) : Site injoignable\n                          Diagnostic : aucun équipement n'est joignable sur le site\n                          Périmètre de l'incident : l'ensemble du site.\n                          Impact de l'incident : coupure du service\n                          Le site a-t-il été informé? non\n\n                          Alerte Kiwi \"#21449198\" ouverte le 12/06/2021 à 16:02\n                          \n \nRésultat : Le service est rétabli sur le site Village Universitaire 1 (Bât A B C D G)\n                          suite à la prise en charge de l'incident par nos équipes.\n\n\nLe 14/06/21 / responsabilité SmartCampus / Site injoignable / durée  : 7.0 heure(s) : Site injoignable\n                          Diagnostic : aucun équipement n'est joignable sur le site\n                          Périmètre de l'incident : l'ensemble du site.\n                          Impact de l'incident : coupure du service\n                          Le site a-t-il été informé? non\n\n                          Alerte Kiwi \"#21449236\" ouverte le 14/06/2021 à 09:36\n                          \n \nRésultat : Action(s) réalisée(s) :\nCommentaire : Le tech a débranché, re-branché le fibre.\nLe site est remonté à l'issue.\nTest de connexion effectuée à l'issue: OK"]
["Village Universitaire 2",455,100,100,9,138,210.5,105.9,163.69999999999999,0,"Fibre","PlanetCampus",""]
["Village Universitaire 3",879,100,100,8,287.7,346.2,259.7,300.10000000000002,0,"Fibre","PlanetCampus",""]
["Village Universitaire 5",189,100,100,8,382,420.9,367.3,399.4,0,"Fibre","PlanetCampus",""]
["Village Universitaire 6",294,100,100,9,145,182.9,114,161.80000000000001,0,"Fibre","PlanetCampus",""]

{"sheet":"BOURGOGNE FRANCHE COMTE","index":3,"n_rows":47,"n_cols":13,"rows_kept":47,"cut":false,"hidden":false,"merged":[]}
[]
[]
["Etablissement","NB Chb","Dispo (resp. SC) (%)","Dispo (toutes resp) (%)","LatMax (ms)","BPMin (Mb/s)","BPMoy (Mb/s)","BPMin 19h-23h (Mb/s)","BPMoy 19h-23h (Mb/s)","Nb de Chb fibrées","Nb de Chb en cours de fibrage"]
["CROUS BOURGOGNE FRANCHE COMTE",{"$f":"SUM(B8:B47)","v":6772},{"$f":"SUMPRODUCT(B8:B47,C8:C47)/SUM(B8:B47)","v":99.898105434140575},{"$f":"SUMPRODUCT(B8:B47,D8:D47)/SUM(B8:B47)","v":98.801922622563481},{"$f":"SUMPRODUCT(B8:B47,E8:E47)/SUM(B8:B47)","v":19.733904311872415},{"$f":"SUMPRODUCT(B8:B47,F8:F47)/SUM(B8:B47)","v":134.44655936207917},{"$f":"SUMPRODUCT(B8:B47,G8:G47)/SUM(B8:B47)","v":171.50103366804493},{"$f":"SUMPRODUCT(B8:B47,H8:H47)/SUM(B8:B47)","v":119.47976963969285},{"$f":"SUMPRODUCT(B8:B47,I8:I47)/SUM(B8:B47)","v":147.10769344359127},{"$f":"SUMIFS(B8:B47,K8:K47,\"=Fibre\")","v":6750},{"$f":"SUMIFS(B8:B47,K8:K47,\"=Fibrage en cours\")","v":0}]
["","","","","","","","","",{"$f":"J4/B4","v":0.99675132900177199},{"$f":"K4/B4","v":0}]
[]
["Résidence","NB Chb","Dispo (resp. SC) (%)","Dispo (toutes resp) (%)","LatMax (ms)","BPMin (Mb/s)","BPMoy (Mb/s)","BPMin 19h-23h (Mb/s)","BPMoy 19h-23h (Mb/s)","Hors GTR","Collecte","Type de service","Remarques"]
["Agora-Planoise",26,100,100,18,89.9,89.9,89.8,89.9,0,"Fibre","SmartCampus",""]
["Antide Janvier",76,100,100,13,77,80.900000000000006,73.2,78.900000000000006,0,"Fibre","SmartCampus",""]
["Braudel",99,100,100,9,159,172.4,155.80000000000001,167.5,0,"Fibre","SmartCampus",""]
["Canot",161,100,100,13,117,129,112.5,121.6,0,"Fibre","SmartCampus",""]
["Cité Beaune",340,100,84.67,11,152,202.3,127.8,167.8,1,"Fibre","SmartCampus","Le 07/06/21 / responsabilité SmartCampus / Site injoignable / durée  : 110.0 heure(s) : Site injoignable\n                          Diagnostic : aucun équipement n'est joignable sur le site\n                          Périmètre de l'incident : l'ensemble du site.\n                          Impact de l'incident : coupure du service\n                          Le site a-t-il été informé? non\n\n                          Alerte Kiwi \"#21448862\" ouverte le 07/06/2021 à 08:32\n                          \n \nRésultat : Tout est up sur site"]
["Cité de l'alternance",114,100,100,32,61.9,77.599999999999994,54.1,74.2,0,"Fibre","SmartCampus",""]
["Colette - Gascar",717,100,100,12,213.9,264.60000000000002,204.3,237.8,0,"Fibre","SmartCampus",""]
["Colette - Gigoux",1005,100,100,12,233.3,338.7,201.2,258.2,0,"Fibre","PlanetCampus",""]
["Colette - Stendhal",379,100,100,12,94.2,137.4,75.599999999999994,115.6,0,"Fibre","SmartCampus",""]
["Duvillard",268,100,100,14,109.5,155.9,51.9,122.2,0,"Fibre","SmartCampus",""]
["Hericourt",22,100,100,0,3.9,3.9,3.9,3.9,0,"ADSL","SmartCampus",""]
["Jean Moulin",78,100,100,26,88.6,89.6,88.4,89.5,0,"Fibre","SmartCampus",""]
["Jean Zay - Dijon",166,100,100,32,84.5,107.6,75,93.1,0,"Fibre","SmartCampus",""]
["Jemmapes",41,100,100,12,75.900000000000006,86.2,70.400000000000006,80.2,0,"Fibre","SmartCampus",""]
["Megevand",27,100,100,18,86.7,89.1,84.3,87.9,0,"Fibre","SmartCampus",""]
["Pavillon antipodes",388,100,100,32,231.2,259.3,219.8,243.2,0,"Fibre","SmartCampus",""]
["Pavillon Autun",154,100,100,32,108.3,124,98.8,114.5,0,"Fibre","SmartCampus",""]
["Pavillon Auxerre",153,100,100,32,100.7,120.1,90.7,106.3,0,"Fibre","SmartCampus",""]
["Pavillon Bossuet",100,100,100,32,47.8,61.1,44.5,53.8,0,"Fibre","SmartCampus",""]
["Pavillon Buffon",135,100,100,32,57.7,81.400000000000006,49.1,67.8,0,"Fibre","SmartCampus",""]
["Pavillon Chalon",152,100,100,32,100.5,121.4,69.599999999999994,108,0,"Fibre","SmartCampus",""]
["Pavillon de Brosses",109,100,100,32,59.7,73.099999999999994,51.7,67.3,0,"Fibre","SmartCampus",""]
["Pavillon Lamartine",98,100,100,32,34.200000000000003,55.8,29.8,44.7,0,"Fibre","SmartCampus",""]
["Pavillon Latitudes",98,100,84.69,13,52.2,65.099999999999994,45.6,57.7,1,"Fibre","SmartCampus","Le 07/06/21 / responsabilité SmartCampus / Site injoignable / durée  : 110.0 heure(s) : Site injoignable\n                          Diagnostic : aucun équipement n'est joignable sur le site\n                          Périmètre de l'incident : l'ensemble du site.\n                          Impact de l'incident : coupure du service\n                          Le site a-t-il été informé? non\n\n                          Alerte Kiwi \"#21448864\" ouverte le 07/06/2021 à 08:34\n                          \n \nRésultat : Action(s) réalisée(s) : Redémarrage sur le site Beaume\nCommentaire : TT 227829"]
["Pavillon Macon",147,100,100,0,130.5,130.5,130.5,130.5,0,"Fibre","SmartCampus",""]
["Pavillon Nevers",140,100,100,32,89.7,109.5,84.7,101.1,0,"Fibre","SmartCampus",""]
["Pavillon Piron",105,100,100,32,63.6,72.5,55.9,66.599999999999994,0,"Fibre","SmartCampus",""]
["Pavillon Rameau",153,100,100,32,84.1,100.9,78.400000000000006,90.4,0,"Fibre","SmartCampus",""]
["Pavillon Rimbaud",245,100,100,32,136.5,163.6,121,144.9,0,"Fibre","SmartCampus",""]
["Pavillon Rude",105,100,100,32,58.8,69.900000000000006,46.6,62.6,0,"Fibre","SmartCampus",""]
["Pavillon Sens",148,100,100,0,0,0,0,0,0,"Fibre","SmartCampus",""]
["Pavillon St Bernard",105,100,100,32,61.8,72,56.5,67.099999999999994,0,"Fibre","SmartCampus",""]
["Pavillon Vauban",137,100,100,32,70.3,86.9,65.3,78.3,0,"Fibre","SmartCampus",""]
["Portes du Jura",84,100,99.96,25,68.5,81.2,63.6,72.2,0,"Fibre","SmartCampus","Le 23/06/21 / responsabilité SmartCampus / Site injoignable / durée  : 0.0 heure(s) : Site injoignable\n                          Diagnostic : aucun équipement n'est joignable sur le site\n                          Périmètre de l'incident : l'ensemble du site.\n                          Impact de l'incident : coupure du service\n                          Le site a-t-il été informé? non\n\n                          Alerte Kiwi \"#21449731\" ouverte le 23/06/2021 à 11:26\n                          \n \nRésultat : Le service est rétabli sur le site Portes du Jura\n                          suite à la prise en charge de l'incident par nos équipes.\n"]
["René Thom",120,100,100,9,76.599999999999994,98.9,70.099999999999994,85.3,0,"Fibre","SmartCampus",""]
["Residence Irtess",59,100,88.01,12,33.700000000000003,41.3,28.4,37.4,1,"Fibre","SmartCampus","Le 07/06/21 / responsabilité SmartCampus / Site injoignable / durée  : 86.0 heure(s) : Site injoignable\n                          Diagnostic : aucun équipement n'est joignable sur le site\n                          Périmètre de l'incident : l'ensemble du site.\n                          Impact de l'incident : coupure du service\n                          Le site a-t-il été informé? non\n\n                          Alerte Kiwi \"#21448863\" ouverte le 07/06/2021 à 08:32\n                          \n \nRésultat : Le service est rétabli sur le site Residence Irtess\n                          suite à la prise en charge de l'incident par nos équipes.\n"]
["Résidence Jaurés",22,100,100,12,88.6,89.7,89.1,89.7,0,"Fibre","SmartCampus",""]
["RU Montmuzard",1,100,100,0,0,0,0,0,0,"Fibre","SmartCampus",""]
["Sartre",142,100,100,9,158.4,171.3,154.9,165.9,0,"Fibre","SmartCampus",""]
["Site Maret",153,95.49,95.49,32,108.5,113,101,110.1,1,"Fibre","SmartCampus","Le 26/06/21 / responsabilité SmartCampus / Site injoignable / durée  : 32.0 heure(s) : Site injoignable\n                          Diagnostic : aucun équipement n'est joignable sur le site\n                          Périmètre de l'incident : l'ensemble du site.\n                          Impact de l'incident : coupure du service\n                          Le site a-t-il été informé? non\n\n                          Alerte Kiwi \"#21449886\" ouverte le 26/06/2021 à 21:40\n                          \n \nRésultat : Action(s) réalisée(s) :\nCommentaire :\n\nonduleur remplacé "]

{"sheet":"CLERMONT FERRAND","index":4,"n_rows":33,"n_cols":13,"rows_kept":33,"cut":false,"hidden":false,"merged":[]}
[]
[]
["Etablissement","NB Chb","Dispo (resp. SC) (%)","Dispo (toutes resp) (%)","LatMax (ms)","BPMin (Mb/s)","BPMoy (Mb/s)","BPMin 19h-23h (Mb/s)","BPMoy 19h-23h (Mb/s)","Nb de Chb fibrées","Nb de Chb en cours de fibrage"]
["CROUS CLERMONT FERRAND",{"$f":"SUM(B8:B33)","v":3772},{"$f":"SUMPRODUCT(B8:B33,C8:C33)/SUM(B8:B33)","v":100},{"$f":"SUMPRODUCT(B8:B33,D8:D33)/SUM(B8:B33)","v":100},{"$f":"SUMPRODUCT(B8:B33,E8:E33)/SUM(B8:B33)","v":21.205461293743372},{"$f":"SUMPRODUCT(B8:B33,F8:F33)/SUM(B8:B33)","v":145.50901378579005},{"$f":"SUMPRODUCT(B8:B33,G8:G33)/SUM(B8:B33)","v":182.72767762460231},{"$f":"SUMPRODUCT(B8:B33,H8:H33)/SUM(B8:B33)","v":126.4319989395546},{"$f":"SUMPRODUCT(B8:B33,I8:I33)/SUM(B8:B33)","v":158.88290031813364},{"$f":"SUMIFS(B8:B33,K8:K33,\"=Fibre\")","v":3742},{"$f":"SUMIFS(B8:B33,K8:K33,\"=Fibrage en cours\")","v":0}]
["","","","","","","","","",{"$f":"J4/B4","v":0.99204665959703076},{"$f":"K4/B4","v":0}]
[]
["Résidence","NB Chb","Dispo (resp. SC) (%)","Dispo (toutes resp) (%)","LatMax (ms)","BPMin (Mb/s)","BPMoy (Mb/s)","BPMin 19h-23h (Mb/s)","BPMoy 19h-23h (Mb/s)","Hors GTR","Collecte","Type de service","Remarques"]
["Cézeaux - Cité 2",305,100,100,26,245.6,263,231.7,256.39999999999998,0,"Fibre","SmartCampus",""]
["Cézeaux Cité 1 (CCZ)",306,100,100,16,142.4,203.7,118.2,164.1,0,"Fibre","PlanetCampus",""]
["CROUS CLERMONT FERRAND - Amboise",147,100,100,16,123.6,156.19999999999999,111.4,136.5,0,"Fibre","PlanetCampus",""]
["CROUS CLERMONT FERRAND - Amboise - Annexe",1,100,100,337,8,8.8000000000000007,7.8,8.8000000000000007,0,"Fibre","PlanetCampus",""]
["CROUS CLERMONT FERRAND / Residence Cezeaux- Studios",375,100,100,26,141.1,231.7,79.7,163.6,0,"Fibre","SmartCampus",""]
["Espace Guy Vigne",30,100,100,56,11.4,12,12.1,12.1,0,"ADSL","SmartCampus",""]
["Hauts de Lafayette",169,100,100,14,121.8,153.1,101,130,0,"Fibre","PlanetCampus",""]
["La Poterne",15,100,100,12,41,43.8,39.1,42.8,0,"Fibre","PlanetCampus",""]
["Le Port",9,100,100,11,88.2,88.2,88.2,88.2,0,"Fibre","PlanetCampus",""]
["Lebon (CLE)",478,100,100,24,310.8,329.2,301.10000000000002,322.7,0,"Fibre","SmartCampus",""]
["Les Jardins",58,100,100,12,61.2,68.8,55.8,63.7,0,"Fibre","SmartCampus",""]
["Les Lauréats (CLE)",65,100,100,12,56.3,68.599999999999994,36.799999999999997,59.6,0,"Fibre","PlanetCampus",""]
["Maison Internationale Universitaire",41,100,100,25,85.3,88.7,83.8,86.7,0,"Fibre","SmartCampus",""]
["Meuniers",80,100,100,12,52.5,73.099999999999994,44.1,59.4,0,"Fibre","PlanetCampus",""]
["Montluçon (CMO)",222,100,100,18,137,162.1,128.80000000000001,152,0,"Fibre","PlanetCampus",""]
["Paul Collomp (CLE)",16,100,100,12,87.6,89.6,86.5,88.8,0,"Fibre","PlanetCampus",""]
["Poncillon",35,100,100,12,58.5,58.5,58.5,58.5,0,"Fibre","PlanetCampus",""]
["Résidence Dolet - Bâtiment A",399,100,100,22,143.9,212.9,114.6,164.2,0,"Fibre","SmartCampus",""]
["Résidence Dolet - Bâtiment B",199,100,100,22,94.7,129.5,76.400000000000006,109.2,0,"Fibre","PlanetCampus",""]
["Résidence Dolet - Bâtiments D1",119,100,100,21,57.5,85.8,52.5,69.099999999999994,0,"Fibre","SmartCampus",""]
["Résidence Dolet - Bâtiments D2",45,100,100,21,45.7,54.6,44.1,50.9,0,"Fibre","SmartCampus",""]
["Résidence Dolet - Bâtiments D3",77,100,100,21,43.2,64.2,38,52.2,0,"Fibre","SmartCampus",""]
["Résidence Dolet - Bâtiments E",160,100,100,21,61.4,95.6,49.1,74.2,0,"Fibre","SmartCampus",""]
["Résidence Dolet - Bâtiments F",138,100,100,22,104.5,107,103.9,106.3,0,"Fibre","SmartCampus",""]
["Résidence La Gare",133,100,100,21,67.400000000000006,100,46.7,77.2,0,"Fibre","SmartCampus",""]
["Résidence Pasteur",150,100,100,23,119.5,151.4,106.3,131.80000000000001,0,"Fibre","SmartCampus",""]

{"sheet":"CRETEIL","index":5,"n_rows":33,"n_cols":13,"rows_kept":33,"cut":false,"hidden":false,"merged":[]}
[]
[]
["Etablissement","NB Chb","Dispo (resp. SC) (%)","Dispo (toutes resp) (%)","LatMax (ms)","BPMin (Mb/s)","BPMoy (Mb/s)","BPMin 19h-23h (Mb/s)","BPMoy 19h-23h (Mb/s)","Nb de Chb fibrées","Nb de Chb en cours de fibrage"]
["CROUS CRETEIL",{"$f":"SUM(B8:B33)","v":3955},{"$f":"SUMPRODUCT(B8:B33,C8:C33)/SUM(B8:B33)","v":99.991848293299626},{"$f":"SUMPRODUCT(B8:B33,D8:D33)/SUM(B8:B33)","v":99.822594184576488},{"$f":"SUMPRODUCT(B8:B33,E8:E33)/SUM(B8:B33)","v":2.3180783817951958},{"$f":"SUMPRODUCT(B8:B33,F8:F33)/SUM(B8:B33)","v":116.46614412136536},{"$f":"SUMPRODUCT(B8:B33,G8:G33)/SUM(B8:B33)","v":164.11117572692794},{"$f":"SUMPRODUCT(B8:B33,H8:H33)/SUM(B8:B33)","v":93.20887484197219},{"$f":"SUMPRODUCT(B8:B33,I8:I33)/SUM(B8:B33)","v":132.54040455120102},{"$f":"SUMIFS(B8:B33,K8:K33,\"=Fibre\")","v":3955},{"$f":"SUMIFS(B8:B33,K8:K33,\"=Fibrage en cours\")","v":0}]
["","","","","","","","","",{"$f":"J4/B4","v":1},{"$f":"K4/B4","v":0}]
[]
["Résidence","NB Chb","Dispo (resp. SC) (%)","Dispo (toutes resp) (%)","LatMax (ms)","BPMin (Mb/s)","BPMoy (Mb/s)","BPMin 19h-23h (Mb/s)","BPMoy 19h-23h (Mb/s)","Hors GTR","Collecte","Type de service","Remarques"]
["Alfred Sisley",84,100,100,1,51.5,75.7,37.200000000000003,60.7,0,"Fibre","PlanetCampus",""]
["Boissy Saint leger",130,100,99.9,1,74.2,101.9,62,81.900000000000006,0,"Fibre","SmartCampus","Le 09/06/21 / responsabilité SmartCampus / Site injoignable / durée  : 0.0 heure(s) : Site injoignable\n                          Diagnostic : aucun équipement n'est joignable sur le site\n                          Périmètre de l'incident : l'ensemble du site.\n                          Impact de l'incident : coupure du service\n                          Le site a-t-il été informé? non\n\n                          Alerte Kiwi \"#21449027\" ouverte le 09/06/2021 à 19:16\n                          \n \nRésultat : Le service est rétabli sur le site Boissy Saint Leger - avenue de la Gare\n                          suite à la prise en charge de l'incident par nos équipes.\n"]
["Bondy",100,100,100,1,47.9,74.400000000000006,39.1,54.3,0,"Fibre","PlanetCampus",""]
["Campus de Bobigny",340,100,100,1,260,364.9,206.4,304.2,0,"Fibre","SmartCampus",""]
["Combs-la-Ville",162,100,100,2,116.9,149.19999999999999,110,127.6,0,"Fibre","SmartCampus",""]
["Condorcet Crous Créteil",46,100,99.63,1,79.5,86.5,70,83.1,0,"Fibre","SmartCampus","Le 03/06/21 / responsabilité SmartCampus / Site injoignable / durée  : 2.0 heure(s) : Site injoignable\n                          Diagnostic : aucun équipement n'est joignable sur le site\n                          Périmètre de l'incident : l'ensemble du site.\n                          Impact de l'incident : coupure du service\n                          Le site a-t-il été informé? non\n\n                          Alerte Kiwi \"#21448726\" ouverte le 03/06/2021 à 10:34\n                          \n \nRésultat : Le service est rétabli sur le site Condorcet Crous Créteil\n                          suite à la prise en charge de l'incident par nos équipes.\n"]
["Creteil Mail des Meches",91,100,100,3,65.2,89.4,55.9,72.3,0,"Fibre","PlanetCampus",""]
["CROUS CRETEIL / RÉSIDENCE DU KB",150,100,100,1,82.9,136.1,61.7,102.6,0,"Fibre","PlanetCampus",""]
["ENSAVT",172,100,100,1,101.4,142.1,92.2,115,0,"Fibre","PlanetCampus",""]
["Epinay",184,100,100,1,61.9,118.4,40.700000000000003,79.900000000000006,0,"Fibre","PlanetCampus",""]
["Eugène Pottier",170,100,100,1,86.5,133.30000000000001,54.7,99.4,0,"Fibre","SmartCampus",""]
["Frida Kahlo Crous Créteil",208,100,99.63,1,73.3,123.7,52.4,88.8,0,"Fibre","SmartCampus","Le 03/06/21 / responsabilité SmartCampus / Site injoignable / durée  : 2.0 heure(s) : Site injoignable\n                          Diagnostic : aucun équipement n'est joignable sur le site\n                          Périmètre de l'incident : l'ensemble du site.\n                          Impact de l'incident : coupure du service\n                          Le site a-t-il été informé? non\n\n                          Alerte Kiwi \"#21448727\" ouverte le 03/06/2021 à 10:34\n                          \n \nRésultat : Le service est rétabli sur le site Frida Kahlo Crous Créteil\n                          suite à la prise en charge de l'incident par nos équipes.\n"]
["Guynemer Crous Créteil",242,100,98.33,1,95.5,139.1,65.5,108.4,1,"Fibre","SmartCampus","Le 16/06/21 / responsabilité SmartCampus / Site injoignable / durée  : 12.0 heure(s) : Site injoignable\n                          Diagnostic : aucun équipement n'est joignable sur le site\n                          Périmètre de l'incident : l'ensemble du site.\n                          Impact de l'incident : coupure du service\n                          Le site a-t-il été informé? non\n\n                          Alerte Kiwi \"#21449382\" ouverte le 16/06/2021 à 23:12\n                          \n \nRésultat : Le service est rétabli sur le site Guynemer Crous Créteil\n                          suite à la prise en charge de l'incident par nos équipes.\n"]
["Hermitage Crous Créteil",308,100,100,1,115.3,171.8,81.599999999999994,135.80000000000001,0,"Fibre","SmartCampus",""]
["Ilot des Poiriers",220,100,100,1,243.1,308.39999999999998,217.5,266,0,"Fibre","PlanetCampus",""]
["Ilôt du Bel Air",157,100,100,1,71,135.1,38.5,90.8,0,"Fibre","PlanetCampus",""]
["Le Trident",99,100,100,3,64.2,87.2,53.6,71.2,0,"Fibre","SmartCampus",""]
["Lieusaint",125,100,100,3,50,90.7,31.5,65.8,0,"Fibre","SmartCampus",""]
["Lognes Crous Créteil",111,100,100,2,56.2,92.6,41.2,66.400000000000006,0,"Fibre","SmartCampus",""]
["Montesquieu",224,100,99.63,1,272.8,318.10000000000002,254.3,283.10000000000002,0,"Fibre","SmartCampus","Le 03/06/21 / responsabilité SmartCampus / Site injoignable / durée  : 2.0 heure(s) : Site injoignable\n                          Diagnostic : aucun équipement n'est joignable sur le site\n                          Périmètre de l'incident : l'ensemble du site.\n                          Impact de l'incident : coupure du service\n                          Le site a-t-il été informé? non\n\n                          Alerte Kiwi \"#21448729\" ouverte le 03/06/2021 à 10:34\n                          \n \nRésultat : Le service est rétabli sur le site Montesquieu\n                          suite à la prise en charge de l'incident par nos équipes.\n"]
["Pré St Gervais",104,99.69,99.15,1,61.2,85.6,51.1,70.400000000000006,0,"Fibre","SmartCampus","Le 03/06/21 / responsabilité SmartCampus / Site injoignable / durée  : 2.0 heure(s) : Site injoignable / service Wifirst totalement indisponible\nDiagnostic : Les équipements Wifirst sont injoignables ou les services Wifirst ne sont plus opérationnels\nPérimètre : l’ensemble du site\nImpact : Service interrompu\nIncident général chez le fournisseur d'accès internet : Tutor \nRésultat : Action(s) réalisée(s) : covage\nCommentaire :\n2021/06/03 15:48\tJaenescia Adjovi\tComment\tRésolution automatique à cause de l'évènement parent\n-------\nStatut modifié de \"Traitement de problème\" à \"Résolu\"\n\nLe 25/06/21 / responsabilité SmartCampus / Site injoignable / durée  : 3.0 heure(s) : Site injoignable\n                          Diagnostic : aucun équipement n'est joignable sur le site\n                          Périmètre de l'incident : l'ensemble du site.\n                          Impact de l'incident : coupure du service\n                          Le site a-t-il été informé? non\n\n                          Alerte Kiwi \"#21449858\" ouverte le 25/06/2021 à 14:22\n                          \n \nRésultat : Le service est rétabli sur le site Pré-Saint-Gervais\n                          suite à la prise en charge de l'incident par nos équipes.\n"]
["Raymond Fischesser",118,100,100,22,77.7,98.7,62.7,84.3,0,"Fibre","PlanetCampus",""]
["Résidence International",55,100,100,2,53.8,63.7,52.1,61.4,0,"Fibre","PlanetCampus",""]
["Stains",190,100,100,1,79.599999999999994,127.5,49.3,91.7,0,"Fibre","PlanetCampus",""]
["Torcy",113,100,100,2,125.6,157,106.5,135.6,0,"Fibre","SmartCampus",""]
["Tour de l'Illustration",52,100,99.63,33,52,66.8,34.700000000000003,57.6,0,"Fibre","SmartCampus","Le 03/06/21 / responsabilité SmartCampus / Site injoignable / durée  : 2.0 heure(s) : Site injoignable\n                          Diagnostic : aucun équipement n'est joignable sur le site\n                          Périmètre de l'incident : l'ensemble du site.\n                          Impact de l'incident : coupure du service\n                          Le site a-t-il été informé? non\n\n                          Alerte Kiwi \"#21448728\" ouverte le 03/06/2021 à 10:34\n                          \n \nRésultat : Le service est rétabli sur le site Tour de l'Illustration\n                          suite à la prise en charge de l'incident par nos équipes.\n"]

{"sheet":"PARIS","index":6,"n_rows":90,"n_cols":13,"rows_kept":90,"cut":false,"hidden":false,"merged":[]}
[]
[]
["Etablissement","NB Chb","Dispo (resp. SC) (%)","Dispo (toutes resp) (%)","LatMax (ms)","BPMin (Mb/s)","BPMoy (Mb/s)","BPMin 19h-23h (Mb/s)","BPMoy 19h-23h (Mb/s)","Nb de Chb fibrées","Nb de Chb en cours de fibrage"]
["CROUS de PARIS",{"$f":"SUM(B8:B90)","v":7860},{"$f":"SUMPRODUCT(B8:B90,C8:C90)/SUM(B8:B90)","v":99.588094147582709},{"$f":"SUMPRODUCT(B8:B90,D8:D90)/SUM(B8:B90)","v":99.37624809160306},{"$f":"SUMPRODUCT(B8:B90,E8:E90)/SUM(B8:B90)","v":3.0209923664122136},{"$f":"SUMPRODUCT(B8:B90,F8:F90)/SUM(B8:B90)","v":129.47418575063608},{"$f":"SUMPRODUCT(B8:B90,G8:G90)/SUM(B8:B90)","v":166.26306615776087},{"$f":"SUMPRODUCT(B8:B90,H8:H90)/SUM(B8:B90)","v":112.07891857506365},{"$f":"SUMPRODUCT(B8:B90,I8:I90)/SUM(B8:B90)","v":141.71951653944015},{"$f":"SUMIFS(B8:B90,K8:K90,\"=Fibre\")","v":7805},{"$f":"SUMIFS(B8:B90,K8:K90,\"=Fibrage en cours\")","v":0}]
["","","","","","","","","",{"$f":"J4/B4","v":0.99300254452926207},{"$f":"K4/B4","v":0}]
[]
["Résidence","NB Chb","Dispo (resp. SC) (%)","Dispo (toutes resp) (%)","LatMax (ms)","BPMin (Mb/s)","BPMoy (Mb/s)","BPMin 19h-23h (Mb/s)","BPMoy 19h-23h (Mb/s)","Hors GTR","Collecte","Type de service","Remarques"]
["Amiral Mouchez",52,100,99.84,2,56.8,64.8,50,61.3,0,"Fibre","SmartCampus","Le 01/06/21 / responsabilité SmartCampus / Site injoignable / durée  : 1.0 heure(s) : Site injoignable\n                          Diagnostic : aucun équipement n'est joignable sur le site\n                          Périmètre de l'incident : l'ensemble du site.\n                          Impact de l'incident : coupure du service\n                          Le site a-t-il été informé? non\n\n                          Alerte Kiwi \"#21448623\" ouverte le 01/06/2021 à 21:52\n                          \n \nRésultat : Le service est rétabli sur le site Amiral Mouchez\n                          suite à la prise en charge de l'incident par nos équipes.\n"]
["Andrée Chedid",33,100,100,1,45.9,52.4,41.4,49.4,0,"Fibre","PlanetCampus",""]
["Argonne",132,100,100,2,67.900000000000006,101.3,51.6,80.3,0,"Fibre","PlanetCampus",""]
["Auriol",50,100,100,2,58.5,63.8,55.2,61.5,0,"Fibre","SmartCampus",""]
["Avia",163,100,100,2,90,136,61.5,102.7,0,"Fibre","PlanetCampus",""]
["Avia 2",146,100,100,3,109.8,121.5,103.2,119.2,0,"Fibre","PlanetCampus",""]
["Bastille",72,100,100,2,53.9,70.400000000000006,45.7,58.9,0,"Fibre","SmartCampus",""]
["Bercy Crous",190,100,100,2,81.099999999999994,132,31.5,96.3,0,"Fibre","SmartCampus",""]
["Bessieres",42,100,99.92,2,46.1,57.7,36.5,51.5,0,"Fibre","SmartCampus","Le 22/06/21 / responsabilité SmartCampus / Site injoignable / durée  : 0.0 heure(s) : Site injoignable\n                          Diagnostic : aucun équipement n'est joignable sur le site\n                          Périmètre de l'incident : l'ensemble du site.\n                          Impact de l'incident : coupure du service\n                          Le site a-t-il été informé? non\n\n                          Alerte Kiwi \"#21449671\" ouverte le 22/06/2021 à 11:46\n                          \n \nRésultat : Le service est rétabli sur le site Bessieres\n                          suite à la prise en charge de l'incident par nos équipes.\n\n\nLe 22/06/21 / responsabilité SmartCampus / Site injoignable / durée  : 0.0 heure(s) : Site injoignable\n                          Diagnostic : aucun équipement n'est joignable sur le site\n                          Périmètre de l'incident : l'ensemble du site.\n                          Impact de l'incident : coupure du service\n                          Le site a-t-il été informé? non\n\n                          Alerte Kiwi \"#21449678\" ouverte le 22/06/2021 à 13:00\n                          \n \nRésultat : Le service est rétabli sur le site Bessieres\n                          suite à la prise en charge de l'incident par nos équipes.\n"]
["Bisson",29,100,100,1,43.1,51.3,39.9,47.8,0,"Fibre","PlanetCampus",""]
["Bonaparte",63,100,100,2,46.9,65.599999999999994,38.299999999999997,55.6,0,"Fibre","PlanetCampus",""]
["Carmes",34,100,100,2,45,53.7,36.9,47.9,0,"Fibre","SmartCampus",""]
["Cascades",27,100,100,2,47.5,51.7,46.3,50.3,0,"Fibre","SmartCampus",""]
["Cavé",35,100,100,3,50.2,59.6,43.9,55,0,"Fibre","PlanetCampus",""]
["Championnet 1",33,100,100,3,47,53.6,45.3,51.8,0,"Fibre","SmartCampus",""]
["Championnet 2",33,100,100,3,39.9,51.9,33.6,44.1,0,"Fibre","SmartCampus",""]
["Chevaleret",166,100,99.86,2,109.7,144.5,86.9,122.5,0,"Fibre","SmartCampus","Le 01/06/21 / responsabilité SmartCampus / Site injoignable / durée  : 1.0 heure(s) : Site injoignable\n                          Diagnostic : aucun équipement n'est joignable sur le site\n                          Périmètre de l'incident : l'ensemble du site.\n                          Impact de l'incident : coupure du service\n                          Le site a-t-il été informé? non\n\n                          Alerte Kiwi \"#21448605\" ouverte le 01/06/2021 à 11:58\n                          \n \nRésultat : Le service est rétabli sur le site Chevaleret\n                          suite à la prise en charge de l'incident par nos équipes.\n"]
["Choisy",32,100,100,2,49,54.1,47.7,53.2,0,"Fibre","SmartCampus",""]
["Citeaux",344,100,100,2,513.20000000000005,568.9,500.8,529.6,0,"Fibre","SmartCampus",""]
["Concordia",121,100,100,2,70.599999999999994,92.8,57.4,78,0,"Fibre","PlanetCampus",""]
["Convention",34,100,100,2,45.8,60.8,39.9,52.5,0,"Fibre","SmartCampus",""]
["Coubertin",125,100,100,15,70.900000000000006,108.4,55,83.3,0,"Fibre","SmartCampus",""]
["Cour des Noues",64,100,100,2,49.7,71.5,42.8,57.7,0,"Fibre","SmartCampus",""]
["CROUS Aubervilliers",93,100,99.96,2,67.900000000000006,80.099999999999994,56.3,73,0,"Fibre","PlanetCampus","Le 23/06/21 / responsabilité SmartCampus / Site injoignable / durée  : 0.0 heure(s) : Site injoignable / service Wifirst totalement indisponible\nDiagnostic : Les équipements Wifirst sont injoignables ou les services Wifirst ne sont plus opérationnels\nPérimètre : l’ensemble du site\nImpact : Service interrompu \nRésultat : Action(s) réalisée(s) :\nCommentaire :"]
["Dareau 1 & 2",268,100,100,2,101.6,162.4,80.5,119.9,0,"Fibre","PlanetCampus",""]
["Daviel",271,100,100,2,93.6,166.8,69.3,127.2,0,"Fibre","PlanetCampus",""]
["Delaître",40,100,100,2,45,60.3,33.200000000000003,53.1,0,"Fibre","SmartCampus",""]
["Delphine Seyrig",184,100,100,1,78.2,125.2,59.2,92.5,0,"Fibre","SmartCampus",""]
["Des Haies",64,100,100,3,36.700000000000003,61.2,23.6,49.7,0,"Fibre","SmartCampus",""]
["Docteur Yersin",54,100,100,2,48.7,61.5,41.5,54.1,0,"Fibre","SmartCampus",""]
["Domrémy",70,100,100,2,60.6,72.5,52.7,64.5,0,"Fibre","SmartCampus",""]
["Fontaine au roi 1",62,100,100,2,48.8,64.3,44.1,54.4,0,"Fibre","SmartCampus",""]
["Fontaine au roi 2",46,100,100,5,47.3,60.3,42.9,54.3,0,"Fibre","SmartCampus",""]
["Forest Cavalotti",42,100,100,2,36.4,55.2,29.8,46.4,0,"Fibre","SmartCampus",""]
["Francis de Croisset",351,100,100,3,471.3,546.9,417.1,486.7,0,"Fibre","SmartCampus",""]
["Frères Flavien",121,100,100,1,39.200000000000003,69.5,21.1,48.3,0,"Fibre","SmartCampus",""]
["Frères Goncourt",87,100,100,2,51.7,71.8,49.1,60.6,0,"Fibre","PlanetCampus",""]
["Goutte d'Or",25,100,100,3,39.6,46.4,38.200000000000003,43.7,0,"Fibre","SmartCampus",""]
["Grands Moulins",55,100,100,2,50.1,65.599999999999994,36.200000000000003,55.2,0,"Fibre","SmartCampus",""]
["Hostater",10,100,100,2,38.700000000000003,41.5,36.6,40.4,0,"Fibre","SmartCampus",""]
["Indochine",139,100,100,2,53.3,98.3,29.1,70.099999999999994,0,"Fibre","PlanetCampus",""]
["Julie Daubié",70,100,94.57,11,26.5,42.3,19.7,31.8,1,"Fibre","SmartCampus","Le 19/06/21 / responsabilité SmartCampus / Site injoignable / durée  : 39.0 heure(s) : Site injoignable\n                          Diagnostic : aucun équipement n'est joignable sur le site\n                          Périmètre de l'incident : l'ensemble du site.\n                          Impact de l'incident : coupure du service\n                          Le site a-t-il été informé? non\n\n                          Alerte Kiwi \"#21449525\" ouverte le 19/06/2021 à 18:28\n                          \n \nRésultat : site à nouveau joignable"]
["La Garenne",45,100,100,2,52,59.6,45.4,54.1,0,"Fibre","SmartCampus",""]
["Laghouat",38,100,100,3,45.2,57.6,40.200000000000003,50.4,0,"Fibre","PlanetCampus",""]
["Louise Bourgeois",129,100,94.57,2,54.9,93.4,35.799999999999997,71.3,1,"Fibre","SmartCampus","Le 19/06/21 / responsabilité SmartCampus / Site injoignable / durée  : 39.0 heure(s) : Site injoignable\n                          Diagnostic : aucun équipement n'est joignable sur le site\n                          Périmètre de l'incident : l'ensemble du site.\n                          Impact de l'incident : coupure du service\n                          Le site a-t-il été informé? non\n\n                          Alerte Kiwi \"#21449525\" ouverte le 19/06/2021 à 18:28\n                          \n \nRésultat : site à nouveau joignable"]
["Lourcine bâtiment 4",312,100,100,2,144.9,192,131.9,160.9,0,"Fibre","SmartCampus",""]
["Luneville",50,100,100,20,55,62.8,48.2,57.5,0,"Fibre","SmartCampus",""]
["Martin Luther King",152,100,100,2,98.8,146,76.8,115,0,"Fibre","SmartCampus",""]
["Mazet",53,88.42,78.12,2,45.9,61.1,40.4,53.7,2,"Fibre","SmartCampus","Le 31/03/21 / responsabilité SmartCampus / Site injoignable / durée  : 603.0 heure(s) : Site injoignable / service Wifirst totalement indisponible\nDiagnostic : Les équipements Wifirst sont injoignables ou les services Wifirst ne sont plus opérationnels\nPérimètre : l’ensemble du site\nImpact : Service interrompu \nRésultat : Action(s) réalisée(s) :\nCommentaire :\n\nLe 18/06/21 / responsabilité SmartCampus / Site injoignable / durée  : 83.0 heure(s) : Site injoignable / service Wifirst totalement indisponible\nDiagnostic : Les équipements Wifirst sont injoignables ou les services Wifirst ne sont plus opérationnels\nPérimètre : l’ensemble du site\nImpact : Service interrompu \nRésultat : Action(s) réalisée(s) :\nCommentaire :\nCable legerement débranché au niveau du rad opérateur.\nCable rebranché.\nTest de connexion Natbox OK.\nVérification uptime interface natbox et switch Ok.\nLa connexion ligne 3 est mauvaise beacuoup de baggot de connexion.\ntest modem Ok.\nOuverture ticket sfr: C26585129.\n\nLe 29/06/21 / responsabilité SmartCampus / Site injoignable / durée  : 0.0 heure(s) : Site injoignable\n                          Diagnostic : aucun équipement n'est joignable sur le site\n                          Périmètre de l'incident : l'ensemble du site.\n                          Impact de l'incident : coupure du service\n                          Le site a-t-il été informé? non\n\n                          Alerte Kiwi \"#21449988\" ouverte le 29/06/2021 à 14:02\n                          \n \nRésultat : Le service est rétabli sur le site Mazet\n                          suite à la prise en charge de l'incident par nos équipes.\n"]
["Ménilmontant 1",18,100,100,7,25.8,28.4,24.7,27.7,0,"ADSL","SmartCampus",""]
["Ménilmontant 2",65,100,100,2,51,67.2,45,58.1,0,"Fibre","SmartCampus",""]
["Michel de Bourges",51,100,100,2,53.2,62.3,49.8,56.1,0,"Fibre","SmartCampus",""]
["Mouzaia",50,100,100,1,41.7,71,25.8,52.2,0,"Fibre","SmartCampus",""]
["Myrha 1",24,100,100,3,42.2,47.7,39.299999999999997,44.4,0,"Fibre","SmartCampus",""]
["Myrha 2",19,100,100,3,442.6,448.2,440.4,445.5,0,"ADSL","SmartCampus",""]
["Nicole Reine Lepaute",207,100,100,2,81.599999999999994,130.80000000000001,63.7,92.3,0,"Fibre","PlanetCampus",""]
["Observatoire",47,100,100,3,96.5,98.4,92.9,97.5,0,"Fibre","PlanetCampus",""]
["ORNANO 1",141,100,100,6,60.1,76.5,58.4,68.2,0,"Fibre","SmartCampus",""]
["ORNANO 2",77,100,100,4,72.599999999999994,84.2,66.8,78.099999999999994,0,"Fibre","SmartCampus",""]
["Ourcq 1",91,100,100,12,55.1,75.900000000000006,46.6,65.599999999999994,0,"Fibre","SmartCampus",""]
["Pajol 1",56,100,100,2,47.1,61.3,32.299999999999997,52.6,0,"Fibre","SmartCampus",""]
["Pajol 2",143,100,100,1,118.3,153.80000000000001,103.4,126.6,0,"Fibre","PlanetCampus",""]
["Parmentier",55,100,100,2,53.5,62.9,48.6,57.8,0,"Fibre","SmartCampus",""]
["Philippe de Girard 1",59,100,100,2,47.3,63.2,31.3,54.9,0,"Fibre","SmartCampus",""]
["Philippe de Girard 2",31,100,100,2,45.5,56.2,39.200000000000003,50.5,0,"Fibre","SmartCampus",""]
["Philippe de Girard 3",62,100,100,3,76.5,80.900000000000006,76.2,80.8,0,"Fibre","SmartCampus",""]
["Pitié Salpétrière",119,100,100,2,53.6,81.599999999999994,36.700000000000003,63.9,0,"Fibre","PlanetCampus",""]
["Porte de Vanves",67,100,100,2,62.3,79.7,55,69.099999999999994,0,"Fibre","SmartCampus",""]
["Porte des Poissonniers ",243,100,100,3,55.9,117.6,21.3,73.099999999999994,0,"Fibre","SmartCampus",""]
["Poulet",36,100,100,3,41,53.5,32.9,46.1,0,"Fibre","SmartCampus",""]
["Reims",41,100,100,2,41.8,54,37.799999999999997,49.5,0,"Fibre","PlanetCampus",""]
["Résidence ALESIA",47,100,100,5,74.7,84.7,70.900000000000006,79.3,0,"Fibre","PlanetCampus",""]
["Residence CHAMPOLLION",18,100,100,2,52.2,53.6,52.2,53.6,0,"ADSL","PlanetCampus",""]
["Résidence Jourdan",365,100,100,2,450.3,544,416.3,480.3,0,"Fibre","PlanetCampus",""]
["REUILLY",129,100,100,0,90,90,90,90,0,"Fibre","SmartCampus",""]
["Rollin",57,100,100,2,50,64.099999999999994,46.4,55.8,0,"Fibre","SmartCampus",""]
["Romy Schneider",13,100,100,3,40.799999999999997,43.6,39.6,42.6,0,"Fibre","SmartCampus",""]
["Rosa Parks",146,100,100,2,94.8,142.69999999999999,69.3,105.5,0,"Fibre","SmartCampus",""]
["Saint Jacques - Paris",55,100,100,2,57.5,68.599999999999994,52.9,63.1,0,"Fibre","SmartCampus",""]
["Sarrailh",184,85.74,85.74,2,114.4,145.19999999999999,88.7,125.2,1,"Fibre","SmartCampus","Le 29/05/20 / responsabilité SmartCampus / Site injoignable / durée  : 4514.0 heure(s) : Site injoignable\n                          Diagnostic : aucun équipement n'est joignable sur le site\n                          Périmètre de l'incident : l'ensemble du site.\n                          Impact de l'incident : coupure du service\n                          Le site a-t-il été informé? non\n\n                          Alerte Kiwi #11717379 ouverte le 29/05/2020 à 11:06\n                          \n \nRésultat : Site de nouveau joignable"]
["Thionville",97,100,100,28,53.1,72.8,49.1,62.2,0,"Fibre","SmartCampus",""]
["Tombe Issoire",21,100,100,2,43.6,47.3,39.9,45.3,0,"Fibre","SmartCampus",""]
["Vaugirard",175,100,100,2,105.3,146.30000000000001,90.1,120.9,0,"Fibre","PlanetCampus",""]

{"sheet":"GRENOBLE","index":7,"n_rows":42,"n_cols":13,"rows_kept":42,"cut":false,"hidden":false,"merged":[]}
[]
[]
["Etablissement","NB Chb","Dispo (resp. SC) (%)","Dispo (toutes resp) (%)","LatMax (ms)","BPMin (Mb/s)","BPMoy (Mb/s)","BPMin 19h-23h (Mb/s)","BPMoy 19h-23h (Mb/s)","Nb de Chb fibrées","Nb de Chb en cours de fibrage"]
["CROUS GRENOBLE",{"$f":"SUM(B8:B42)","v":8217},{"$f":"SUMPRODUCT(B8:B42,C8:C42)/SUM(B8:B42)","v":100},{"$f":"SUMPRODUCT(B8:B42,D8:D42)/SUM(B8:B42)","v":99.985615188024838},{"$f":"SUMPRODUCT(B8:B42,E8:E42)/SUM(B8:B42)","v":12.94292320798345},{"$f":"SUMPRODUCT(B8:B42,F8:F42)/SUM(B8:B42)","v":274.71477424850923},{"$f":"SUMPRODUCT(B8:B42,G8:G42)/SUM(B8:B42)","v":345.81680662042112},{"$f":"SUMPRODUCT(B8:B42,H8:H42)/SUM(B8:B42)","v":236.39690884751124},{"$f":"SUMPRODUCT(B8:B42,I8:I42)/SUM(B8:B42)","v":297.4570646221249},{"$f":"SUMIFS(B8:B42,K8:K42,\"=Fibre\")","v":7817},{"$f":"SUMIFS(B8:B42,K8:K42,\"=Fibrage en cours\")","v":0}]
["","","","","","","","","",{"$f":"J4/B4","v":0.95132043324814408},{"$f":"K4/B4","v":0}]
[]
["Résidence","NB Chb","Dispo (resp. SC) (%)","Dispo (toutes resp) (%)","LatMax (ms)","BPMin (Mb/s)","BPMoy (Mb/s)","BPMin 19h-23h (Mb/s)","BPMoy 19h-23h (Mb/s)","Hors GTR","Collecte","Type de service","Remarques"]
["Amandine",80,100,100,15,69.599999999999994,80.599999999999994,62.7,73.7,0,"Fibre","PlanetCampus",""]
["Arsonval",60,100,100,17,63.3,66.7,62.4,65,0,"Fibre","SmartCampus",""]
["Bourget du Lac DJINN",120,100,100,20,866.1,886.9,849.3,872.7,0,"Fibre","SmartCampus",""]
["Bourget du Lac LES ARVES",306,100,100,14,825.4,867.5,802.3,837.8,0,"Fibre","SmartCampus",""]
["Cambridge - Grenoble",303,100,100,11,158.9,213.7,123.4,175.5,0,"Fibre","PlanetCampus",""]
["Carmagnole",78,100,100,13,62.8,76.8,55.3,67,0,"Fibre","PlanetCampus",""]
["Clacton",80,100,100,8,57.2,75.400000000000006,47.7,63.8,0,"Fibre","PlanetCampus",""]
["Comte Vert",170,100,100,15,150,164.2,136.80000000000001,155.1,0,"Fibre","SmartCampus",""]
["Derodon",84,100,100,16,63.3,78.7,51.2,67.5,0,"Fibre","SmartCampus",""]
["Filaos",89,100,100,16,81.8,88.6,78.8,85.1,0,"Fibre","SmartCampus",""]
["Foyer des Etudiants des Alpes 295",126,100,100,13,56.9,76.599999999999994,52.2,64.099999999999994,0,"Fibre","SmartCampus",""]
["Gabriel Faure",316,100,100,13,138.5,185.8,125.7,157.5,0,"Fibre","SmartCampus",""]
["Galilée 4032",65,100,100,11,55.5,69.900000000000006,49.5,60.8,0,"Fibre","SmartCampus",""]
["Halle Brun",81,100,100,17,67.8,80.8,59.8,75.7,0,"Fibre","PlanetCampus",""]
["Hermite",16,100,100,14,43.4,45,41.8,44.5,0,"Fibre","PlanetCampus",""]
["Jacob Bellecombette",165,100,100,13,144.19999999999999,163.9,129,150.30000000000001,0,"Fibre","SmartCampus",""]
["La Cardinière",102,100,100,13,63.8,79.7,55,70.099999999999994,0,"Fibre","SmartCampus",""]
["La Tronche",315,100,100,15,182.9,229.8,162.30000000000001,200.9,0,"Fibre","PlanetCampus",""]
["Le Chaney",273,100,100,15,128.1,170.4,97,141.69999999999999,0,"Fibre","SmartCampus",""]
["Le Home des etudiants",141,100,100,10,115.1,144.6,105.8,126.4,0,"Fibre","PlanetCampus",""]
["Les Alpilles",66,100,99.89,16,60,70.900000000000006,55,64.8,0,"Fibre","PlanetCampus","Le 30/06/21 / responsabilité SmartCampus / Site injoignable / durée  : 0.0 heure(s) : Site injoignable\n                          Diagnostic : aucun équipement n'est joignable sur le site\n                          Périmètre de l'incident : l'ensemble du site.\n                          Impact de l'incident : coupure du service\n                          Le site a-t-il été informé? non\n\n                          Alerte Kiwi \"#21450014\" ouverte le 30/06/2021 à 08:18\n                          \n \nRésultat : Le service est rétabli sur le site Les Alpilles\n                          suite à la prise en charge de l'incident par nos équipes.\n"]
["Les Moulins Valence",64,100,100,10,65.2,71.7,62.2,68.2,0,"Fibre","SmartCampus",""]
["Magnanerie",18,100,100,17,44.4,50,42.4,46.6,0,"Fibre","PlanetCampus",""]
["Maison des étudiants - Grenoble",256,100,100,11,118.8,155.9,78.8,127.1,0,"Fibre","PlanetCampus",""]
["Marie Reynoard",400,100,100,0,0,0,0,0,0,"ADSL","PlanetCampus",""]
["Olympique Grenoble",285,100,100,14,138,179.4,125,150.30000000000001,0,"Fibre","PlanetCampus",""]
["Rabot",488,100,100,14,206.8,285.60000000000002,96.2,230.2,0,"Fibre","SmartCampus",""]
["Résidence Berlioz - Domaine universitaire",900,100,100,13,408.8,536.5,345.6,444,0,"Fibre","SmartCampus",""]
["Résidence Les Nocturnes de Fauré",150,100,99.69,36,94.3,116.9,87.4,103.1,0,"Fibre","SmartCampus","Le 16/06/21 / responsabilité SmartCampus / Site injoignable / durée  : 2.0 heure(s) : Site injoignable\n                          Diagnostic : aucun équipement n'est joignable sur le site\n                          Périmètre de l'incident : l'ensemble du site.\n                          Impact de l'incident : coupure du service\n                          Le site a-t-il été informé? non\n\n                          Alerte Kiwi \"#21449349\" ouverte le 16/06/2021 à 12:18\n                          \n \nRésultat : Action(s) réalisée(s) :\nCommentaire :"]
["Résidence Les Taillées",200,100,100,14,106.6,148.80000000000001,91.6,119.6,0,"Fibre","SmartCampus",""]
["Résidence Ouest",1074,100,99.94,13,514,638.20000000000005,440.3,542.9,0,"Fibre","SmartCampus","Le 22/06/21 / responsabilité SmartCampus / Site injoignable / durée  : 0.0 heure(s) : Site injoignable\n                          Diagnostic : aucun équipement n'est joignable sur le site\n                          Périmètre de l'incident : l'ensemble du site.\n                          Impact de l'incident : coupure du service\n                          Le site a-t-il été informé? non\n\n                          Alerte Kiwi \"#21449684\" ouverte le 22/06/2021 à 14:24\n                          \n \nRésultat : Le service est rétabli sur le site Ouest\n                          suite à la prise en charge de l'incident par nos équipes.\n"]
["Résidences Condillac B et Marie Reynoard",933,100,100,11,445.7,610,396.4,516,0,"Fibre","SmartCampus",""]
["Simone Veil (CROUS GRENOBLE)",120,100,100,15,131.9,161.9,110,141.6,0,"Fibre","SmartCampus",""]
["Terralis Pont Carpin",116,100,100,10,108.3,124.2,104.5,115.7,0,"Fibre","SmartCampus",""]
["Tom Morel",177,100,100,15,94.1,148.6,57.2,105.8,0,"Fibre","PlanetCampus",""]

{"sheet":"LILLE","index":8,"n_rows":50,"n_cols":13,"rows_kept":50,"cut":false,"hidden":false,"merged":[]}
[]
[]
["Etablissement","NB Chb","Dispo (resp. SC) (%)","Dispo (toutes resp) (%)","LatMax (ms)","BPMin (Mb/s)","BPMoy (Mb/s)","BPMin 19h-23h (Mb/s)","BPMoy 19h-23h (Mb/s)","Nb de Chb fibrées","Nb de Chb en cours de fibrage"]
["CROUS LILLE",{"$f":"SUM(B8:B50)","v":10072},{"$f":"SUMPRODUCT(B8:B50,C8:C50)/SUM(B8:B50)","v":99.98018069896743},{"$f":"SUMPRODUCT(B8:B50,D8:D50)/SUM(B8:B50)","v":99.975296862589346},{"$f":"SUMPRODUCT(B8:B50,E8:E50)/SUM(B8:B50)","v":6.0915409054805405},{"$f":"SUMPRODUCT(B8:B50,F8:F50)/SUM(B8:B50)","v":257.9045869737887},{"$f":"SUMPRODUCT(B8:B50,G8:G50)/SUM(B8:B50)","v":323.96390984908658},{"$f":"SUMPRODUCT(B8:B50,H8:H50)/SUM(B8:B50)","v":217.0510524225576},{"$f":"SUMPRODUCT(B8:B50,I8:I50)/SUM(B8:B50)","v":277.16742454328835},{"$f":"SUMIFS(B8:B50,K8:K50,\"=Fibre\")","v":10052},{"$f":"SUMIFS(B8:B50,K8:K50,\"=Fibrage en cours\")","v":0}]
["","","","","","","","","",{"$f":"J4/B4","v":0.99801429706115963},{"$f":"K4/B4","v":0}]
[]
["Résidence","NB Chb","Dispo (resp. SC) (%)","Dispo (toutes resp) (%)","LatMax (ms)","BPMin (Mb/s)","BPMoy (Mb/s)","BPMin 19h-23h (Mb/s)","BPMoy 19h-23h (Mb/s)","Hors GTR","Collecte","Type de service","Remarques"]
["Albert Camus",997,100,100,5,341,473.2,273,379.6,0,"Fibre","SmartCampus",""]
["Albert Chatelet",627,100,100,5,292.2,402.2,231.7,321,0,"Fibre","SmartCampus",""]
["Arsenal des Postes",109,100,100,5,79.8,100.7,71.7,89.8,0,"Fibre","PlanetCampus",""]
["Bachelard",827,100,100,5,354.3,447.2,322.10000000000002,379.7,0,"Fibre","SmartCampus",""]
["Bas Lievin A",150,100,100,4,68.400000000000006,103.4,57.3,78.5,0,"Fibre","SmartCampus",""]
["Bas Lievin B",156,100,100,4,69.7,104.9,44.8,83.3,0,"Fibre","SmartCampus",""]
["Bethune - Gerard Philippe",298,100,100,5,538,581.6,527.70000000000005,550.79999999999995,0,"Fibre","SmartCampus",""]
["Boulevard de l'Ouest",210,100,100,5,75.7,129.5,58.3,96.4,0,"Fibre","SmartCampus",""]
["Courmont",104,100,100,5,72.900000000000006,98,64.5,80.599999999999994,0,"Fibre","PlanetCampus",""]
["Evariste Galois",792,100,100,0,326.5,326.5,326.5,326.5,0,"Fibre","SmartCampus",""]
["Famars",150,99.97,99.97,9,92.2,122.1,84.1,103.6,0,"Fibre","PlanetCampus","Le 07/06/21 / responsabilité SmartCampus / Site injoignable / durée  : 0.0 heure(s) : Incident Général dans le 59, validé avec SFR, en cours de résolution\n \nRésultat : Action(s) réalisée(s) :\nCommentaire : Incident SFR en cours depuis cette heure sur un PE SFR."]
["Fives",96,100,100,5,94,106.2,86.1,98.4,0,"Fibre","SmartCampus",""]
["Georges Lefevre",107,100,100,5,86.4,106.7,73.7,96.4,0,"Fibre","PlanetCampus",""]
["Gustave Ansart",95,99.97,99.97,8,69.5,95.9,67.7,87.3,0,"Fibre","SmartCampus","Le 07/06/21 / responsabilité SmartCampus / Site injoignable / durée  : 0.0 heure(s) : Incident Général dans le 59, validé avec SFR, en cours de résolution\n \nRésultat : Action(s) réalisée(s) :\nCommentaire : Incident SFR en cours depuis cette heure sur un PE SFR."]
["Gustave Eiffel",353,100,99.87,5,148.1,220.7,124.3,177.2,0,"Fibre","SmartCampus","Le 02/06/21 / responsabilité SmartCampus / Site injoignable / durée  : 0.0 heure(s) : Site injoignable\n                          Diagnostic : aucun équipement n'est joignable sur le site\n                          Périmètre de l'incident : l'ensemble du site.\n                          Impact de l'incident : coupure du service\n                          Le site a-t-il été informé? non\n\n                          Alerte Kiwi \"#21448644\" ouverte le 02/06/2021 à 09:02\n                          \n \nRésultat : Le service est rétabli sur le site Gustave Eiffel\n                          suite à la prise en charge de l'incident par nos équipes.\n"]
["Helene Boucher Villeneuve",780,100,100,5,375.6,452.5,341.9,400,0,"Fibre","SmartCampus",""]
["Ilot gare",217,100,100,5,67.7,123,51.8,83.8,0,"Fibre","SmartCampus",""]
["Jean Mermoz A et B (Lille)",231,99.27,99.27,5,193.7,235.7,167.7,204.1,1,"Fibre","PlanetCampus","Le 04/06/21 / responsabilité SmartCampus / Site injoignable / durée  : 5.0 heure(s) : Site injoignable / service Wifirst totalement indisponible\nDiagnostic : Les équipements Wifirst sont injoignables ou les services Wifirst ne sont plus opérationnels\nPérimètre : l’ensemble du site\nImpact : Service interrompu \nRésultat : Action(s) réalisée(s) : ticket opé\nCommentaire :Information clôture : 0PE/RES - Bonjour, le service est rétabli suite à notre réparation dans une BPE de la boucle locale fibreNous restons en attente de votre confirmationSans retour de votre part, le ticket sera clos automatiquementCordialement."]
["Jean ZAY - Lille",187,100,100,7,41.7,66,24.8,50.7,0,"Fibre","SmartCampus",""]
["Jules Mousseron",788,99.97,99.97,8,663,802.6,440.6,692.3,0,"Fibre","PlanetCampus","Le 07/06/21 / responsabilité SmartCampus / Site injoignable / durée  : 0.0 heure(s) : Incident Général dans le 59, validé avec SFR, en cours de résolution\n \nRésultat : Action(s) réalisée(s) :\nCommentaire : Incident SFR en cours depuis cette heure sur un PE SFR."]
["L'Artois",96,100,100,6,104.3,123.8,100.1,111.2,0,"Fibre","PlanetCampus",""]
["La Citadelle",34,100,100,6,53,61.6,45.3,55.6,0,"Fibre","PlanetCampus",""]
["Le Corbusier",100,100,100,5,86.3,105,83.1,96.7,0,"Fibre","PlanetCampus",""]
["Les Tertiales",66,100,100,5,130.80000000000001,181.2,116.7,148.6,0,"Fibre","SmartCampus",""]
["Les Tilleuls",112,100,100,5,69,97.5,49.8,79.2,0,"Fibre","PlanetCampus",""]
["Maupassant",337,100,100,5,200,261.39999999999998,162.4,212.5,0,"Fibre","SmartCampus",""]
["Moulin parc centre",119,100,100,5,126.1,143.1,116.6,130.1,0,"Fibre","SmartCampus",""]
["Pont de bois",277,100,100,5,127.3,188.5,112.3,146.1,0,"Fibre","SmartCampus",""]
["Pythagore",51,100,100,8,70.2,75.3,67.8,73.5,0,"Fibre","SmartCampus",""]
["Résidence Didier",150,100,100,6,87.6,118.8,74.400000000000006,97.7,0,"Fibre","SmartCampus",""]
["Residence Evariste Galois 2",344,100,100,5,107.8,189.3,94.3,138,0,"Fibre","PlanetCampus",""]
["Résidence Gambetta",54,100,100,20,53.6,63.4,52.4,58.5,0,"Fibre","PlanetCampus",""]
["Résidence Grand Rue",38,100,100,7,65.400000000000006,72.8,59.1,68.5,0,"Fibre","PlanetCampus",""]
["Résidence La Liberté",19,100,100,7,35.700000000000003,44,33.799999999999997,42.1,0,"Fibre","PlanetCampus",""]
["Résidence Liévin",50,100,100,6,73,78.7,70.3,75.900000000000006,0,"Fibre","PlanetCampus",""]
["Résidence René Barjavel",120,100,100,6,135.9,154.9,127.3,144.80000000000001,0,"Fibre","PlanetCampus",""]
["Résidence universitaire de Lens",100,100,100,5,54.9,89.4,40.1,64,0,"Fibre","SmartCampus",""]
["Robespierre",297,100,100,5,115.1,165.2,95.9,135.30000000000001,0,"Fibre","SmartCampus",""]
["Saint Roch - Bleriot",55,100,99.94,14,75.900000000000006,84.5,73.3,79.599999999999994,0,"Fibre","PlanetCampus","Le 24/06/21 / responsabilité SmartCampus / Site injoignable / durée  : 0.0 heure(s) : Site injoignable\n                          Diagnostic : aucun équipement n'est joignable sur le site\n                          Périmètre de l'incident : l'ensemble du site.\n                          Impact de l'incident : coupure du service\n                          Le site a-t-il été informé? non\n\n                          Alerte Kiwi \"#21449791\" ouverte le 24/06/2021 à 11:08\n                          \n \nRésultat : Le service est rétabli sur le site Saint Roch (Bleriot)\n                          suite à la prise en charge de l'incident par nos équipes.\n"]
["Sainte Barbe",20,100,100,11,446,448.7,445.6,448.1,0,"ADSL","PlanetCampus",""]
["Templiers",41,100,100,8,67.3,75.400000000000006,66.2,71.7,0,"Fibre","PlanetCampus",""]
["Tour Danrémont",18,100,100,9,43.5,46.4,42.1,44.9,0,"Fibre","PlanetCampus",""]
["Triolo A-B-C",300,100,100,36,149.9,182.1,145.4,159.1,0,"Fibre","SmartCampus",""]

{"sheet":"LIMOGES","index":9,"n_rows":15,"n_cols":13,"rows_kept":15,"cut":false,"hidden":false,"merged":[]}
[]
[]
["Etablissement","NB Chb","Dispo (resp. SC) (%)","Dispo (toutes resp) (%)","LatMax (ms)","BPMin (Mb/s)","BPMoy (Mb/s)","BPMin 19h-23h (Mb/s)","BPMoy 19h-23h (Mb/s)","Nb de Chb fibrées","Nb de Chb en cours de fibrage"]
["CROUS LIMOGES",{"$f":"SUM(B8:B15)","v":1765},{"$f":"SUMPRODUCT(B8:B15,C8:C15)/SUM(B8:B15)","v":100},{"$f":"SUMPRODUCT(B8:B15,D8:D15)/SUM(B8:B15)","v":99.986759206798865},{"$f":"SUMPRODUCT(B8:B15,E8:E15)/SUM(B8:B15)","v":19.391501416430597},{"$f":"SUMPRODUCT(B8:B15,F8:F15)/SUM(B8:B15)","v":378.62368271954676},{"$f":"SUMPRODUCT(B8:B15,G8:G15)/SUM(B8:B15)","v":459.40339943342775},{"$f":"SUMPRODUCT(B8:B15,H8:H15)/SUM(B8:B15)","v":350.11569405099152},{"$f":"SUMPRODUCT(B8:B15,I8:I15)/SUM(B8:B15)","v":399.58577903682726},{"$f":"SUMIFS(B8:B15,K8:K15,\"=Fibre\")","v":1765},{"$f":"SUMIFS(B8:B15,K8:K15,\"=Fibrage en cours\")","v":0}]
["","","","","","","","","",{"$f":"J4/B4","v":1},{"$f":"K4/B4","v":0}]
[]
["Résidence","NB Chb","Dispo (resp. SC) (%)","Dispo (toutes resp) (%)","LatMax (ms)","BPMin (Mb/s)","BPMoy (Mb/s)","BPMin 19h-23h (Mb/s)","BPMoy 19h-23h (Mb/s)","Hors GTR","Collecte","Type de service","Remarques"]
["Beaublanc",56,100,100,13,60.2,70.900000000000006,57.1,66,0,"Fibre","PlanetCampus",""]
["Brive",170,100,100,15,862.6,887.2,854.6,870.5,0,"Fibre","SmartCampus",""]
["Camille Guérin et les hauts de Venteaux",571,100,99.97,21,155.19999999999999,258.8,112.1,175.9,0,"Fibre","PlanetCampus","Le 15/06/21 / responsabilité SmartCampus / Site injoignable / durée  : 0.0 heure(s) : Site injoignable\n                          Diagnostic : aucun équipement n'est joignable sur le site\n                          Périmètre de l'incident : l'ensemble du site.\n                          Impact de l'incident : coupure du service\n                          Le site a-t-il été informé? non\n\n                          Alerte Kiwi \"#21449300\" ouverte le 15/06/2021 à 10:20\n                          \n \nRésultat : Le service est rétabli sur le site Camille Guérin\n                          suite à la prise en charge de l'incident par nos équipes.\n"]
["Cité universitaire La Borie",611,100,100,22,662,783.4,626.1,697.9,0,"Fibre","SmartCampus",""]
["Jacobins",76,100,100,21,48.1,68.099999999999994,34.6,53.8,0,"Fibre","PlanetCampus",""]
["L'Aurence A",81,100,100,15,64,81.599999999999994,55.2,71.3,0,"Fibre","SmartCampus",""]
["L'Aurence B",96,100,100,13,96.3,96.3,96.3,96.3,0,"Fibre","SmartCampus",""]
["residence Ester",104,100,99.94,14,68,82.6,63.2,73.3,0,"Fibre","PlanetCampus","Le 18/06/21 / responsabilité SmartCampus / Site injoignable / durée  : 0.0 heure(s) : Site injoignable\n                          Diagnostic : aucun équipement n'est joignable sur le site\n                          Périmètre de l'incident : l'ensemble du site.\n                          Impact de l'incident : coupure du service\n                          Le site a-t-il été informé? non\n\n                          Alerte Kiwi \"#21449467\" ouverte le 18/06/2021 à 09:58\n                          \n \nRésultat : Le service est rétabli sur le site Résidence Ester\n                          suite à la prise en charge de l'incident par nos équipes.\n"]

{"sheet":"LORRAINE","index":10,"n_rows":8,"n_cols":13,"rows_kept":8,"cut":false,"hidden":false,"merged":[]}
[]
[]
["Etablissement","NB Chb","Dispo (resp. SC) (%)","Dispo (toutes resp) (%)","LatMax (ms)","BPMin (Mb/s)","BPMoy (Mb/s)","BPMin 19h-23h (Mb/s)","BPMoy 19h-23h (Mb/s)","Nb de Chb fibrées","Nb de Chb en cours de fibrage"]
["CROUS LORRAINE",{"$f":"SUM(B8:B8)","v":32},{"$f":"SUMPRODUCT(B8:B8,C8:C8)/SUM(B8:B8)","v":100},{"$f":"SUMPRODUCT(B8:B8,D8:D8)/SUM(B8:B8)","v":100},{"$f":"SUMPRODUCT(B8:B8,E8:E8)/SUM(B8:B8)","v":59},{"$f":"SUMPRODUCT(B8:B8,F8:F8)/SUM(B8:B8)","v":8.8000000000000007},{"$f":"SUMPRODUCT(B8:B8,G8:G8)/SUM(B8:B8)","v":9.9},{"$f":"SUMPRODUCT(B8:B8,H8:H8)/SUM(B8:B8)","v":8.8000000000000007},{"$f":"SUMPRODUCT(B8:B8,I8:I8)/SUM(B8:B8)","v":9.8000000000000007},{"$f":"SUMIFS(B8:B8,K8:K8,\"=Fibre\")","v":0},{"$f":"SUMIFS(B8:B8,K8:K8,\"=Fibrage en cours\")","v":0}]
["","","","","","","","","",{"$f":"J4/B4","v":0},{"$f":"K4/B4","v":0}]
[]
["Résidence","NB Chb","Dispo (resp. SC) (%)","Dispo (toutes resp) (%)","LatMax (ms)","BPMin (Mb/s)","BPMoy (Mb/s)","BPMin 19h-23h (Mb/s)","BPMoy 19h-23h (Mb/s)","Hors GTR","Collecte","Type de service","Remarques"]
["Douaumont",32,100,100,59,8.8000000000000007,9.9,8.8000000000000007,9.8000000000000007,0,"ADSL","SmartCampus",""]

{"sheet":"LYON","index":11,"n_rows":56,"n_cols":13,"rows_kept":56,"cut":false,"hidden":false,"merged":[]}
[]
[]
["Etablissement","NB Chb","Dispo (resp. SC) (%)","Dispo (toutes resp) (%)","LatMax (ms)","BPMin (Mb/s)","BPMoy (Mb/s)","BPMin 19h-23h (Mb/s)","BPMoy 19h-23h (Mb/s)","Nb de Chb fibrées","Nb de Chb en cours de fibrage"]
["CROUS LYON",{"$f":"SUM(B8:B56)","v":9025},{"$f":"SUMPRODUCT(B8:B56,C8:C56)/SUM(B8:B56)","v":99.939439335180055},{"$f":"SUMPRODUCT(B8:B56,D8:D56)/SUM(B8:B56)","v":99.899162326869799},{"$f":"SUMPRODUCT(B8:B56,E8:E56)/SUM(B8:B56)","v":12.016066481994461},{"$f":"SUMPRODUCT(B8:B56,F8:F56)/SUM(B8:B56)","v":139.55777285318561},{"$f":"SUMPRODUCT(B8:B56,G8:G56)/SUM(B8:B56)","v":181.92481994459831},{"$f":"SUMPRODUCT(B8:B56,H8:H56)/SUM(B8:B56)","v":117.99298614958448},{"$f":"SUMPRODUCT(B8:B56,I8:I56)/SUM(B8:B56)","v":153.05779501385041},{"$f":"SUMIFS(B8:B56,K8:K56,\"=Fibre\")","v":9025},{"$f":"SUMIFS(B8:B56,K8:K56,\"=Fibrage en cours\")","v":0}]
["","","","","","","","","",{"$f":"J4/B4","v":1},{"$f":"K4/B4","v":0}]
[]
["Résidence","NB Chb","Dispo (resp. SC) (%)","Dispo (toutes resp) (%)","LatMax (ms)","BPMin (Mb/s)","BPMoy (Mb/s)","BPMin 19h-23h (Mb/s)","BPMoy 19h-23h (Mb/s)","Hors GTR","Collecte","Type de service","Remarques"]
["Aimé Cesaire",122,100,100,9,75.900000000000006,103.4,66.2,86.5,0,"Fibre","PlanetCampus",""]
["Allix Arche Agripa",283,100,100,9,154.5,216.2,102.9,171,0,"Fibre","SmartCampus",""]
["Allix Bat K",144,100,99.5,9,84.8,113.1,62.3,90.7,0,"Fibre","SmartCampus","Le 18/06/21 / responsabilité SmartCampus / Site injoignable / durée  : 3.0 heure(s) : Site injoignable\n                          Diagnostic : aucun équipement n'est joignable sur le site\n                          Périmètre de l'incident : l'ensemble du site.\n                          Impact de l'incident : coupure du service\n                          Le site a-t-il été informé? non\n\n                          Alerte Kiwi \"#21449497\" ouverte le 19/06/2021 à 00:32\n                          \n \nRésultat : Le service est rétabli sur le site Allix (bat K)\n                          suite à la prise en charge de l'incident par nos équipes.\n"]
["Allix Bât L",104,100,100,9,61.2,88.4,53.6,71.3,0,"Fibre","PlanetCampus",""]
["Allix D",142,100,100,9,92.8,112,76.099999999999994,99.2,0,"Fibre","SmartCampus",""]
["Allix E",142,100,100,9,85.1,111.5,68.599999999999994,94.3,0,"Fibre","SmartCampus",""]
["Allix F",100,100,100,9,54.8,76.8,41.3,61.4,0,"Fibre","SmartCampus",""]
["Allix Fort Sainte-Irénée",160,100,100,9,151.4,169.4,141.69999999999999,158.69999999999999,0,"Fibre","PlanetCampus",""]
["Allix G",204,100,100,9,133.4,140.5,127.4,136.9,0,"Fibre","SmartCampus",""]
["Allix H",194,100,99.92,9,94.7,116.8,88.5,104,0,"Fibre","SmartCampus","Le 16/06/21 / responsabilité SmartCampus / Site injoignable / durée  : 0.0 heure(s) : Site injoignable / service Wifirst totalement indisponible\nDiagnostic : Les équipements Wifirst sont injoignables ou les services Wifirst ne sont plus opérationnels\nPérimètre : l’ensemble du site\nImpact : Service interrompu \nRésultat : site à nouveau joignable"]
["Altheas",207,100,100,12,104.1,135.6,89.3,113.2,0,"Fibre","SmartCampus",""]
["Benjamin Delessert",322,100,100,9,121.2,186.2,95.1,139.5,0,"Fibre","PlanetCampus",""]
["Bourg en Bresse Crous",59,100,100,88,2.1,5,1.7,3.4,0,"Fibre","PlanetCampus",""]
["Bugeaud",69,100,100,13,65.400000000000006,80.599999999999994,59.2,71.099999999999994,0,"Fibre","SmartCampus",""]
["Confluence",89,100,100,10,37.200000000000003,77.400000000000006,36.1,69.2,0,"Fibre","PlanetCampus",""]
["Cotonne",305,100,100,0,130.5,130.5,130.5,130.5,0,"Fibre","SmartCampus",""]
["Croix du Sud",193,100,100,16,87.4,127,59.9,99.3,0,"Fibre","PlanetCampus",""]
["Einstein",241,100,100,6,108.3,162.4,93.7,125.6,0,"Fibre","SmartCampus",""]
["Garibaldi Lyon",199,100,100,9,119.3,156.19999999999999,106.9,131.4,0,"Fibre","PlanetCampus",""]
["Georges Rinck",41,100,100,10,49.6,56.8,47.7,54.5,0,"Fibre","PlanetCampus",""]
["Jacques Cavalier",262,100,100,9,91.9,141.4,73.400000000000006,108.4,0,"Fibre","SmartCampus",""]
["Jaurés",210,100,100,16,100.8,141.69999999999999,73.7,112.7,0,"Fibre","PlanetCampus",""]
["Jussieu B",144,100,100,7,77,104.9,61.8,85.5,0,"Fibre","SmartCampus",""]
["Jussieu C",132,100,100,14,68.3,96.2,58.7,78.8,0,"Fibre","SmartCampus",""]
["Jussieu D",144,100,100,16,89.3,110.2,82.5,96.6,0,"Fibre","SmartCampus",""]
["Jussieu E",146,100,100,6,80.400000000000006,107.6,71.900000000000006,89.9,0,"Fibre","PlanetCampus",""]
["Jussieu F",144,100,100,15,107.3,119.2,101.4,112.3,0,"Fibre","SmartCampus",""]
["Jussieu Studios",163,100,100,6,88.9,123.6,77.8,105.7,0,"Fibre","PlanetCampus",""]
["La Duchere",126,100,100,10,142,164.7,137.19999999999999,150.1,0,"Fibre","PlanetCampus",""]
["La Métare",271,100,100,30,128.5,170.4,112.9,141.69999999999999,0,"Fibre","PlanetCampus",""]
["Les Antonins",404,100,100,13,201.5,251.6,177.4,217.6,0,"Fibre","SmartCampus",""]
["Les Quais",201,100,100,9,75.599999999999994,140.1,52.6,99.4,0,"Fibre","PlanetCampus",""]
["Lirondelle",99,100,100,9,52.3,72.599999999999994,42.7,59.8,0,"Fibre","PlanetCampus",""]
["Madeleine Lyon",343,100,100,28,789,845.1,756.8,801.5,0,"Fibre","PlanetCampus",""]
["Maison des Arts CROUS",30,100,100,19,73.8,83.9,70.900000000000006,79.3,0,"Fibre","PlanetCampus",""]
["Mermoz",819,100,100,9,150.30000000000001,253.9,96.7,182.8,0,"Fibre","PlanetCampus",""]
["Meygret",74,100,100,12,62.3,77.900000000000006,57.5,67.8,0,"Fibre","PlanetCampus",""]
["Monod",245,100,100,9,204.8,240.5,183.3,214.7,0,"Fibre","PlanetCampus",""]
["Paradin",300,100,99.86,16,130.69999999999999,180.7,106.4,144.6,0,"Fibre","SmartCampus","Le 10/06/21 / responsabilité SmartCampus / Site injoignable / durée  : 0.0 heure(s) : Site injoignable\n                          Diagnostic : aucun équipement n'est joignable sur le site\n                          Périmètre de l'incident : l'ensemble du site.\n                          Impact de l'incident : coupure du service\n                          Le site a-t-il été informé? non\n\n                          Alerte Kiwi \"#21449109\" ouverte le 10/06/2021 à 11:56\n                          \n \nRésultat : Le service est rétabli sur le site Paradin\n                          suite à la prise en charge de l'incident par nos équipes.\n\n\nLe 11/06/21 / responsabilité SmartCampus / Site injoignable / durée  : 0.0 heure(s) : Site injoignable\n                          Diagnostic : aucun équipement n'est joignable sur le site\n                          Périmètre de l'incident : l'ensemble du site.\n                          Impact de l'incident : coupure du service\n                          Le site a-t-il été informé? non\n\n                          Alerte Kiwi \"#21449160\" ouverte le 11/06/2021 à 11:38\n                          \n \nRésultat : Le service est rétabli sur le site Paradin\n                          suite à la prise en charge de l'incident par nos équipes.\n"]
["Parc Blandan",257,100,100,9,87.7,135.6,52.6,102.3,0,"Fibre","PlanetCampus",""]
["Paul Bert",32,100,100,12,81.8,88.2,79.3,84.9,0,"Fibre","SmartCampus",""]
["Puvis",298,100,99.24,13,122.1,173.4,81.900000000000006,134.4,1,"Fibre","PlanetCampus","Le 11/06/21 / responsabilité SmartCampus / Site injoignable / durée  : 5.0 heure(s) : Site injoignable\n                          Diagnostic : aucun équipement n'est joignable sur le site\n                          Périmètre de l'incident : l'ensemble du site.\n                          Impact de l'incident : coupure du service\n                          Le site a-t-il été informé? non\n\n                          Alerte Kiwi \"#21449156\" ouverte le 11/06/2021 à 08:56\n                          \n \nRésultat : Le service est rétabli sur le site Puvis\n                          suite à la prise en charge de l'incident par nos équipes.\n"]
["Résidence Chavanelle",58,100,100,14,65.599999999999994,79.8,57.8,72,0,"Fibre","PlanetCampus",""]
["Résidence Jussieu Archimède",206,100,100,21,78.599999999999994,137,59.9,98.4,0,"Fibre","PlanetCampus",""]
["Résidence Les Girondins",125,100,99.94,9,61.2,94.5,20.8,73.599999999999994,0,"Fibre","PlanetCampus","Le 24/06/21 / responsabilité SmartCampus / Site injoignable / durée  : 0.0 heure(s) : Site injoignable\n                          Diagnostic : aucun équipement n'est joignable sur le site\n                          Périmètre de l'incident : l'ensemble du site.\n                          Impact de l'incident : coupure du service\n                          Le site a-t-il été informé? non\n\n                          Alerte Kiwi \"#21449823\" ouverte le 24/06/2021 à 21:06\n                          \n \nRésultat : Le service est rétabli sur le site Résidence Les Girondins\n                          suite à la prise en charge de l'incident par nos équipes.\n"]
["Résidence Philomène Magnin",122,95.52,95.52,9,130.5,157.5,120.2,140.80000000000001,1,"Fibre","PlanetCampus","Le 15/06/21 / responsabilité SmartCampus / Site injoignable / durée  : 32.0 heure(s) : Site injoignable\n                          Diagnostic : aucun équipement n'est joignable sur le site\n                          Périmètre de l'incident : l'ensemble du site.\n                          Impact de l'incident : coupure du service\n                          Le site a-t-il été informé? non\n\n                          Alerte Kiwi \"#21449320\" ouverte le 15/06/2021 à 15:44\n                          \n \nRésultat : Action(s) réalisée(s) :\nCommentaire :"]
["Roanne Crous",80,100,100,12,69.400000000000006,81.599999999999994,66.2,75,0,"Fibre","PlanetCampus",""]
["Trefilerie",227,100,100,9,141,163.19999999999999,132.4,149.1,0,"Fibre","PlanetCampus",""]
["Voltaire Lyon",43,100,100,9,77.8,85.3,65.8,81.400000000000006,0,"Fibre","SmartCampus",""]

{"sheet":"MONTPELLIER","index":12,"n_rows":83,"n_cols":13,"rows_kept":83,"cut":false,"hidden":false,"merged":[]}
[]
[]
["Etablissement","NB Chb","Dispo (resp. SC) (%)","Dispo (toutes resp) (%)","LatMax (ms)","BPMin (Mb/s)","BPMoy (Mb/s)","BPMin 19h-23h (Mb/s)","BPMoy 19h-23h (Mb/s)","Nb de Chb fibrées","Nb de Chb en cours de fibrage"]
["CROUS MONTPELLIER",{"$f":"SUM(B8:B83)","v":10869},{"$f":"SUMPRODUCT(B8:B83,C8:C83)/SUM(B8:B83)","v":100},{"$f":"SUMPRODUCT(B8:B83,D8:D83)/SUM(B8:B83)","v":99.881743490661506},{"$f":"SUMPRODUCT(B8:B83,E8:E83)/SUM(B8:B83)","v":18.074247860888764},{"$f":"SUMPRODUCT(B8:B83,F8:F83)/SUM(B8:B83)","v":64.738034777808409},{"$f":"SUMPRODUCT(B8:B83,G8:G83)/SUM(B8:B83)","v":107.40322936792707},{"$f":"SUMPRODUCT(B8:B83,H8:H83)/SUM(B8:B83)","v":48.195592970834468},{"$f":"SUMPRODUCT(B8:B83,I8:I83)/SUM(B8:B83)","v":86.840748918943817},{"$f":"SUMIFS(B8:B83,K8:K83,\"=Fibre\")","v":10619},{"$f":"SUMIFS(B8:B83,K8:K83,\"=Fibrage en cours\")","v":0}]
["","","","","","","","","",{"$f":"J4/B4","v":0.97699880393780481},{"$f":"K4/B4","v":0}]
[]
["Résidence","NB Chb","Dispo (resp. SC) (%)","Dispo (toutes resp) (%)","LatMax (ms)","BPMin (Mb/s)","BPMoy (Mb/s)","BPMin 19h-23h (Mb/s)","BPMoy 19h-23h (Mb/s)","Hors GTR","Collecte","Type de service","Remarques"]
["Agropolis K-J",204,100,100,21,126.5,145.6,115.6,135.80000000000001,0,"Fibre","SmartCampus",""]
["Alain Savary (bat B à G)",333,100,100,18,31.2,72.099999999999994,13.7,52.4,0,"Fibre","SmartCampus",""]
["Alain Savary bât A.",80,100,100,19,68.3,74.2,66.599999999999994,71.8,0,"Fibre","SmartCampus",""]
["Alexandrie",248,100,100,20,135.5,175.6,123.5,147.5,0,"Fibre","PlanetCampus",""]
["Boutonnet A",52,100,100,19,54,64,46.2,59.6,0,"Fibre","SmartCampus",""]
["Boutonnet B",52,100,100,21,44.1,59.6,33.9,52.5,0,"Fibre","SmartCampus",""]
["Boutonnet C + HALL + SALLE RÉUNION",125,100,100,20,28.3,47.2,18.3,38.9,0,"Fibre","SmartCampus",""]
["Boutonnet D",133,100,100,23,89.5,106.7,82.4,96.4,0,"Fibre","SmartCampus",""]
["Boutonnet E",135,100,100,24,20.8,46.7,4.5,34.1,0,"Fibre","SmartCampus",""]
["Boutonnet F",125,100,100,20,24.5,45.7,11.9,37.700000000000003,0,"Fibre","SmartCampus",""]
["Boutonnet G",127,100,100,24,13.9,42.5,8.1999999999999993,31.9,0,"Fibre","SmartCampus",""]
["Brasserie Boutonnet",1,100,100,22,17.100000000000001,17.8,18,18,0,"Fibre","SmartCampus",""]
["Canigou A",27,100,100,20,15.9,20.5,14.7,19.2,0,"Fibre","SmartCampus",""]
["Canigou B",27,100,100,19,18.3,21.4,13.8,19.3,0,"Fibre","SmartCampus",""]
["Canigou C",27,100,100,20,17.5,20.8,16.7,20.100000000000001,0,"Fibre","SmartCampus",""]
["Canigou D",27,100,100,19,18.2,21.2,12.8,19.5,0,"Fibre","SmartCampus",""]
["Canigou E",27,100,100,19,13,19.7,8.3000000000000007,16,0,"Fibre","SmartCampus",""]
["Canigou F",18,100,100,19,11.6,16,9.8000000000000007,14.2,0,"Fibre","SmartCampus",""]
["Clerisseau",50,100,100,15,70.099999999999994,79.900000000000006,64.3,73.900000000000006,0,"Fibre","PlanetCampus",""]
["Colombieres",1234,100,99.45,21,122.2,321.60000000000002,51,225.5,0,"Fibre","PlanetCampus","Le 26/06/21 / responsabilité SmartCampus / Site injoignable / durée  : 0.0 heure(s) : Site injoignable\n                          Diagnostic : aucun équipement n'est joignable sur le site\n                          Périmètre de l'incident : l'ensemble du site.\n                          Impact de l'incident : coupure du service\n                          Le site a-t-il été informé? non\n\n                          Alerte Kiwi \"#21449883\" ouverte le 26/06/2021 à 17:08\n                          \n \nRésultat : Le service est rétabli sur le site Colombieres (Cité U)\n                          suite à la prise en charge de l'incident par nos équipes.\n\n\nLe 26/06/21 / responsabilité SmartCampus / Site injoignable / durée  : 3.0 heure(s) : Site injoignable\n                          Diagnostic : aucun équipement n'est joignable sur le site\n                          Périmètre de l'incident : l'ensemble du site.\n                          Impact de l'incident : coupure du service\n                          Le site a-t-il été informé? non\n\n                          Alerte Kiwi \"#21449887\" ouverte le 26/06/2021 à 21:50\n                          \n \nRésultat : Le service est rétabli sur le site Colombieres (Cité U)\n                          suite à la prise en charge de l'incident par nos équipes.\n"]
["Colonel Marchand",54,100,100,24,60.7,77.8,56.3,70.5,0,"Fibre","PlanetCampus",""]
["Georges Besse A",71,100,100,14,72.5,83.3,61.6,78.8,0,"Fibre","PlanetCampus",""]
["Hoche",160,100,100,18,53.9,74.400000000000006,46.7,59.5,0,"Fibre","SmartCampus",""]
["Immeuble Baudin",6,100,100,22,57.8,57.8,57.8,57.8,0,"Fibre","PlanetCampus",""]
["La Gralla",58,100,100,24,67.5,72.400000000000006,64.400000000000006,70.099999999999994,0,"Fibre","PlanetCampus",""]
["La Lyre",296,100,100,19,31.8,66,5.8,48.6,0,"Fibre","SmartCampus",""]
["La Panacée - Cité des Artistes",59,100,100,47,12.9,15.9,11,14.6,0,"ADSL","SmartCampus",""]
["Lattes",36,100,100,19,66.8,73.2,57.2,69.900000000000006,0,"Fibre","PlanetCampus",""]
["Le Parc - Crous Montpellier",168,100,100,18,92.7,120.9,66.3,103.5,0,"Fibre","PlanetCampus",""]
["Les Arceaux",361,100,99.7,21,71.599999999999994,123.8,34.6,91.2,0,"Fibre","PlanetCampus","Le 13/06/21 / responsabilité SmartCampus / Site injoignable / durée  : 2.0 heure(s) : Site injoignable / service Wifirst totalement indisponible\nDiagnostic : Les équipements Wifirst sont injoignables ou les services Wifirst ne sont plus opérationnels\nPérimètre : l’ensemble du site\nImpact : Service interrompu \nRésultat : Action(s) réalisée(s) :\nCommentaire :\nsite up sans retour client "]
["Les palmes",60,100,99.4,14,430.2,441.6,427.3,434.1,0,"ADSL","PlanetCampus","Le 01/06/21 / responsabilité SmartCampus / Site injoignable / durée  : 2.0 heure(s) : Site injoignable\n                          Diagnostic : aucun équipement n'est joignable sur le site\n                          Périmètre de l'incident : l'ensemble du site.\n                          Impact de l'incident : coupure du service\n                          Le site a-t-il été informé? non\n\n                          Alerte Kiwi \"#21448583\" ouverte le 01/06/2021 à 08:10\n                          \n \nRésultat : Le service est rétabli sur le site Les Palmes\n                          suite à la prise en charge de l'incident par nos équipes.\n\n\nLe 20/06/21 / responsabilité SmartCampus / Site injoignable / durée  : 1.0 heure(s) : Site injoignable\n                          Diagnostic : aucun équipement n'est joignable sur le site\n                          Périmètre de l'incident : l'ensemble du site.\n                          Impact de l'incident : coupure du service\n                          Le site a-t-il été informé? non\n\n                          Alerte Kiwi \"#21449550\" ouverte le 20/06/2021 à 11:18\n                          \n \nRésultat : Le service est rétabli sur le site Les Palmes\n                          suite à la prise en charge de l'incident par nos équipes.\n"]
["Mar I Sol",166,100,100,36,88.9,114.7,78.5,97.8,0,"Fibre","SmartCampus",""]
["Matisse A",300,100,100,15,138.80000000000001,181.8,126.9,161.6,0,"Fibre","SmartCampus",""]
["Matisse B",300,100,100,21,205.2,217,200.9,212.8,0,"Fibre","SmartCampus",""]
["Minerve",196,100,100,21,118.1,152.5,104.4,131.1,0,"Fibre","PlanetCampus",""]
["Moulin à Vent",0,100,100,20,12.3,13.3,11.8,13.2,0,"Fibre","SmartCampus",""]
["Moulin à Vent A",135,100,100,28,113.6,130.6,96.4,119.9,0,"Fibre","SmartCampus",""]
["Moulin à Vent D",145,100,100,20,62.2,92.8,52.5,69.099999999999994,0,"Fibre","SmartCampus",""]
["Moulin à Vent E",164,100,100,18,98.4,117.4,93.3,106.7,0,"Fibre","SmartCampus",""]
["Occitanie",87,100,99.81,22,17.8,22.6,12.8,20.399999999999999,0,"Fibre","PlanetCampus","Le 08/06/21 / responsabilité SmartCampus / Site injoignable / durée  : 1.0 heure(s) : Site injoignable\n                          Diagnostic : aucun équipement n'est joignable sur le site\n                          Périmètre de l'incident : l'ensemble du site.\n                          Impact de l'incident : coupure du service\n                          Le site a-t-il été informé? non\n\n                          Alerte Kiwi \"#21448937\" ouverte le 08/06/2021 à 07:00\n                          \n \nRésultat : Le service est rétabli sur le site Occitanie\n                          suite à la prise en charge de l'incident par nos équipes.\n"]
["Olympique Montpellier 76",162,100,100,19,118.3,149.80000000000001,97.8,127.5,0,"Fibre","SmartCampus",""]
["Persée",103,100,100,19,145,164.1,124.7,151.1,0,"Fibre","PlanetCampus",""]
["Pous de La Sers",124,100,100,20,101,120.2,92.3,110.2,0,"Fibre","PlanetCampus",""]
["Primavera",118,100,100,20,89.2,112.2,80.900000000000006,97.5,0,"Fibre","PlanetCampus",""]
["RESTAURANT UNIVERSITAIRE PERPIGNAN",1,100,100,19,13.3,13.4,13.5,13.5,0,"Fibre","SmartCampus",""]
["Restaurant Universitaire Saint Césaire",1,100,100,51,5.0999999999999996,5.0999999999999996,5.0999999999999996,5.0999999999999996,0,"ADSL","SmartCampus",""]
["Restaurant universitaire Vert-bois",1,100,100,45,4.9000000000000004,6.2,4.9000000000000004,6.2,0,"ADSL","SmartCampus",""]
["SUD ALTERNANCE",100,100,100,15,96,111.1,75.900000000000006,101.6,0,"Fibre","PlanetCampus",""]
["Tour Magne",145,100,99.96,20,92.6,116.1,87.5,102.3,0,"Fibre","SmartCampus","Le 03/06/21 / responsabilité SmartCampus / Site injoignable / durée  : 0.0 heure(s) : Site injoignable\n                          Diagnostic : aucun équipement n'est joignable sur le site\n                          Périmètre de l'incident : l'ensemble du site.\n                          Impact de l'incident : coupure du service\n                          Le site a-t-il été informé? non\n\n                          Alerte Kiwi \"#21448745\" ouverte le 03/06/2021 à 15:10\n                          \n \nRésultat : Le service est rétabli sur le site Tour Magne\n                          suite à la prise en charge de l'incident par nos équipes.\n"]
["Tramuntana",133,100,100,16,92.3,117.3,79.099999999999994,102.5,0,"Fibre","SmartCampus",""]
["Triolet (residence)",136,100,100,19,11.3,28.2,7.3,19.5,0,"Fibre","SmartCampus",""]
["TRIOLET 2 A-B-C",315,100,100,19,24.7,85.6,11.2,61.4,0,"Fibre","SmartCampus",""]
["Triolet A",104,100,100,19,23.2,30.7,20.399999999999999,28.6,0,"Fibre","SmartCampus",""]
["Triolet B",128,100,100,19,16.899999999999999,32.200000000000003,10.199999999999999,26.2,0,"Fibre","SmartCampus",""]
["Triolet C",119,100,100,19,13.8,31.1,10.1,25.7,0,"Fibre","SmartCampus",""]
["Triolet D",160,100,100,19,33.9,48.7,24.4,42.3,0,"Fibre","SmartCampus",""]
["Triolet E",116,100,100,19,15.6,33,13.6,25.8,0,"Fibre","SmartCampus",""]
["Triolet F",127,100,100,19,30.2,39,22.6,34.200000000000003,0,"Fibre","SmartCampus",""]
["Triolet Fédérateur / Restaurant Universitaire Triolet",1,100,100,19,6.3,6.7,6.7,6.7,0,"Fibre","SmartCampus",""]
["Triolet G",122,100,100,19,27.1,38,20.6,33.200000000000003,0,"Fibre","SmartCampus",""]
["Triolet H",124,100,100,19,19.899999999999999,34,12.8,26.8,0,"Fibre","SmartCampus",""]
["Triolet I",128,100,100,19,26.4,39.299999999999997,13.7,35.1,0,"Fibre","SmartCampus",""]
["Vert Bois (Cite U)",910,100,100,0,0,0,0,0,0,"Fibre","SmartCampus",""]
["Vert Bois (Cité U) E",129,100,100,0,0,0,0,0,0,"ADSL","SmartCampus",""]
["Vert Bois (residence) 10 (MER)",200,100,97.8,19,14.6,42.4,14.6,34.9,1,"Fibre","PlanetCampus","Le 26/06/21 / responsabilité SmartCampus / Site injoignable / durée  : 15.0 heure(s) : Site injoignable\n                          Diagnostic : aucun équipement n'est joignable sur le site\n                          Périmètre de l'incident : l'ensemble du site.\n                          Impact de l'incident : coupure du service\n                          Le site a-t-il été informé? non\n\n                          Alerte Kiwi \"#21449889\" ouverte le 27/06/2021 à 00:38\n                          \n \nRésultat : Problème sur le réseau Crous, les vlan 101 & 102 ne sont pas propagé sur le réseau"]
["VEYRASSI",153,100,100,15,103.2,131.4,95.5,114.1,0,"Fibre","PlanetCampus",""]
["Voie Domitienne 1",123,100,100,19,9.9,30.4,5.6,24.8,0,"Fibre","SmartCampus",""]
["Voie Domitienne 2",150,100,100,19,7.4,37.299999999999997,5.8,32.9,0,"Fibre","SmartCampus",""]
["Voie Domitienne 3",151,100,100,19,6.5,33.4,3,26.9,0,"Fibre","SmartCampus",""]
["Voie Domitienne 4",136,100,100,19,5.5,30.5,4.5999999999999996,27.1,0,"Fibre","SmartCampus",""]
["Voie Domitienne 5",133,100,100,19,10.5,31.1,8.3000000000000007,28.1,0,"Fibre","SmartCampus",""]
["Voie Domitienne 6",134,100,100,19,8.8000000000000007,30.8,4.4000000000000004,27.4,0,"Fibre","SmartCampus",""]
["Voie Domitienne 7",128,100,100,19,12.2,50.3,6.1,44,0,"Fibre","SmartCampus",""]
["Voie Domitienne 8",149,100,100,18,13.9,34.6,7.4,32.799999999999997,0,"Fibre","SmartCampus",""]
["Voie Domitienne ADMINISTRATION",1,100,100,19,4.5,8.1,4.5,8.4,0,"Fibre","SmartCampus",""]
["Wilson",30,100,100,16,64.8,69.900000000000006,63.6,68.400000000000006,0,"Fibre","PlanetCampus",""]

{"sheet":"NANTES","index":13,"n_rows":48,"n_cols":13,"rows_kept":48,"cut":false,"hidden":false,"merged":[]}
[]
[]
["Etablissement","NB Chb","Dispo (resp. SC) (%)","Dispo (toutes resp) (%)","LatMax (ms)","BPMin (Mb/s)","BPMoy (Mb/s)","BPMin 19h-23h (Mb/s)","BPMoy 19h-23h (Mb/s)","Nb de Chb fibrées","Nb de Chb en cours de fibrage"]
["CROUS NANTES",{"$f":"SUM(B8:B48)","v":8709},{"$f":"SUMPRODUCT(B8:B48,C8:C48)/SUM(B8:B48)","v":99.939552187392366},{"$f":"SUMPRODUCT(B8:B48,D8:D48)/SUM(B8:B48)","v":99.900794580319214},{"$f":"SUMPRODUCT(B8:B48,E8:E48)/SUM(B8:B48)","v":13.010678608336203},{"$f":"SUMPRODUCT(B8:B48,F8:F48)/SUM(B8:B48)","v":169.22039269720972},{"$f":"SUMPRODUCT(B8:B48,G8:G48)/SUM(B8:B48)","v":214.56841198759903},{"$f":"SUMPRODUCT(B8:B48,H8:H48)/SUM(B8:B48)","v":143.63499827764377},{"$f":"SUMPRODUCT(B8:B48,I8:I48)/SUM(B8:B48)","v":183.93831668389024},{"$f":"SUMIFS(B8:B48,K8:K48,\"=Fibre\")","v":8709},{"$f":"SUMIFS(B8:B48,K8:K48,\"=Fibrage en cours\")","v":0}]
["","","","","","","","","",{"$f":"J4/B4","v":1},{"$f":"K4/B4","v":0}]
[]
["Résidence","NB Chb","Dispo (resp. SC) (%)","Dispo (toutes resp) (%)","LatMax (ms)","BPMin (Mb/s)","BPMoy (Mb/s)","BPMin 19h-23h (Mb/s)","BPMoy 19h-23h (Mb/s)","Hors GTR","Collecte","Type de service","Remarques"]
["Alpha City",100,100,100,40,44.6,74.2,39.799999999999997,58.6,0,"Fibre","SmartCampus",""]
["Berlioz A",165,100,100,16,92.6,122,82.7,102.9,0,"Fibre","SmartCampus",""]
["Berlioz B",165,100,100,16,101.3,122.9,95.4,108.6,0,"Fibre","SmartCampus",""]
["Celestin Port",40,100,100,17,53.1,58,52.2,56.6,0,"Fibre","PlanetCampus",""]
["Cité BELLE BEILLE",552,100,100,5,329,387.4,297.2,346.5,0,"Fibre","SmartCampus",""]
["Cité Bourgonnier",122,100,100,6,43.9,56.7,40.799999999999997,51.4,0,"Fibre","SmartCampus",""]
["Cité CASTERNEAU",271,100,100,13,74.8,144.30000000000001,31.4,90.7,0,"Fibre","SmartCampus",""]
["Cité CHANZY",250,100,100,12,130.1,166.2,117.4,147.69999999999999,0,"Fibre","SmartCampus",""]
["Cité COUFFON- PAVOT",341,100,100,6,169.3,206.4,144.5,181.9,0,"Fibre","SmartCampus",""]
["Cité Frescheblanc Bat A",624,100,99.86,13,306,364.9,249.2,320.3,0,"Fibre","SmartCampus","Le 15/06/21 / responsabilité SmartCampus / Site injoignable / durée  : 1.0 heure(s) : Site injoignable\n                          Diagnostic : aucun équipement n'est joignable sur le site\n                          Périmètre de l'incident : l'ensemble du site.\n                          Impact de l'incident : coupure du service\n                          Le site a-t-il été informé? non\n\n                          Alerte Kiwi \"#21449293\" ouverte le 15/06/2021 à 09:12\n                          \n \nRésultat : Le service est rétabli sur le site Cité Frescheblanc\n                          suite à la prise en charge de l'incident par nos équipes.\n"]
["Cité HEINLEX",267,100,100,52,151.19999999999999,186.7,134.30000000000001,162.69999999999999,0,"Fibre","SmartCampus",""]
["Cité La Bourgeonniere",469,100,100,13,152,245.2,111.4,179,0,"Fibre","SmartCampus",""]
["Cite Lakanal",305,100,100,9,218.3,225.5,214.8,222.9,0,"Fibre","SmartCampus",""]
["Cité Launay Violette",275,100,100,13,173.8,194.9,171.4,186.9,0,"Fibre","SmartCampus",""]
["Cité VAUROUZE",716,100,100,4,317.5,385.6,254.7,342.5,0,"Fibre","SmartCampus",""]
["Dauversiere 2",82,100,99.96,7,60.8,79.8,56.1,68.599999999999994,0,"Fibre","SmartCampus","Le 24/06/21 / responsabilité SmartCampus / Site injoignable / durée  : 0.0 heure(s) : Site injoignable\n                          Diagnostic : aucun équipement n'est joignable sur le site\n                          Périmètre de l'incident : l'ensemble du site.\n                          Impact de l'incident : coupure du service\n                          Le site a-t-il été informé? non\n\n                          Alerte Kiwi \"#21449789\" ouverte le 24/06/2021 à 10:46\n                          \n \nRésultat : Le service est rétabli sur le site Dauversiere 2\n                          suite à la prise en charge de l'incident par nos équipes.\n"]
["Flora Tristan B",113,100,100,7,140.19999999999999,158.5,124.7,147,0,"Fibre","PlanetCampus",""]
["La Simbrandière Bat principal",120,100,99.92,12,78.8,99.2,68.400000000000006,87.4,0,"Fibre","SmartCampus","Le 24/06/21 / responsabilité SmartCampus / Site injoignable / durée  : 0.0 heure(s) : Site injoignable\n                          Diagnostic : aucun équipement n'est joignable sur le site\n                          Périmètre de l'incident : l'ensemble du site.\n                          Impact de l'incident : coupure du service\n                          Le site a-t-il été informé? non\n\n                          Alerte Kiwi \"#21449793\" ouverte le 24/06/2021 à 11:48\n                          \n \nRésultat : Le service est rétabli sur le site La Simbrandière\n                          suite à la prise en charge de l'incident par nos équipes.\n"]
["Leonard de Vinci",30,100,100,10,53.7,58,50.9,56.3,0,"Fibre","SmartCampus",""]
["Olympe de gouges (CROUS NANTES)",214,97.54,97.16,13,120,147.69999999999999,100.1,130.1,1,"Fibre","SmartCampus","Le 02/06/21 / responsabilité SmartCampus / Site injoignable / durée  : 17.0 heure(s) : Site injoignable\n                          Diagnostic : aucun équipement n'est joignable sur le site\n                          Périmètre de l'incident : l'ensemble du site.\n                          Impact de l'incident : coupure du service\n                          Le site a-t-il été informé? non\n\n                          Alerte Kiwi \"#21448637\" ouverte le 02/06/2021 à 06:36\n                          \n \nRésultat : Action(s) réalisée(s) : Baie principal re-démarrée!\nCommentaire : Il y a eu un bug matérielSite de nouveau joignable &#9989;\n\nLe 15/06/21 / responsabilité SmartCampus / Site injoignable / durée  : 1.0 heure(s) : Site injoignable\n                          Diagnostic : aucun équipement n'est joignable sur le site\n                          Périmètre de l'incident : l'ensemble du site.\n                          Impact de l'incident : coupure du service\n                          Le site a-t-il été informé? non\n\n                          Alerte Kiwi \"#21449292\" ouverte le 15/06/2021 à 09:12\n                          \n \nRésultat : Le service est rétabli sur le site Olympe de Gouges\n                          suite à la prise en charge de l'incident par nos équipes.\n\n\nLe 23/06/21 / responsabilité SmartCampus / Site injoignable / durée  : 1.0 heure(s) : Site injoignable\n                          Diagnostic : aucun équipement n'est joignable sur le site\n                          Périmètre de l'incident : l'ensemble du site.\n                          Impact de l'incident : coupure du service\n                          Le site a-t-il été informé? non\n\n                          Alerte Kiwi \"#21449720\" ouverte le 23/06/2021 à 08:50\n                          \n \nRésultat : Le service est rétabli sur le site Olympe de Gouges\n                          suite à la prise en charge de l'incident par nos équipes.\n"]
["Résidence Alice MILLIAT",298,100,100,24,98.7,166.8,63.1,123.3,0,"Fibre","SmartCampus",""]
["Résidence BARTHOLDI",205,100,100,5,515,574.5,499.6,533.4,0,"Fibre","SmartCampus",""]
["Résidence CORBILO",157,100,100,10,92.6,134.30000000000001,66.099999999999994,102.4,0,"Fibre","SmartCampus",""]
["Résidence EINSTEIN",158,100,100,7,201.1,231.3,184.4,210.6,0,"Fibre","PlanetCampus",""]
["Résidence FAIDHERBE",57,100,100,6,51.2,64.7,47.1,58,0,"Fibre","SmartCampus",""]
["Résidence Haute Forêt",167,100,100,12,79.7,115.2,61.4,93,0,"Fibre","SmartCampus",""]
["Résidence ILE DE NANTES",135,100,100,10,87,114.4,71,96.2,0,"Fibre","SmartCampus",""]
["Résidence Jacques TYMEN",206,100,99.85,13,99.2,141.80000000000001,79,110.4,0,"Fibre","SmartCampus","Le 15/06/21 / responsabilité SmartCampus / Site injoignable / durée  : 1.0 heure(s) : Site injoignable\n                          Diagnostic : aucun équipement n'est joignable sur le site\n                          Périmètre de l'incident : l'ensemble du site.\n                          Impact de l'incident : coupure du service\n                          Le site a-t-il été informé? non\n\n                          Alerte Kiwi \"#21449315\" ouverte le 15/06/2021 à 14:20\n                          \n \nRésultat : Le service est rétabli sur le site Jacques Tymen\n                          suite à la prise en charge de l'incident par nos équipes.\n"]
["Résidence JEAN TUSQUES",76,100,100,13,54.2,76.3,43.5,63.5,0,"Fibre","SmartCampus",""]
["Résidence John Pershing",78,100,100,46,56.8,79,45.7,66.099999999999994,0,"Fibre","SmartCampus",""]
["Résidence LA DORMERIE",150,100,100,10,78.099999999999994,110.4,57.8,87.5,0,"Fibre","SmartCampus",""]
["Résidence La Madeleine",43,100,100,9,12.6,21.6,10.4,16,0,"Fibre","SmartCampus",""]
["Résidence LES HAUTS DE SAINT AUBIN",151,100,100,12,105,136,86.9,119,0,"Fibre","SmartCampus",""]
["Résidence les Landes",236,100,99.47,33,84.7,137.6,72.2,102.1,0,"Fibre","SmartCampus","Le 01/06/21 / responsabilité SmartCampus / Site injoignable / durée  : 2.0 heure(s) : Site injoignable\n                          Diagnostic : aucun équipement n'est joignable sur le site\n                          Périmètre de l'incident : l'ensemble du site.\n                          Impact de l'incident : coupure du service\n                          Le site a-t-il été informé? non\n\n                          Alerte Kiwi \"#21448628\" ouverte le 01/06/2021 à 23:04\n                          \n \nRésultat : Le service est rétabli sur le site Résidence Les Landes\n                          suite à la prise en charge de l'incident par nos équipes.\n\n\nLe 08/06/21 / responsabilité SmartCampus / Site injoignable / durée  : 0.0 heure(s) : Site injoignable\n                          Diagnostic : aucun équipement n'est joignable sur le site\n                          Périmètre de l'incident : l'ensemble du site.\n                          Impact de l'incident : coupure du service\n                          Le site a-t-il été informé? non\n\n                          Alerte Kiwi \"#21448951\" ouverte le 08/06/2021 à 12:00\n                          \n \nRésultat : Le service est rétabli sur le site Résidence Les Landes\n                          suite à la prise en charge de l'incident par nos équipes.\n\n\nLe 29/06/21 / responsabilité SmartCampus / Site injoignable / durée  : 1.0 heure(s) : Site injoignable\n                          Diagnostic : aucun équipement n'est joignable sur le site\n                          Périmètre de l'incident : l'ensemble du site.\n                          Impact de l'incident : coupure du service\n                          Le site a-t-il été informé? non\n\n                          Alerte Kiwi \"#21449987\" ouverte le 29/06/2021 à 13:56\n                          \n \nRésultat : Le service est rétabli sur le site Résidence Les Landes\n                          suite à la prise en charge de l'incident par nos équipes.\n"]
["Résidence les SAUMONIERES",95,100,100,10,53.1,74.900000000000006,44.7,60.5,0,"Fibre","SmartCampus",""]
["Résidence LONGCHAMP",190,100,100,16,107.5,146,94.2,119.3,0,"Fibre","SmartCampus",""]
["Résidence Madeleine Bres",236,100,100,10,88.4,142.19999999999999,70.599999999999994,103.6,0,"Fibre","SmartCampus",""]
["Residence O-Slow",136,100,100,10,107.1,150.80000000000001,84.8,122,0,"Fibre","PlanetCampus",""]
["Résidence Rene Rouchy",119,100,100,10,119.8,145.1,108.1,129.19999999999999,0,"Fibre","SmartCampus",""]
["Résidence Volta",300,100,100,7,146.4,184.1,134.80000000000001,157,0,"Fibre","PlanetCampus",""]
["Résidence WANGARI MAATHAI Nantes",295,100,100,13,102.9,167.6,72.900000000000006,121.7,0,"Fibre","SmartCampus",""]

{"sheet":"NICE-TOULON","index":14,"n_rows":28,"n_cols":13,"rows_kept":28,"cut":false,"hidden":false,"merged":[]}
[]
[]
["Etablissement","NB Chb","Dispo (resp. SC) (%)","Dispo (toutes resp) (%)","LatMax (ms)","BPMin (Mb/s)","BPMoy (Mb/s)","BPMin 19h-23h (Mb/s)","BPMoy 19h-23h (Mb/s)","Nb de Chb fibrées","Nb de Chb en cours de fibrage"]
["CROUS NICE-TOULON",{"$f":"SUM(B8:B28)","v":4588},{"$f":"SUMPRODUCT(B8:B28,C8:C28)/SUM(B8:B28)","v":100},{"$f":"SUMPRODUCT(B8:B28,D8:D28)/SUM(B8:B28)","v":99.963624673060153},{"$f":"SUMPRODUCT(B8:B28,E8:E28)/SUM(B8:B28)","v":17.712074978204011},{"$f":"SUMPRODUCT(B8:B28,F8:F28)/SUM(B8:B28)","v":162.49572798605055},{"$f":"SUMPRODUCT(B8:B28,G8:G28)/SUM(B8:B28)","v":201.57157802964255},{"$f":"SUMPRODUCT(B8:B28,H8:H28)/SUM(B8:B28)","v":143.74357018308632},{"$f":"SUMPRODUCT(B8:B28,I8:I28)/SUM(B8:B28)","v":178.23227986050566},{"$f":"SUMIFS(B8:B28,K8:K28,\"=Fibre\")","v":4588},{"$f":"SUMIFS(B8:B28,K8:K28,\"=Fibrage en cours\")","v":0}]
["","","","","","","","","",{"$f":"J4/B4","v":1},{"$f":"K4/B4","v":0}]
[]
["Résidence","NB Chb","Dispo (resp. SC) (%)","Dispo (toutes resp) (%)","LatMax (ms)","BPMin (Mb/s)","BPMoy (Mb/s)","BPMin 19h-23h (Mb/s)","BPMoy 19h-23h (Mb/s)","Hors GTR","Collecte","Type de service","Remarques"]
["Baie des Anges",509,100,99.88,16,534.5,585.9,517.20000000000005,548.1,0,"Fibre","SmartCampus","Le 04/06/21 / responsabilité SmartCampus / Site injoignable / durée  : 0.0 heure(s) : Site injoignable\n                          Diagnostic : aucun équipement n'est joignable sur le site\n                          Périmètre de l'incident : l'ensemble du site.\n                          Impact de l'incident : coupure du service\n                          Le site a-t-il été informé? non\n\n                          Alerte Kiwi \"#21448781\" ouverte le 04/06/2021 à 08:54\n                          \n \nRésultat : Le service est rétabli sur le site Baie des Anges\n                          suite à la prise en charge de l'incident par nos équipes.\n"]
["Coudon - Bâtiment F",97,100,100,15,89.8,94.6,87.6,92.9,0,"Fibre","SmartCampus",""]
["Coudon - Bâtiment G",218,100,100,15,158.69999999999999,168.6,155.6,165.7,0,"Fibre","SmartCampus",""]
["Faron",294,100,100,15,128.80000000000001,182.5,86.4,145.1,0,"Fibre","SmartCampus",""]
["Fenouillet",150,100,100,15,91.8,114.6,69.2,101.1,0,"Fibre","SmartCampus",""]
["Jean Médecin A/B",232,100,100,19,94.8,148.9,71.900000000000006,123.2,0,"Fibre","PlanetCampus",""]
["Jean Médecin C",149,100,100,18,82.4,111.3,73.400000000000006,96,0,"Fibre","SmartCampus",""]
["Jean Médecin D",158,100,100,20,72.5,104.3,64,88.2,0,"Fibre","SmartCampus",""]
["Jean Médecin E",187,100,100,16,123,138.80000000000001,105.4,128,0,"Fibre","SmartCampus",""]
["Jean Médecin F",179,100,100,18,104.6,130.6,100.6,114.8,0,"Fibre","SmartCampus",""]
["La Madeleine",200,100,99.57,21,102.8,143.9,66.2,112.8,0,"Fibre","SmartCampus","Le 09/06/21 / responsabilité SmartCampus / Site injoignable / durée  : 3.0 heure(s) : Site injoignable\n                          Diagnostic : aucun équipement n'est joignable sur le site\n                          Périmètre de l'incident : l'ensemble du site.\n                          Impact de l'incident : coupure du service\n                          Le site a-t-il été informé? non\n\n                          Alerte Kiwi \"#21449015\" ouverte le 09/06/2021 à 14:20\n                          \n \nRésultat : Le service est rétabli sur le site La Madeleine\n                          suite à la prise en charge de l'incident par nos équipes.\n"]
["Les Clémentines",84,100,100,17,59.2,77.5,51.9,66.099999999999994,0,"Fibre","SmartCampus",""]
["Les Collinettes",253,100,99.95,22,131.69999999999999,155.80000000000001,125.6,143.4,0,"Fibre","SmartCampus","Le 04/06/21 / responsabilité SmartCampus / Site injoignable / durée  : 0.0 heure(s) : Site injoignable\n                          Diagnostic : aucun équipement n'est joignable sur le site\n                          Périmètre de l'incident : l'ensemble du site.\n                          Impact de l'incident : coupure du service\n                          Le site a-t-il été informé? non\n\n                          Alerte Kiwi \"#21448801\" ouverte le 04/06/2021 à 13:44\n                          \n \nRésultat : Le service est rétabli sur le site Les Collinettes\n                          suite à la prise en charge de l'incident par nos équipes.\n"]
["Les Dolines",222,100,100,18,86.7,139.6,71.8,105.2,0,"Fibre","SmartCampus",""]
["Montebello",342,100,100,19,136.9,203.2,94,167.5,0,"Fibre","SmartCampus",""]
["Newton",224,100,100,17,96.8,144.19999999999999,73.2,108.3,0,"Fibre","SmartCampus",""]
["Olivier Chesneau",257,100,100,18,106.4,162.6,78.8,143.1,0,"Fibre","SmartCampus",""]
["Portalis",106,100,100,14,60.6,89.8,51.4,69.8,0,"Fibre","SmartCampus",""]
["Residence Valrose",200,100,100,19,117,149.80000000000001,104.6,129.4,0,"Fibre","SmartCampus",""]
["Romain Gary",169,100,100,16,90.8,121.4,81.7,106,0,"Fibre","PlanetCampus",""]
["Saint-Antoine",358,100,99.98,20,201,233.5,190.8,215.7,0,"Fibre","SmartCampus","Le 01/06/21 / responsabilité SmartCampus / Site injoignable / durée  : 0.0 heure(s) : Site injoignable\n                          Diagnostic : aucun équipement n'est joignable sur le site\n                          Périmètre de l'incident : l'ensemble du site.\n                          Impact de l'incident : coupure du service\n                          Le site a-t-il été informé? non\n\n                          Alerte Kiwi \"#21448593\" ouverte le 01/06/2021 à 09:48\n                          \n \nRésultat : Le service est rétabli sur le site Saint-Antoine\n                          suite à la prise en charge de l'incident par nos équipes.\n"]

{"sheet":"Normandie","index":15,"n_rows":47,"n_cols":13,"rows_kept":47,"cut":false,"hidden":false,"merged":[]}
[]
[]
["Etablissement","NB Chb","Dispo (resp. SC) (%)","Dispo (toutes resp) (%)","LatMax (ms)","BPMin (Mb/s)","BPMoy (Mb/s)","BPMin 19h-23h (Mb/s)","BPMoy 19h-23h (Mb/s)","Nb de Chb fibrées","Nb de Chb en cours de fibrage"]
["CROUS Normandie",{"$f":"SUM(B8:B47)","v":10136},{"$f":"SUMPRODUCT(B8:B47,C8:C47)/SUM(B8:B47)","v":99.946119771112862},{"$f":"SUMPRODUCT(B8:B47,D8:D47)/SUM(B8:B47)","v":99.833414561957383},{"$f":"SUMPRODUCT(B8:B47,E8:E47)/SUM(B8:B47)","v":8.7095501183898971},{"$f":"SUMPRODUCT(B8:B47,F8:F47)/SUM(B8:B47)","v":233.01767955801103},{"$f":"SUMPRODUCT(B8:B47,G8:G47)/SUM(B8:B47)","v":282.809865824783},{"$f":"SUMPRODUCT(B8:B47,H8:H47)/SUM(B8:B47)","v":214.01481846882402},{"$f":"SUMPRODUCT(B8:B47,I8:I47)/SUM(B8:B47)","v":249.20287095501186},{"$f":"SUMIFS(B8:B47,K8:K47,\"=Fibre\")","v":10114},{"$f":"SUMIFS(B8:B47,K8:K47,\"=Fibrage en cours\")","v":0}]
["","","","","","","","","",{"$f":"J4/B4","v":0.99782951854775059},{"$f":"K4/B4","v":0}]
[]
["Résidence","NB Chb","Dispo (resp. SC) (%)","Dispo (toutes resp) (%)","LatMax (ms)","BPMin (Mb/s)","BPMoy (Mb/s)","BPMin 19h-23h (Mb/s)","BPMoy 19h-23h (Mb/s)","Hors GTR","Collecte","Type de service","Remarques"]
["A'Dock",101,100,100,29,74.099999999999994,83.8,71,77.099999999999994,0,"Fibre","SmartCampus",""]
["ANDRÉ BRETON",179,99.8,99.52,7,74.2,115.4,69.099999999999994,88,0,"Fibre","SmartCampus","Le 11/06/21 / responsabilité SmartCampus / Site injoignable / durée  : 2.0 heure(s) : Site injoignable\n                          Diagnostic : aucun équipement n'est joignable sur le site\n                          Périmètre de l'incident : l'ensemble du site.\n                          Impact de l'incident : coupure du service\n                          Le site a-t-il été informé? non\n\n                          Alerte Kiwi \"#21449172\" ouverte le 11/06/2021 à 17:42\n                          \n \nRésultat : Le service est rétabli sur le site André Breton\n                          suite à la prise en charge de l'incident par nos équipes.\n\n\nLe 11/06/21 / responsabilité SmartCampus / Site injoignable / durée  : 1.0 heure(s) : Site injoignable / service Wifirst totalement indisponible\nDiagnostic : Les équipements Wifirst sont injoignables ou les services Wifirst ne sont plus opérationnels\nPérimètre : l’ensemble du site\nImpact : Service interrompu \nRésultat : Action(s) réalisée(s) :\nCommentaire :  le service est rétabli suite à défaut énergie sur site"]
["Barbet",82,100,100,22,66.7,80.7,60.9,72.2,0,"Fibre","SmartCampus",""]
["Bougainville",119,100,100,14,75.8,95.2,72.099999999999994,81.400000000000006,0,"Fibre","SmartCampus",""]
["Boulevard des Belges",136,100,100,4,69.8,100,55.2,82.2,0,"Fibre","SmartCampus",""]
["Bovary",136,100,100,16,80.2,104.4,69.599999999999994,88.3,0,"Fibre","SmartCampus",""]
["Cap Avenues",82,100,100,8,54.3,74.8,36.5,63.1,0,"Fibre","SmartCampus",""]
["Caucriauville",238,100,100,25,136.30000000000001,158.9,132.19999999999999,152,0,"Fibre","SmartCampus",""]
["Cité universitaire campus 1 Bat Lorge",22,100,99.98,65,6.9,8.8000000000000007,5.8,8.1999999999999993,0,"ADSL","SmartCampus","Le 10/06/21 / responsabilité SmartCampus / Site injoignable / durée  : 0.0 heure(s) : Site injoignable\n                          Diagnostic : aucun équipement n'est joignable sur le site\n                          Périmètre de l'incident : l'ensemble du site.\n                          Impact de l'incident : coupure du service\n                          Le site a-t-il été informé? non\n\n                          Alerte Kiwi \"#21449125\" ouverte le 10/06/2021 à 17:54\n                          \n \nRésultat : Le service est rétabli sur le site Cité universitaire campus 1 Bat Lorge\n                          suite à la prise en charge de l'incident par nos équipes.\n"]
["Cité Universitaire Campus 1 Cité Campus",704,100,99.27,4,390.1,466.4,360.1,417.5,1,"Fibre","SmartCampus","Le 10/06/21 / responsabilité SmartCampus / Site injoignable / durée  : 5.0 heure(s) : Site injoignable\n                          Diagnostic : aucun équipement n'est joignable sur le site\n                          Périmètre de l'incident : l'ensemble du site.\n                          Impact de l'incident : coupure du service\n                          Le site a-t-il été informé? non\n\n                          Alerte Kiwi \"#21449114\" ouverte le 10/06/2021 à 12:06\n                          \n \nRésultat : Le service est rétabli sur le site Campus 1 (Cité U)\n                          suite à la prise en charge de l'incident par nos équipes.\n"]
["Cité Universitaire Campus 1(batiment F, B,G)",343,100,99.27,4,276.60000000000002,322.60000000000002,247.9,293,1,"Fibre","SmartCampus","Le 10/06/21 / responsabilité SmartCampus / Site injoignable / durée  : 5.0 heure(s) : Site injoignable\n                          Diagnostic : aucun équipement n'est joignable sur le site\n                          Périmètre de l'incident : l'ensemble du site.\n                          Impact de l'incident : coupure du service\n                          Le site a-t-il été informé? non\n\n                          Alerte Kiwi \"#21449110\" ouverte le 10/06/2021 à 12:06\n                          \n \nRésultat : Le service est rétabli sur le site Campus 1 (Cité U)\n                          suite à la prise en charge de l'incident par nos équipes.\n"]
["CLOVIS",100,100,100,31,54,79.2,47.1,64.7,0,"Fibre","SmartCampus",""]
["Côte de Nacre",324,100,100,4,804.4,852.9,792.4,817.8,0,"Fibre","SmartCampus",""]
["Crous Caen - Herouville - Grémillon A, B, C, D, E",596,99.8,99.52,7,210.8,299.8,154.80000000000001,231.7,0,"Fibre","SmartCampus","Le 11/06/21 / responsabilité SmartCampus / Site injoignable / durée  : 2.0 heure(s) : Site injoignable\n                          Diagnostic : aucun équipement n'est joignable sur le site\n                          Périmètre de l'incident : l'ensemble du site.\n                          Impact de l'incident : coupure du service\n                          Le site a-t-il été informé? non\n\n                          Alerte Kiwi \"#21449173\" ouverte le 11/06/2021 à 17:42\n                          \n \nRésultat : Le service est rétabli sur le site Herouville Grémillon (bat A à E)\n                          suite à la prise en charge de l'incident par nos équipes.\n\n\nLe 11/06/21 / responsabilité SmartCampus / Site injoignable / durée  : 1.0 heure(s) : Site injoignable / service Wifirst totalement indisponible\nDiagnostic : Les équipements Wifirst sont injoignables ou les services Wifirst ne sont plus opérationnels\nPérimètre : l’ensemble du site\nImpact : Service interrompu \nRésultat : Action(s) réalisée(s) :\nCommentaire :  le service est rétabli suite à défaut énergie sur site"]
["CROUS CAEN - Lebisey",867,100,100,15,408.8,521.20000000000005,364.1,439.9,0,"Fibre","PlanetCampus",""]
["DUGUAY TROUIN",97,100,100,23,78.099999999999994,90.3,73.2,83.8,0,"Fibre","SmartCampus",""]
["Erik Satie",180,100,100,4,128.9,157.30000000000001,119.9,139.69999999999999,0,"Fibre","SmartCampus",""]
["Galois",148,100,100,11,74.5,104.2,60.4,83.5,0,"Fibre","SmartCampus",""]
["Georges Charpak",75,100,100,8,58.4,75.400000000000006,55.6,65.400000000000006,0,"Fibre","SmartCampus",""]
["Godehilde",119,100,100,6,87.7,102.5,79.3,94.2,0,"Fibre","SmartCampus",""]
["Jardins St Paul A-B",95,100,100,24,65.8,78.8,58.8,71.599999999999994,0,"Fibre","SmartCampus",""]
["l'Iton",270,100,100,12,206.6,243.5,194.6,219.5,0,"Fibre","SmartCampus",""]
["La Varende",101,100,99.96,4,51.8,82.9,45.2,60.7,0,"Fibre","SmartCampus","Le 21/06/21 / responsabilité SmartCampus / Site injoignable / durée  : 0.0 heure(s) : Site injoignable\n                          Diagnostic : aucun équipement n'est joignable sur le site\n                          Périmètre de l'incident : l'ensemble du site.\n                          Impact de l'incident : coupure du service\n                          Le site a-t-il été informé? non\n\n                          Alerte Kiwi \"#21449594\" ouverte le 21/06/2021 à 11:50\n                          \n \nRésultat : Le service est rétabli sur le site La Varende\n                          suite à la prise en charge de l'incident par nos équipes.\n"]
["Labedoyere",96,100,99.43,24,52.8,73.400000000000006,46.6,61.2,1,"Fibre","SmartCampus","Le 02/06/21 / responsabilité SmartCampus / Site injoignable / durée  : 4.0 heure(s) : Site injoignable\n                          Diagnostic : aucun équipement n'est joignable sur le site\n                          Périmètre de l'incident : l'ensemble du site.\n                          Impact de l'incident : coupure du service\n                          Le site a-t-il été informé? non\n\n                          Alerte Kiwi \"#21448688\" ouverte le 02/06/2021 à 20:12\n                          \n \nRésultat : site à nouveau joignable"]
["Le Havre Delavigne A-B-C",120,100,100,18,68.2,89.6,60.4,76.8,0,"Fibre","SmartCampus",""]
["Le Rouvray",141,100,100,4,69.8,115.6,55.6,84.5,0,"Fibre","SmartCampus",""]
["Lecesne",138,100,100,23,59.3,90.6,48.9,71,0,"Fibre","PlanetCampus",""]
["Madrillet (A, B, C)",99,100,100,4,30.5,65.599999999999994,17.2,40.6,0,"Fibre","SmartCampus",""]
["Malibran",139,100,100,4,94.5,111.1,90.9,101.4,0,"Fibre","SmartCampus",""]
["Panorama 1 (Honneger-Saint Saens-Boiledieu)",308,100,100,4,48.3,76,42.2,59.3,0,"Fibre","SmartCampus",""]
["Panorama 2 (Scudery-Maupassant-Flaubert-Delavigne-Ango)",495,100,100,4,110.6,135.9,100.1,120.1,0,"Fibre","SmartCampus",""]
["Panorama 3 (Thomas Corneille-Pierre Corneille-Gericault-Dufy-PleiadeB)",379,100,100,4,44.8,65.7,35.700000000000003,51.9,0,"Fibre","SmartCampus",""]
["Panorama 4 Cité du Bois (Poussin-Monet)",620,100,100,4,133.4,170.2,113.4,145.1,0,"Fibre","SmartCampus",""]
["Pierre Gilles de Gennes - Rouen",115,100,100,27,72,92.7,63.2,82,0,"Fibre","SmartCampus",""]
["Pléiade B",125,100,100,4,25.7,34.200000000000003,23.1,28.8,0,"Fibre","SmartCampus",""]
["Résidence Edmont Bacot Bat 1-9",745,100,100,4,752.8,823.3,732.4,777.7,0,"Fibre","SmartCampus",""]
["Résidence Edmont Bacot Bat A,B,C",171,97.97,97.97,4,129,160.69999999999999,132.69999999999999,148.69999999999999,1,"Fibre","SmartCampus","Le 23/06/21 / responsabilité SmartCampus / Site injoignable / durée  : 14.0 heure(s) : Site injoignable / service Wifirst totalement indisponible\nDiagnostic : Les équipements Wifirst sont injoignables ou les services Wifirst ne sont plus opérationnels\nPérimètre : l’ensemble du site\nImpact : Service interrompu \nRésultat : Action(s) réalisée(s) :\nCommentaire :\nwibox remplacé ; conf OK , test avec le client OK "]
["Résidence La Pléiade A1-A2-A3",970,100,100,4,189.4,256.89999999999998,172.4,210.8,0,"Fibre","SmartCampus",""]
["Résidence Universitaire Flora Tristan",220,99.8,99.51,7,100.8,140.4,85.7,112.1,0,"Fibre","PlanetCampus","Le 11/06/21 / responsabilité SmartCampus / Site injoignable / durée  : 2.0 heure(s) : Site injoignable\n                          Diagnostic : aucun équipement n'est joignable sur le site\n                          Périmètre de l'incident : l'ensemble du site.\n                          Impact de l'incident : coupure du service\n                          Le site a-t-il été informé? non\n\n                          Alerte Kiwi \"#21449171\" ouverte le 11/06/2021 à 17:40\n                          \n \nRésultat : Le service est rétabli sur le site Résidence Universitaire Flora Tristan\n                          suite à la prise en charge de l'incident par nos équipes.\n\n\nLe 11/06/21 / responsabilité SmartCampus / Site injoignable / durée  : 1.0 heure(s) : Site injoignable / service Wifirst totalement indisponible\nDiagnostic : Les équipements Wifirst sont injoignables ou les services Wifirst ne sont plus opérationnels\nPérimètre : l’ensemble du site\nImpact : Service interrompu \nRésultat : Action(s) réalisée(s) :\nCommentaire :  le service est rétabli suite à défaut énergie sur site"]
["Saint-Nicolas",141,100,99.73,23,89.8,115.5,79,95.9,0,"Fibre","SmartCampus","Le 27/06/21 / responsabilité SmartCampus / Site injoignable / durée  : 1.0 heure(s) : Site injoignable\n                          Diagnostic : aucun équipement n'est joignable sur le site\n                          Périmètre de l'incident : l'ensemble du site.\n                          Impact de l'incident : coupure du service\n                          Le site a-t-il été informé? non\n\n                          Alerte Kiwi \"#21449897\" ouverte le 27/06/2021 à 13:50\n                          \n \nRésultat : Le service est rétabli sur le site Saint-Nicolas\n                          suite à la prise en charge de l'incident par nos équipes.\n"]

{"sheet":"ORLEANS TOURS","index":16,"n_rows":42,"n_cols":13,"rows_kept":42,"cut":false,"hidden":false,"merged":[]}
[]
[]
["Etablissement","NB Chb","Dispo (resp. SC) (%)","Dispo (toutes resp) (%)","LatMax (ms)","BPMin (Mb/s)","BPMoy (Mb/s)","BPMin 19h-23h (Mb/s)","BPMoy 19h-23h (Mb/s)","Nb de Chb fibrées","Nb de Chb en cours de fibrage"]
["CROUS ORLEANS TOURS",{"$f":"SUM(B8:B42)","v":5470},{"$f":"SUMPRODUCT(B8:B42,C8:C42)/SUM(B8:B42)","v":99.999692870201102},{"$f":"SUMPRODUCT(B8:B42,D8:D42)/SUM(B8:B42)","v":99.897707495429614},{"$f":"SUMPRODUCT(B8:B42,E8:E42)/SUM(B8:B42)","v":11.69744058500914},{"$f":"SUMPRODUCT(B8:B42,F8:F42)/SUM(B8:B42)","v":134.85901279707497},{"$f":"SUMPRODUCT(B8:B42,G8:G42)/SUM(B8:B42)","v":178.63778793418649},{"$f":"SUMPRODUCT(B8:B42,H8:H42)/SUM(B8:B42)","v":115.80610603290677},{"$f":"SUMPRODUCT(B8:B42,I8:I42)/SUM(B8:B42)","v":148.76914076782447},{"$f":"SUMIFS(B8:B42,K8:K42,\"=Fibre\")","v":5397},{"$f":"SUMIFS(B8:B42,K8:K42,\"=Fibrage en cours\")","v":0}]
["","","","","","","","","",{"$f":"J4/B4","v":0.98665447897623404},{"$f":"K4/B4","v":0}]
[]
["Résidence","NB Chb","Dispo (resp. SC) (%)","Dispo (toutes resp) (%)","LatMax (ms)","BPMin (Mb/s)","BPMoy (Mb/s)","BPMin 19h-23h (Mb/s)","BPMoy 19h-23h (Mb/s)","Hors GTR","Collecte","Type de service","Remarques"]
["Amarillys",48,100,100,16,74.599999999999994,84.3,62.4,77.8,0,"Fibre","PlanetCampus",""]
["Aristote",252,100,100,3,77.400000000000006,101.7,68,84.9,0,"Fibre","PlanetCampus",""]
["Campo Santo",126,100,100,13,78.099999999999994,101.9,74.8,90,0,"Fibre","SmartCampus",""]
["Charlemagne",35,100,100,52,51.1,58.6,48.1,55.2,0,"Fibre","PlanetCampus",""]
["Christophe Colomb",78,100,100,5,62,79.400000000000006,53.8,67.3,0,"Fibre","PlanetCampus",""]
["Cité universitaire des TANNEURS",153,100,100,12,93.5,114.4,87.2,102.5,0,"Fibre","SmartCampus",""]
["Coinchettes",55,100,92.76,42,6.8,8.6999999999999993,6.8,8.3000000000000007,1,"ADSL","SmartCampus","Le 25/06/21 / responsabilité SmartCampus / Site injoignable / durée  : 52.0 heure(s) : Site injoignable\n                          Diagnostic : aucun équipement n'est joignable sur le site\n                          Périmètre de l'incident : l'ensemble du site.\n                          Impact de l'incident : coupure du service\n                          Le site a-t-il été informé? non\n\n                          Alerte Kiwi \"#21449861\" ouverte le 25/06/2021 à 15:16\n                          \n \nRésultat : Action(s) réalisée(s) :\nCommentaire :\nLa baie a disjoncté.\nModem Ligne 2  sur le mauvais port du switch (port 7) deplacé sur le port 2.\ntest ligne 2 OK.\ndisjoncteur ON de la baie.\nTest ligne 1 OK.\nTest Ligne 3 OK.\n\nRAS Site UP si le service tombe à nouveau ré-intervenir pour changé le modem 4G."]
["Desfray",113,100,100,43,103.3,122,90.9,109.4,0,"Fibre","PlanetCampus",""]
["Dessaux",110,100,100,13,55.3,86.4,48.6,65.8,0,"Fibre","PlanetCampus",""]
["Ducoux",98,100,100,40,68.2,85.9,63.4,74.599999999999994,0,"Fibre","PlanetCampus",""]
["Europa Tours",168,99.99,99.99,29,96.7,120.4,88.6,105.7,0,"Fibre","SmartCampus","Le 16/06/21 / responsabilité SmartCampus / Site injoignable / durée  : 0.0 heure(s) : Site injoignable / service Wifirst totalement indisponible\nDiagnostic : Les équipements Wifirst sont injoignables ou les services Wifirst ne sont plus opérationnels\nPérimètre : l’ensemble du site\nImpact : Service interrompu \nRésultat : TP en cours : https://ticket-v2.wifirst.net/tickets#?id=228433"]
["Flandres",62,100,100,43,66.7,77,62.2,71.099999999999994,0,"Fibre","PlanetCampus",""]
["Gibjoncs",206,100,100,12,137.5,159.80000000000001,126.4,144.9,0,"Fibre","PlanetCampus",""]
["Grandmont",535,100,100,9,465.7,582,382.6,496.7,0,"Fibre","PlanetCampus",""]
["Helene Boucher Tours",89,100,100,13,59.5,77,51.7,65.400000000000006,0,"Fibre","PlanetCampus",""]
["Hotel Dieu",74,100,100,18,67.400000000000006,81.8,63,72.2,0,"Fibre","PlanetCampus",""]
["Jacquard",39,100,96.01,19,58.6,63.2,55.4,60.8,1,"Fibre","PlanetCampus","Le 02/06/21 / responsabilité SmartCampus / Site injoignable / durée  : 28.0 heure(s) : Site injoignable\n                          Diagnostic : aucun équipement n'est joignable sur le site\n                          Périmètre de l'incident : l'ensemble du site.\n                          Impact de l'incident : coupure du service\n                          Le site a-t-il été informé? non\n\n                          Alerte Kiwi \"#21448664\" ouverte le 02/06/2021 à 12:04\n                          \n \nRésultat : Action(s) réalisée(s) :\nCommentaire :\nProblème d'alimentation électrique disjoncteur Off.\nSite Up aprés reboot.\n\nRAS.\n"]
["Jean Zay - Chartres",51,100,100,5,68.5,78.5,63.5,71.8,0,"Fibre","PlanetCampus",""]
["L'Indien (Hetres - Roses - Dahlias)",654,100,100,3,150.1,229.1,120.5,170,0,"Fibre","PlanetCampus",""]
["La Chapelle",18,100,100,47,8.3000000000000007,9.5,7.5,9.1999999999999993,0,"ADSL","SmartCampus",""]
["La Croix Montoire-Petit Trianon",60,100,100,5,92.5,97.1,90.2,95.3,0,"Fibre","SmartCampus",""]
["Les Charmes",190,100,100,3,50,74.599999999999994,47,57.3,0,"Fibre","PlanetCampus",""]
["Les Chataigniers",338,100,100,3,84.6,128.6,77.5,101.8,0,"Fibre","PlanetCampus",""]
["Les Garennes",235,100,100,6,73.099999999999994,136.1,48.3,93.5,0,"Fibre","PlanetCampus",""]
["Les Magnolias",190,100,100,3,51.2,74.400000000000006,47.6,59.6,0,"Fibre","PlanetCampus",""]
["Les Ormes",246,100,100,3,88.7,106.3,77.2,96.7,0,"Fibre","PlanetCampus",""]
["Marie Curie - Lahitolle",81,100,99.95,12,71.5,84.9,65.599999999999994,78.599999999999994,0,"Fibre","SmartCampus","Le 29/06/21 / responsabilité SmartCampus / Site injoignable / durée  : 0.0 heure(s) : Site injoignable\n                          Diagnostic : aucun équipement n'est joignable sur le site\n                          Périmètre de l'incident : l'ensemble du site.\n                          Impact de l'incident : coupure du service\n                          Le site a-t-il été informé? non\n\n                          Alerte Kiwi \"#21449966\" ouverte le 29/06/2021 à 09:50\n                          \n \nRésultat : Le service est rétabli sur le site Marie Curie - Lahitolle\n                          suite à la prise en charge de l'incident par nos équipes.\n"]
["Merleau Ponty",51,100,100,12,57.3,66.7,54.8,62,0,"Fibre","PlanetCampus",""]
["Rabelais - Tours",160,100,100,12,60.3,110.4,43.9,80.5,0,"Fibre","SmartCampus",""]
["Rocheron",80,100,100,33,65.900000000000006,84.9,53.7,72.5,0,"Fibre","PlanetCampus",""]
["Saint Symphorien",150,100,100,9,49.2,70.3,39.799999999999997,55.9,0,"Fibre","SmartCampus",""]
["Sanitas",127,100,100,34,77.5,99.4,68.5,87.6,0,"Fibre","SmartCampus",""]
["Technopole Tours",400,100,100,12,247.4,315.39999999999998,232.3,272.3,0,"Fibre","PlanetCampus",""]
["Tonnelle - Tours",126,100,100,13,76.7,100.2,62.9,86.6,0,"Fibre","PlanetCampus",""]
["Toussaint Desanti",72,100,100,4,68.400000000000006,77.900000000000006,63,71.2,0,"Fibre","PlanetCampus",""]

{"sheet":"POITIERS","index":17,"n_rows":11,"n_cols":13,"rows_kept":11,"cut":false,"hidden":false,"merged":[]}
[]
[]
["Etablissement","NB Chb","Dispo (resp. SC) (%)","Dispo (toutes resp) (%)","LatMax (ms)","BPMin (Mb/s)","BPMoy (Mb/s)","BPMin 19h-23h (Mb/s)","BPMoy 19h-23h (Mb/s)","Nb de Chb fibrées","Nb de Chb en cours de fibrage"]
["CROUS POITIERS",{"$f":"SUM(B8:B11)","v":589},{"$f":"SUMPRODUCT(B8:B11,C8:C11)/SUM(B8:B11)","v":100},{"$f":"SUMPRODUCT(B8:B11,D8:D11)/SUM(B8:B11)","v":99.898132427843805},{"$f":"SUMPRODUCT(B8:B11,E8:E11)/SUM(B8:B11)","v":13.667232597623091},{"$f":"SUMPRODUCT(B8:B11,F8:F11)/SUM(B8:B11)","v":536.56196943972839},{"$f":"SUMPRODUCT(B8:B11,G8:G11)/SUM(B8:B11)","v":589.79252971137532},{"$f":"SUMPRODUCT(B8:B11,H8:H11)/SUM(B8:B11)","v":521.05415959252969},{"$f":"SUMPRODUCT(B8:B11,I8:I11)/SUM(B8:B11)","v":556.99049235993209},{"$f":"SUMIFS(B8:B11,K8:K11,\"=Fibre\")","v":589},{"$f":"SUMIFS(B8:B11,K8:K11,\"=Fibrage en cours\")","v":0}]
["","","","","","","","","",{"$f":"J4/B4","v":1},{"$f":"K4/B4","v":0}]
[]
["Résidence","NB Chb","Dispo (resp. SC) (%)","Dispo (toutes resp) (%)","LatMax (ms)","BPMin (Mb/s)","BPMoy (Mb/s)","BPMin 19h-23h (Mb/s)","BPMoy 19h-23h (Mb/s)","Hors GTR","Collecte","Type de service","Remarques"]
["CROUS POITIERS / COULOMB",30,100,100,10,38.4,49.6,30.5,42.7,0,"Fibre","PlanetCampus",""]
["L'Auberge Espagnole",63,100,100,10,51.4,69.8,46.1,58.4,0,"Fibre","SmartCampus",""]
["Rabelais-Poitiers",400,100,99.85,13,765,835.3,745.8,792,0,"Fibre","PlanetCampus","Le 18/06/21 / responsabilité SmartCampus / Site injoignable / durée  : 1.0 heure(s) : Site injoignable\n                          Diagnostic : aucun équipement n'est joignable sur le site\n                          Périmètre de l'incident : l'ensemble du site.\n                          Impact de l'incident : coupure du service\n                          Le site a-t-il été informé? non\n\n                          Alerte Kiwi \"#21449480\" ouverte le 18/06/2021 à 13:22\n                          \n \nRésultat : Le service est rétabli sur le site Rabelais - Poitiers\n                          suite à la prise en charge de l'incident par nos équipes.\n"]
["Saint Eloi",96,100,100,20,58.8,76.900000000000006,49.6,65.7,0,"Fibre","PlanetCampus",""]

{"sheet":"REIMS","index":18,"n_rows":23,"n_cols":13,"rows_kept":23,"cut":false,"hidden":false,"merged":[]}
[]
[]
["Etablissement","NB Chb","Dispo (resp. SC) (%)","Dispo (toutes resp) (%)","LatMax (ms)","BPMin (Mb/s)","BPMoy (Mb/s)","BPMin 19h-23h (Mb/s)","BPMoy 19h-23h (Mb/s)","Nb de Chb fibrées","Nb de Chb en cours de fibrage"]
["CROUS REIMS",{"$f":"SUM(B8:B23)","v":2382},{"$f":"SUMPRODUCT(B8:B23,C8:C23)/SUM(B8:B23)","v":100},{"$f":"SUMPRODUCT(B8:B23,D8:D23)/SUM(B8:B23)","v":100},{"$f":"SUMPRODUCT(B8:B23,E8:E23)/SUM(B8:B23)","v":5.7900923593618812},{"$f":"SUMPRODUCT(B8:B23,F8:F23)/SUM(B8:B23)","v":135.62569269521413},{"$f":"SUMPRODUCT(B8:B23,G8:G23)/SUM(B8:B23)","v":170.09605373635603},{"$f":"SUMPRODUCT(B8:B23,H8:H23)/SUM(B8:B23)","v":119.22888329135181},{"$f":"SUMPRODUCT(B8:B23,I8:I23)/SUM(B8:B23)","v":147.96267842149453},{"$f":"SUMIFS(B8:B23,K8:K23,\"=Fibre\")","v":2382},{"$f":"SUMIFS(B8:B23,K8:K23,\"=Fibrage en cours\")","v":0}]
["","","","","","","","","",{"$f":"J4/B4","v":1},{"$f":"K4/B4","v":0}]
[]
["Résidence","NB Chb","Dispo (resp. SC) (%)","Dispo (toutes resp) (%)","LatMax (ms)","BPMin (Mb/s)","BPMoy (Mb/s)","BPMin 19h-23h (Mb/s)","BPMoy 19h-23h (Mb/s)","Hors GTR","Collecte","Type de service","Remarques"]
["Bazeilles",28,100,100,20,49.6,52.6,49.4,52.1,0,"Fibre","SmartCampus",""]
["Berlioz",165,100,100,3,68,110.4,52.1,79.7,0,"Fibre","PlanetCampus",""]
["Billard",100,100,100,3,77.599999999999994,86.1,71.599999999999994,82.4,0,"Fibre","PlanetCampus",""]
["CHARBONNEAUX",225,100,100,3,178.8,211.7,163.19999999999999,190.5,0,"Fibre","PlanetCampus",""]
["Courtines",48,100,100,14,54.3,62.7,51.3,58.9,0,"Fibre","SmartCampus",""]
["Evariste Galois Reims",308,100,100,3,206,243.3,183.9,216.5,0,"Fibre","PlanetCampus",""]
["Facultes",225,100,100,3,121.9,154,105.1,133.69999999999999,0,"Fibre","SmartCampus",""]
["FJT Chalons - Le Faubourg (CROUS)",39,100,100,17,53,59,49.9,56.1,0,"Fibre","PlanetCampus",""]
["Gerard Philippe",330,100,100,3,207.2,254.8,185.2,228.9,0,"Fibre","PlanetCampus",""]
["Jean Baptiste Clément",17,100,100,19,39.200000000000003,45.5,31,42.2,0,"Fibre","PlanetCampus",""]
["La Gravière",39,100,100,19,48.2,59.4,35.299999999999997,54.6,0,"Fibre","PlanetCampus",""]
["LE LOMBARD",120,100,100,13,43.8,79.2,31.9,57.8,0,"Fibre","SmartCampus",""]
["Maison des Etudiants Charleville",75,100,100,21,64.5,75.099999999999994,60.7,69.5,0,"Fibre","PlanetCampus",""]
["Paul Fort",250,100,100,3,166.6,195.1,159.1,178.5,0,"Fibre","PlanetCampus",""]
["Theilard de Chardin",248,100,100,3,136.5,185.8,116.7,151.30000000000001,0,"Fibre","PlanetCampus",""]
["Villehardouin",165,100,100,13,63,104.1,32.299999999999997,74.400000000000006,0,"Fibre","SmartCampus",""]

{"sheet":"RENNES-BRETAGNE","index":19,"n_rows":46,"n_cols":13,"rows_kept":46,"cut":false,"hidden":false,"merged":[]}
[]
[]
["Etablissement","NB Chb","Dispo (resp. SC) (%)","Dispo (toutes resp) (%)","LatMax (ms)","BPMin (Mb/s)","BPMoy (Mb/s)","BPMin 19h-23h (Mb/s)","BPMoy 19h-23h (Mb/s)","Nb de Chb fibrées","Nb de Chb en cours de fibrage"]
["CROUS RENNES-BRETAGNE",{"$f":"SUM(B8:B46)","v":7848},{"$f":"SUMPRODUCT(B8:B46,C8:C46)/SUM(B8:B46)","v":99.867372579001},{"$f":"SUMPRODUCT(B8:B46,D8:D46)/SUM(B8:B46)","v":99.517471967380203},{"$f":"SUMPRODUCT(B8:B46,E8:E46)/SUM(B8:B46)","v":11.945081549439347},{"$f":"SUMPRODUCT(B8:B46,F8:F46)/SUM(B8:B46)","v":188.71495922528035},{"$f":"SUMPRODUCT(B8:B46,G8:G46)/SUM(B8:B46)","v":244.62468144750255},{"$f":"SUMPRODUCT(B8:B46,H8:H46)/SUM(B8:B46)","v":168.61932976554536},{"$f":"SUMPRODUCT(B8:B46,I8:I46)/SUM(B8:B46)","v":207.68182976554536},{"$f":"SUMIFS(B8:B46,K8:K46,\"=Fibre\")","v":7697},{"$f":"SUMIFS(B8:B46,K8:K46,\"=Fibrage en cours\")","v":0}]
["","","","","","","","","",{"$f":"J4/B4","v":0.98075942915392456},{"$f":"K4/B4","v":0}]
[]
["Résidence","NB Chb","Dispo (resp. SC) (%)","Dispo (toutes resp) (%)","LatMax (ms)","BPMin (Mb/s)","BPMoy (Mb/s)","BPMin 19h-23h (Mb/s)","BPMoy 19h-23h (Mb/s)","Hors GTR","Collecte","Type de service","Remarques"]
["Barbara",98,100,100,9,74.7,88.6,67.599999999999994,78.8,0,"Fibre","PlanetCampus",""]
["Beauregard",93,100,100,8,64.8,85.3,56.3,72.3,0,"Fibre","PlanetCampus",""]
["Branly",304,100,100,22,159.1,199,146.6,189.7,0,"Fibre","PlanetCampus",""]
["Brest Le Bouguen",379,100,100,15,271.60000000000002,313.7,252.6,287.39999999999998,0,"Fibre","PlanetCampus",""]
["Gernugan",57,100,100,14,57.1,66.8,48.6,61.1,0,"Fibre","PlanetCampus",""]
["Jean Ferrat - Buttes de Coesmes A",40,92.38,92.38,52,10.1,13,9.6999999999999993,12.7,1,"ADSL","SmartCampus","Le 17/06/21 / responsabilité SmartCampus / Site injoignable / durée  : 54.0 heure(s) : Site injoignable\n                          Diagnostic : aucun équipement n'est joignable sur le site\n                          Périmètre de l'incident : l'ensemble du site.\n                          Impact de l'incident : coupure du service\n                          Le site a-t-il été informé? non\n\n                          Alerte Kiwi \"#21449455\" ouverte le 17/06/2021 à 23:24\n                          \n \nRésultat : La wibox a été remplacéTout est OK."]
["Jean Ferrat - Buttes de Coesmes C et B",79,100,100,57,12,13.8,10.7,12.9,0,"ADSL","SmartCampus",""]
["Jules Ferry",140,100,100,16,93.2,115.8,80.7,100.8,0,"Fibre","PlanetCampus",""]
["Kergoat",736,100,100,15,451.8,501.6,420.1,470,0,"Fibre","PlanetCampus",""]
["La Gare",86,100,100,8,149.80000000000001,169.1,137,159.30000000000001,0,"Fibre","PlanetCampus",""]
["La Harpe",130,100,100,8,87,105.6,78.7,94.4,0,"Fibre","PlanetCampus",""]
["La Touche",131,100,100,8,96.2,121.7,84.1,105.5,0,"Fibre","PlanetCampus",""]
["Languedoc",185,100,95.2,10,101.8,144.69999999999999,88.9,123.3,1,"Fibre","PlanetCampus","Le 12/06/21 / responsabilité SmartCampus / Site injoignable / durée  : 0.0 heure(s) : Site injoignable\n                          Diagnostic : aucun équipement n'est joignable sur le site\n                          Périmètre de l'incident : l'ensemble du site.\n                          Impact de l'incident : coupure du service\n                          Le site a-t-il été informé? non\n\n                          Alerte Kiwi \"#21449193\" ouverte le 12/06/2021 à 12:54\n                          \n \nRésultat : Le service est rétabli sur le site Languedoc\n                          suite à la prise en charge de l'incident par nos équipes.\n\n\nLe 23/06/21 / responsabilité SmartCampus / Site injoignable / durée  : 34.0 heure(s) : Site injoignable\n                          Diagnostic : aucun équipement n'est joignable sur le site\n                          Périmètre de l'incident : l'ensemble du site.\n                          Impact de l'incident : coupure du service\n                          Le site a-t-il été informé? non\n\n                          Alerte Kiwi \"#21449725\" ouverte le 23/06/2021 à 09:44\n                          \n \nRésultat : Le service est rétabli sur le site Languedoc\n                          suite à la prise en charge de l'incident par nos équipes.\n"]
["Lann Trussac",312,100,100,17,188.9,238.7,176.9,199.2,0,"Fibre","PlanetCampus",""]
["Lanredec 1",145,100,100,16,62.9,101,48.6,73.2,0,"Fibre","PlanetCampus",""]
["Lanredec 2",143,100,100,20,78.3,106,52.4,87.2,0,"Fibre","SmartCampus",""]
["Lanveur (Les Sequoias et Les Palmiers)",46,100,100,13,332.4,358.4,324.8,340.3,0,"Fibre","PlanetCampus",""]
["Loucheur",72,100,100,13,75.2,86,69.3,80.2,0,"Fibre","PlanetCampus",""]
["Michel Denis (Normandie Saumurois)",150,100,100,8,64.2,103.2,50,78.8,0,"Fibre","PlanetCampus",""]
["Moulin de Joué",67,100,100,8,60.7,71,56.4,65.2,0,"Fibre","PlanetCampus",""]
["Paul Ricoeur Cité Internationale",79,100,100,8,52.3,75.2,45.7,59.4,0,"Fibre","SmartCampus",""]
["Rennes Beaulieu 29 E",250,100,99.07,17,53.4,79.099999999999994,39.1,63.2,1,"Fibre","SmartCampus","Le 22/06/21 / responsabilité SmartCampus / Site injoignable / durée  : 6.0 heure(s) : Site injoignable\n                          Diagnostic : aucun équipement n'est joignable sur le site\n                          Périmètre de l'incident : l'ensemble du site.\n                          Impact de l'incident : coupure du service\n                          Le site a-t-il été informé? non\n\n                          Alerte Kiwi \"#21449654\" ouverte le 22/06/2021 à 09:30\n                          \n \nRésultat : Le service est rétabli sur le site Beaulieu 29\n                          suite à la prise en charge de l'incident par nos équipes.\n"]
["Rennes Beaulieu 29 F",251,100,100,0,99,99,99,99,0,"Fibre","SmartCampus",""]
["Rennes Beaulieu 29 G",200,100,100,8,133.69999999999999,151.80000000000001,124.6,140.69999999999999,0,"Fibre","SmartCampus",""]
["Rennes Beaulieu 33 A",251,100,100,0,99,99,99,99,0,"Fibre","SmartCampus",""]
["Rennes Beaulieu 33 D B2 C",614,100,100,20,40.299999999999997,167.6,15.6,75.2,0,"Fibre","SmartCampus",""]
["Rennes Mirabeau H",77,100,100,9,10.5,20.6,7.1,14.4,0,"Fibre","SmartCampus",""]
["Rennes Mirabeau I",77,100,100,9,16.399999999999999,22.7,6.4,19,0,"Fibre","SmartCampus",""]
["Rennes Mirabeau J",156,100,100,8,78.400000000000006,106.2,67.8,87.9,0,"Fibre","SmartCampus",""]
["Rennes Mirabeau K",156,100,89.58,9,13,43.3,8.6,26.6,1,"Fibre","SmartCampus","Le 16/06/21 / responsabilité SmartCampus / Site injoignable / durée  : 75.0 heure(s) : Site injoignable\n                          Diagnostic : aucun équipement n'est joignable sur le site\n                          Périmètre de l'incident : l'ensemble du site.\n                          Impact de l'incident : coupure du service\n                          Le site a-t-il été informé? non\n\n                          Alerte Kiwi \"#21449346\" ouverte le 16/06/2021 à 11:06\n                          \n \nRésultat : Le câble d'alimentation de la wibox était débranché.\nTout est up arpès reboot."]
["Rennes Mirabeau L",154,100,100,8,106.7,131.19999999999999,95.3,113.4,0,"Fibre","SmartCampus",""]
["Rennes Patton A&B",335,100,100,8,99.9,143.6,84.6,112.6,0,"Fibre","PlanetCampus",""]
["Rennes Sevigne",247,97.02,97.02,8,105.9,154.6,87,137.80000000000001,1,"Fibre","PlanetCampus","Le 28/06/21 / responsabilité SmartCampus / Site injoignable / durée  : 20.0 heure(s) : Site injoignable\n                          Diagnostic : aucun équipement n'est joignable sur le site\n                          Périmètre de l'incident : l'ensemble du site.\n                          Impact de l'incident : coupure du service\n                          Le site a-t-il été informé? non\n\n                          Alerte Kiwi \"#21449904\" ouverte le 28/06/2021 à 03:58\n                          \n \nRésultat : Action(s) réalisée(s) :\nCommentaire :\n\nremplacement wibox H.S effectué: OK\ntest de connexion effectué: OK\n44/44 Access Points are OK\n8/8 Switches are OK.\n\nLe 30/06/21 / responsabilité SmartCampus / Site injoignable / durée  : 0.0 heure(s) : Site injoignable / service Wifirst totalement indisponible\nDiagnostic : Les équipements Wifirst sont injoignables ou les services Wifirst ne sont plus opérationnels\nPérimètre : l’ensemble du site\nImpact : Service interrompu\n\nmodem joignable\nswitch ping ok - non accessible cause modem non à jours-- upgrade en cours\nwibox ping nok - donc non accessible\nclient non joignable  \nRésultat : Action(s) réalisée(s) :\nCommentaire :\n\nproblème résolu après reboot du switch et prov de la wibox"]
["Saint Helier A",32,100,100,0,0,0,0,0,0,"ADSL","PlanetCampus",""]
["Saint Helier N",80,100,100,8,61.7,75.599999999999994,47.6,66.099999999999994,0,"Fibre","PlanetCampus",""]
["Universitaire Quimper",151,100,100,12,145.6,169.2,138.80000000000001,159.19999999999999,0,"Fibre","PlanetCampus",""]
["Villejean Alsace Ouessant -Cézembre-Bréhat",1045,100,100,7,502.8,673.6,444.9,554.70000000000005,0,"Fibre","SmartCampus",""]
["Villejean Ouest Maine1",150,100,100,8,113.5,126,108.8,120.1,0,"Fibre","SmartCampus",""]
["Villejean Ouest Maine2",150,100,100,7,110,123.9,101.3,114.6,0,"Fibre","SmartCampus",""]

{"sheet":"STRASBOURG","index":20,"n_rows":29,"n_cols":13,"rows_kept":29,"cut":false,"hidden":false,"merged":[]}
[]
[]
["Etablissement","NB Chb","Dispo (resp. SC) (%)","Dispo (toutes resp) (%)","LatMax (ms)","BPMin (Mb/s)","BPMoy (Mb/s)","BPMin 19h-23h (Mb/s)","BPMoy 19h-23h (Mb/s)","Nb de Chb fibrées","Nb de Chb en cours de fibrage"]
["CROUS STRASBOURG",{"$f":"SUM(B8:B29)","v":5193},{"$f":"SUMPRODUCT(B8:B29,C8:C29)/SUM(B8:B29)","v":99.580485268630852},{"$f":"SUMPRODUCT(B8:B29,D8:D29)/SUM(B8:B29)","v":99.534895051030233},{"$f":"SUMPRODUCT(B8:B29,E8:E29)/SUM(B8:B29)","v":8.2659349123820522},{"$f":"SUMPRODUCT(B8:B29,F8:F29)/SUM(B8:B29)","v":217.65630656653187},{"$f":"SUMPRODUCT(B8:B29,G8:G29)/SUM(B8:B29)","v":278.38571153475834},{"$f":"SUMPRODUCT(B8:B29,H8:H29)/SUM(B8:B29)","v":141.27560177161564},{"$f":"SUMPRODUCT(B8:B29,I8:I29)/SUM(B8:B29)","v":232.12728673213942},{"$f":"SUMIFS(B8:B29,K8:K29,\"=Fibre\")","v":5133},{"$f":"SUMIFS(B8:B29,K8:K29,\"=Fibrage en cours\")","v":0}]
["","","","","","","","","",{"$f":"J4/B4","v":0.98844598497978042},{"$f":"K4/B4","v":0}]
[]
["Résidence","NB Chb","Dispo (resp. SC) (%)","Dispo (toutes resp) (%)","LatMax (ms)","BPMin (Mb/s)","BPMoy (Mb/s)","BPMin 19h-23h (Mb/s)","BPMoy 19h-23h (Mb/s)","Hors GTR","Collecte","Type de service","Remarques"]
["Alfred Weiss 1",360,100,100,9,186.4,243.2,158,203.2,0,"Fibre","PlanetCampus",""]
["Alfred Weiss 2",225,100,100,9,98.7,139.19999999999999,56.2,108.5,0,"Fibre","PlanetCampus",""]
["Cattleyas",429,100,100,9,200.7,265.39999999999998,168.4,217.7,0,"Fibre","PlanetCampus",""]
["Katia et Maurice Krafft Bat 46",121,100,100,12,68.8,94.3,63.9,77,0,"Fibre","PlanetCampus",""]
["Les Agapanthes",109,100,100,8,81.400000000000006,139.69999999999999,74,98.2,0,"Fibre","PlanetCampus",""]
["Les Alternants",200,100,100,8,388.1,426.9,315,397.8,0,"Fibre","PlanetCampus",""]
["Les Berges",60,100,100,0,0,0,0,0,0,"ADSL","SmartCampus",""]
["Les Flamboyants Batiment A",404,100,100,7,488,562.20000000000005,461.8,512,0,"Fibre","PlanetCampus",""]
["Les Hauts de l'Illberg",137,100,100,10,149.1,176.1,139.4,155.6,0,"Fibre","PlanetCampus",""]
["Les Héliotropes",197,100,100,8,359.1,411.5,328.9,376.1,0,"Fibre","PlanetCampus",""]
["Master et Doctorat BAT B",152,100,100,10,80.5,109.4,67,88.3,0,"Fibre","PlanetCampus",""]
["Paul Appell Bâtiment A",252,100,99.82,8,66.7,112.8,34.5,80.400000000000006,0,"Fibre","SmartCampus","Le 09/06/21 / responsabilité SmartCampus / Site injoignable / durée  : 1.0 heure(s) : Site injoignable\n                          Diagnostic : aucun équipement n'est joignable sur le site\n                          Périmètre de l'incident : l'ensemble du site.\n                          Impact de l'incident : coupure du service\n                          Le site a-t-il été informé? non\n\n                          Alerte Kiwi \"#21449024\" ouverte le 09/06/2021 à 17:58\n                          \n \nRésultat : Le service est rétabli sur le site Paul Appell\n                          suite à la prise en charge de l'incident par nos équipes.\n"]
["Paul Appell Bâtiment B",215,100,99.82,9,78.2,114.6,46.2,87,0,"Fibre","SmartCampus","Le 09/06/21 / responsabilité SmartCampus / Site injoignable / durée  : 1.0 heure(s) : Site injoignable\n                          Diagnostic : aucun équipement n'est joignable sur le site\n                          Périmètre de l'incident : l'ensemble du site.\n                          Impact de l'incident : coupure du service\n                          Le site a-t-il été informé? non\n\n                          Alerte Kiwi \"#21449021\" ouverte le 09/06/2021 à 17:58\n                          \n \nRésultat : Le service est rétabli sur le site Paul Appell\n                          suite à la prise en charge de l'incident par nos équipes.\n"]
["Paul Appell Bâtiment C",218,100,99.82,8,91.6,121.3,76.2,101.4,0,"Fibre","SmartCampus","Le 09/06/21 / responsabilité SmartCampus / Site injoignable / durée  : 1.0 heure(s) : Site injoignable\n                          Diagnostic : aucun équipement n'est joignable sur le site\n                          Périmètre de l'incident : l'ensemble du site.\n                          Impact de l'incident : coupure du service\n                          Le site a-t-il été informé? non\n\n                          Alerte Kiwi \"#21449023\" ouverte le 09/06/2021 à 17:58\n                          \n \nRésultat : Le service est rétabli sur le site Paul Appell\n                          suite à la prise en charge de l'incident par nos équipes.\n"]
["Paul Appell Bâtiment D",224,100,99.82,8,146.30000000000001,146.4,146.30000000000001,146.4,0,"Fibre","SmartCampus","Le 09/06/21 / responsabilité SmartCampus / Site injoignable / durée  : 1.0 heure(s) : Site injoignable\n                          Diagnostic : aucun équipement n'est joignable sur le site\n                          Périmètre de l'incident : l'ensemble du site.\n                          Impact de l'incident : coupure du service\n                          Le site a-t-il été informé? non\n\n                          Alerte Kiwi \"#21449022\" ouverte le 09/06/2021 à 17:58\n                          \n \nRésultat : Le service est rétabli sur le site Paul Appell\n                          suite à la prise en charge de l'incident par nos équipes.\n"]
["Paul Appell Batiment E",271,100,100,0,175.5,175.5,175.5,175.5,0,"Fibre","SmartCampus",""]
["Paul Appell Bâtiment F",188,100,100,0,90,90,90,90,0,"Fibre","SmartCampus",""]
["Paul Appell Bâtiment SUMPS",1,100,99.91,0,0,0,0,0,0,"Fibre","SmartCampus","Le 09/06/21 / responsabilité SmartCampus / Site injoignable / durée  : 0.0 heure(s) : Site injoignable / service Wifirst totalement indisponible\nDiagnostic : Les équipements Wifirst sont injoignables ou les services Wifirst ne sont plus opérationnels\nPérimètre : l’ensemble du site\nImpact : Service interrompu \nRésultat : Action(s) réalisée(s) :\nCommentaire :"]
["Residence Expressions",166,100,99.56,10,81.599999999999994,114.7,31.2,89.3,0,"Fibre","PlanetCampus","Le 29/06/21 / responsabilité SmartCampus / Site injoignable / durée  : 3.0 heure(s) : Site injoignable\n                          Diagnostic : aucun équipement n'est joignable sur le site\n                          Périmètre de l'incident : l'ensemble du site.\n                          Impact de l'incident : coupure du service\n                          Le site a-t-il été informé? non\n\n                          Alerte Kiwi \"#21450000\" ouverte le 29/06/2021 à 16:48\n                          \n \nRésultat : Le service est rétabli sur le site Résidence Expressions\n                          suite à la prise en charge de l'incident par nos équipes.\n"]
["Résidence Gallia",213,100,100,9,119.1,155.4,108.3,135.4,0,"Fibre","PlanetCampus",""]
["Robertsau",904,100,100,9,369.4,538.5,39.700000000000003,399,0,"Fibre","PlanetCampus",""]
["Somme",147,85.18,85.18,23,243.6,246.5,243.6,248.4,1,"Fibre","PlanetCampus","Le 20/06/21 / responsabilité SmartCampus / Site injoignable / durée  : 106.0 heure(s) : Site injoignable\n                          Diagnostic : aucun équipement n'est joignable sur le site\n                          Périmètre de l'incident : l'ensemble du site.\n                          Impact de l'incident : coupure du service\n                          Le site a-t-il été informé? non\n\n                          Alerte Kiwi \"#21449568\" ouverte le 20/06/2021 à 21:14\n                          \n \nRésultat : De nouveau Pont radio ont été installé :\nPNR sur le port 4 du SW principal en 172.22.0.51\nPRR sur le port 9 du SW principal du Hotspot Flamboyant A en 172.22.0.50\nTout est up sur SoMME"]

{"sheet":"TOULOUSE","index":21,"n_rows":34,"n_cols":13,"rows_kept":34,"cut":false,"hidden":false,"merged":[]}
[]
[]
["Etablissement","NB Chb","Dispo (resp. SC) (%)","Dispo (toutes resp) (%)","LatMax (ms)","BPMin (Mb/s)","BPMoy (Mb/s)","BPMin 19h-23h (Mb/s)","BPMoy 19h-23h (Mb/s)","Nb de Chb fibrées","Nb de Chb en cours de fibrage"]
["CROUS TOULOUSE",{"$f":"SUM(B8:B34)","v":7219},{"$f":"SUMPRODUCT(B8:B34,C8:C34)/SUM(B8:B34)","v":100},{"$f":"SUMPRODUCT(B8:B34,D8:D34)/SUM(B8:B34)","v":99.922368749134222},{"$f":"SUMPRODUCT(B8:B34,E8:E34)/SUM(B8:B34)","v":15.616428868264302},{"$f":"SUMPRODUCT(B8:B34,F8:F34)/SUM(B8:B34)","v":246.59807452555754},{"$f":"SUMPRODUCT(B8:B34,G8:G34)/SUM(B8:B34)","v":336.25845684997915},{"$f":"SUMPRODUCT(B8:B34,H8:H34)/SUM(B8:B34)","v":201.66861061088795},{"$f":"SUMPRODUCT(B8:B34,I8:I34)/SUM(B8:B34)","v":272.12726139354476},{"$f":"SUMIFS(B8:B34,K8:K34,\"=Fibre\")","v":7174},{"$f":"SUMIFS(B8:B34,K8:K34,\"=Fibrage en cours\")","v":0}]
["","","","","","","","","",{"$f":"J4/B4","v":0.99376644964676553},{"$f":"K4/B4","v":0}]
[]
["Résidence","NB Chb","Dispo (resp. SC) (%)","Dispo (toutes resp) (%)","LatMax (ms)","BPMin (Mb/s)","BPMoy (Mb/s)","BPMin 19h-23h (Mb/s)","BPMoy 19h-23h (Mb/s)","Hors GTR","Collecte","Type de service","Remarques"]
["Aerophile",235,100,100,16,77.5,131.6,60.3,95.6,0,"Fibre","PlanetCampus",""]
["Arsenal - Bât A",227,100,100,11,118.2,155.1,107.8,135.69999999999999,0,"Fibre","PlanetCampus",""]
["Arsenal bât B et C",431,100,100,11,204.7,259.2,187.1,223.1,0,"Fibre","PlanetCampus",""]
["At'Ome",100,100,100,18,48.9,79.7,34.5,61.3,0,"Fibre","PlanetCampus",""]
["Chapou",1311,100,100,15,501.6,673.9,364.1,532.9,0,"Fibre","PlanetCampus",""]
["Cité du Taur",62,100,100,15,52.1,66.5,42.4,58.9,0,"Fibre","PlanetCampus",""]
["Clement Ader",250,100,100,15,133.9,180.4,111.7,148,0,"Fibre","PlanetCampus",""]
["Colonel Roche",502,100,100,16,146.30000000000001,251.5,85.3,180.1,0,"Fibre","PlanetCampus",""]
["CROUS TOULOUSE Humanité 1 et 2",300,100,100,15,197.8,240.7,178.8,217.3,0,"Fibre","PlanetCampus",""]
["Crous Toulouse LARREY",98,100,100,16,66,81.400000000000006,61.3,75.400000000000006,0,"Fibre","PlanetCampus",""]
["CROUS TOULOUSE Residence Laperouse",48,100,100,16,59.4,64.599999999999994,56.6,62.2,0,"Fibre","PlanetCampus",""]
["ENSAT",124,100,100,16,85.4,103.3,77.099999999999994,91.8,0,"Fibre","PlanetCampus",""]
["Faucher",972,100,100,17,376.9,538.6,336.3,427.6,0,"Fibre","PlanetCampus",""]
["Jacqueline Auriol- Toulouse",98,100,100,22,52.3,73,47.8,61,0,"Fibre","PlanetCampus",""]
["La Coulée Verte",119,100,96.18,15,56.1,85.9,43.6,65.2,1,"Fibre","PlanetCampus","Le 31/05/21 / responsabilité SmartCampus / Site injoignable / durée  : 27.0 heure(s) : Site injoignable\n                          Diagnostic : aucun équipement n'est joignable sur le site\n                          Périmètre de l'incident : l'ensemble du site.\n                          Impact de l'incident : coupure du service\n                          Le site a-t-il été informé? non\n\n                          Alerte Kiwi \"#21448577\" ouverte le 01/06/2021 à 01:02\n                          \n \nRésultat : Le service est rétabli sur le site La Coulée Verte\n                          suite à la prise en charge de l'incident par nos équipes.\n"]
["Latecoere",146,100,100,14,75.5,103.9,73.2,89.1,0,"Fibre","PlanetCampus",""]
["Le Sidobre",72,100,98.53,16,69.2,78.400000000000006,61,73.5,1,"Fibre","PlanetCampus","Le 30/06/21 / responsabilité SmartCampus / Site injoignable / durée  : 18.0 heure(s) : Site injoignable\n                          Diagnostic : aucun équipement n'est joignable sur le site\n                          Périmètre de l'incident : l'ensemble du site.\n                          Impact de l'incident : coupure du service\n                          Le site a-t-il été informé? non\n\n                          Alerte Kiwi \"#21450012\" ouverte le 30/06/2021 à 04:32\n                          \n \nRésultat : Le service est rétabli sur le site Le Sidobre\n                          suite à la prise en charge de l'incident par nos équipes.\n"]
["Les Jardins de l'Université",129,100,100,12,99.2,111.3,93,106.3,0,"Fibre","PlanetCampus",""]
["Maryse Bastié",277,100,100,15,85.3,164.1,67.3,116.2,0,"Fibre","PlanetCampus",""]
["Notre Dame",89,100,100,15,58.9,76.8,50.7,66.599999999999994,0,"Fibre","PlanetCampus",""]
["Olympe de Gouges - Toulouse",615,100,100,17,295.39999999999998,400.9,258.60000000000002,327.9,0,"Fibre","PlanetCampus",""]
["Parc Bellevue",153,100,100,16,102.8,121.5,92.2,111.8,0,"Fibre","PlanetCampus",""]
["Paul Voivenel 1 & 2",198,100,100,18,103.6,138.6,94,118.1,0,"Fibre","PlanetCampus",""]
["Petit Varèse",50,100,100,30,6.1,25.5,5.2,27.7,0,"Fibre","SmartCampus",""]
["Residence l'Astrolabe",68,100,100,18,61,73.8,57.1,67.5,0,"Fibre","PlanetCampus",""]
["Résidence Nobel",45,100,100,30,5.6,7.5,5.4,7.2,0,"ADSL","SmartCampus",""]
["Simone Veil (CROUS TOULOUSE)",500,100,100,15,273.2,318,254.7,288.7,0,"Fibre","PlanetCampus",""]

{"sheet":"VERSAILLES","index":22,"n_rows":46,"n_cols":13,"rows_kept":46,"cut":false,"hidden":false,"merged":[]}
[]
[]
["Etablissement","NB Chb","Dispo (resp. SC) (%)","Dispo (toutes resp) (%)","LatMax (ms)","BPMin (Mb/s)","BPMoy (Mb/s)","BPMin 19h-23h (Mb/s)","BPMoy 19h-23h (Mb/s)","Nb de Chb fibrées","Nb de Chb en cours de fibrage"]
["CROUS VERSAILLES",{"$f":"SUM(B8:B46)","v":8620},{"$f":"SUMPRODUCT(B8:B46,C8:C46)/SUM(B8:B46)","v":99.902330626450095},{"$f":"SUMPRODUCT(B8:B46,D8:D46)/SUM(B8:B46)","v":99.784798143851503},{"$f":"SUMPRODUCT(B8:B46,E8:E46)/SUM(B8:B46)","v":3.6187935034802785},{"$f":"SUMPRODUCT(B8:B46,F8:F46)/SUM(B8:B46)","v":196.53460556844547},{"$f":"SUMPRODUCT(B8:B46,G8:G46)/SUM(B8:B46)","v":264.92196055684457},{"$f":"SUMPRODUCT(B8:B46,H8:H46)/SUM(B8:B46)","v":165.64915313225058},{"$f":"SUMPRODUCT(B8:B46,I8:I46)/SUM(B8:B46)","v":216.84088167053366},{"$f":"SUMIFS(B8:B46,K8:K46,\"=Fibre\")","v":8559},{"$f":"SUMIFS(B8:B46,K8:K46,\"=Fibrage en cours\")","v":0}]
["","","","","","","","","",{"$f":"J4/B4","v":0.99292343387470994},{"$f":"K4/B4","v":0}]
[]
["Résidence","NB Chb","Dispo (resp. SC) (%)","Dispo (toutes resp) (%)","LatMax (ms)","BPMin (Mb/s)","BPMoy (Mb/s)","BPMin 19h-23h (Mb/s)","BPMoy 19h-23h (Mb/s)","Hors GTR","Collecte","Type de service","Remarques"]
["Adrienne Bolland",120,100,100,10,52.7,87.3,40.799999999999997,66.099999999999994,0,"Fibre","SmartCampus",""]
["C 3.5",307,99.53,99.53,2,41.3,143.4,16,66.7,0,"Fibre","PlanetCampus","Le 09/06/21 / responsabilité SmartCampus / Site injoignable / durée  : 3.0 heure(s) : Site injoignable\n                          Diagnostic : aucun équipement n'est joignable sur le site\n                          Périmètre de l'incident : l'ensemble du site.\n                          Impact de l'incident : coupure du service\n                          Le site a-t-il été informé? non\n\n                          Alerte Kiwi \"#21449000\" ouverte le 09/06/2021 à 12:16\n                          \n \nRésultat : Action(s) réalisée(s) :\nCommentaire :"]
["Charlotte PERRIAND (anciennement Antony Renaissance )",179,100,100,2,6.4,44.9,3.3,16.8,0,"Fibre","SmartCampus",""]
["Chatenay Malabry",604,100,100,12,739.9,831.5,700.4,783.3,0,"Fibre","PlanetCampus",""]
["Clichy",158,100,100,2,96.7,141.1,75.099999999999994,113.3,0,"Fibre","SmartCampus",""]
["Dragueur",109,100,100,4,69,91.3,46.9,76.7,0,"Fibre","PlanetCampus",""]
["Emilie du Chatelet",200,99.67,99.21,4,132.4,150.30000000000001,122.5,138.19999999999999,0,"Fibre","PlanetCampus","Le 09/06/21 / responsabilité SmartCampus / Site injoignable / durée  : 3.0 heure(s) : Site injoignable\n                          Diagnostic : aucun équipement n'est joignable sur le site\n                          Périmètre de l'incident : l'ensemble du site.\n                          Impact de l'incident : coupure du service\n                          Le site a-t-il été informé? non\n\n                          Alerte Kiwi \"#21449001\" ouverte le 09/06/2021 à 12:18\n                          \n \nRésultat : Le service est rétabli sur le site Emilie du Chatelet\n                          suite à la prise en charge de l'incident par nos équipes.\n\n\nLe 09/06/21 / responsabilité SmartCampus / Site injoignable / durée  : 2.0 heure(s) : Site injoignable / service Wifirst totalement indisponible\n\nIncident général SFR dans le département 91 \nRésultat : IG SFR , résolu"]
["Fleming",732,99.67,99.09,2,421,571.6,373.8,458.6,0,"Fibre","PlanetCampus","Le 09/06/21 / responsabilité SmartCampus / Site injoignable / durée  : 3.0 heure(s) : Site injoignable\n                          Diagnostic : aucun équipement n'est joignable sur le site\n                          Périmètre de l'incident : l'ensemble du site.\n                          Impact de l'incident : coupure du service\n                          Le site a-t-il été informé? non\n\n                          Alerte Kiwi \"#21449003\" ouverte le 09/06/2021 à 12:18\n                          \n \nRésultat : Le service est rétabli sur le site Fleming\n                          suite à la prise en charge de l'incident par nos équipes.\n\n\nLe 09/06/21 / responsabilité SmartCampus / Site injoignable / durée  : 2.0 heure(s) : Site injoignable / service Wifirst totalement indisponible\n\nIncident général SFR dans le département 91 \nRésultat : IG SFR , résolu\n\nLe 30/06/21 / responsabilité SmartCampus / Site injoignable / durée  : 0.0 heure(s) : Site injoignable\n                          Diagnostic : aucun équipement n'est joignable sur le site\n                          Périmètre de l'incident : l'ensemble du site.\n                          Impact de l'incident : coupure du service\n                          Le site a-t-il été informé? non\n\n                          Alerte Kiwi \"#21450031\" ouverte le 30/06/2021 à 13:40\n                          \n \nRésultat : Le service est rétabli sur le site Fleming\n                          suite à la prise en charge de l'incident par nos équipes.\n"]
["Flora Tristan Evry",319,100,100,4,102.4,169,48.2,118.8,0,"Fibre","PlanetCampus",""]
["Fontenay St Sauveurs",207,100,100,14,91.7,138.9,57.3,102,0,"Fibre","PlanetCampus",""]
["Jacqueline Auriol",165,100,100,2,66.900000000000006,102.8,39.299999999999997,77.099999999999994,0,"Fibre","SmartCampus",""]
["Jacqueline de Romilly",49,100,100,2,59.1,77.900000000000006,54.4,69.2,0,"Fibre","SmartCampus",""]
["Jean Zay Antony",316,100,100,2,717.4,817.3,690.7,744.5,0,"Fibre","PlanetCampus",""]
["L'Echiquier Cergy BAT A",225,100,100,1,75.7,129.30000000000001,45.4,92,0,"Fibre","PlanetCampus",""]
["L'ile Bâtiment Equerre",302,99.67,99.21,3,156.6,223.1,129.9,181.4,0,"Fibre","PlanetCampus","Le 09/06/21 / responsabilité SmartCampus / Site injoignable / durée  : 3.0 heure(s) : Site injoignable\n                          Diagnostic : aucun équipement n'est joignable sur le site\n                          Périmètre de l'incident : l'ensemble du site.\n                          Impact de l'incident : coupure du service\n                          Le site a-t-il été informé? non\n\n                          Alerte Kiwi \"#21449006\" ouverte le 09/06/2021 à 12:20\n                          \n \nRésultat : Le service est rétabli sur le site L'ile\n                          suite à la prise en charge de l'incident par nos équipes.\n\n\nLe 09/06/21 / responsabilité SmartCampus / Site injoignable / durée  : 2.0 heure(s) : Site injoignable / service Wifirst totalement indisponible\n\nIncident général SFR dans le département 91 \nRésultat : IG SFR , résolu"]
["La Croix Saint Sylvere",200,100,100,2,498.5,541.29999999999995,452.5,509.1,0,"Fibre","PlanetCampus",""]
["La Fresque",60,100,100,3,50.2,64.5,42.2,58.5,0,"Fibre","SmartCampus",""]
["Le Bosquet",159,100,100,1,75.400000000000006,115.5,61.2,93.3,0,"Fibre","SmartCampus",""]
["Les Aunettes",173,100,100,3,147.5,165.6,141.9,154.30000000000001,0,"Fibre","SmartCampus",""]
["les chateaux",130,100,100,2,26.5,62.1,22.2,38.6,0,"Fibre","PlanetCampus",""]
["Les Chenes d'Or",99,100,100,3,37.4,66.3,20.3,45.4,0,"Fibre","PlanetCampus",""]
["Marguerite Yourcenar Bâtiment 1",300,100,100,4,175.8,228.5,152.30000000000001,192.4,0,"Fibre","PlanetCampus",""]
["Nanterre - Bâtiment A & B",283,100,100,1,80.8,160.19999999999999,43.6,105.4,0,"Fibre","PlanetCampus",""]
["Nanterre - Bâtiment C & D",283,100,100,1,67.400000000000006,153,55.8,99.8,0,"Fibre","PlanetCampus",""]
["Nanterre - Bâtiment E & F",283,100,100,1,89.2,153.6,60.9,108.7,0,"Fibre","PlanetCampus",""]
["Nanterre - Bâtiment G & H",283,100,100,1,67,145.4,17.3,86.9,0,"Fibre","PlanetCampus",""]
["Neuville",180,100,100,1,96.4,147.30000000000001,79.400000000000006,116.9,0,"Fibre","PlanetCampus",""]
["NF1 - NF1BIS",507,99.67,99.21,2,175.1,267.60000000000002,105.3,191.1,0,"Fibre","SmartCampus","Le 09/06/21 / responsabilité SmartCampus / Site injoignable / durée  : 3.0 heure(s) : Site injoignable\n                          Diagnostic : aucun équipement n'est joignable sur le site\n                          Périmètre de l'incident : l'ensemble du site.\n                          Impact de l'incident : coupure du service\n                          Le site a-t-il été informé? non\n\n                          Alerte Kiwi \"#21449004\" ouverte le 09/06/2021 à 12:20\n                          \n \nRésultat : Le service est rétabli sur le site Georges Sand (ex- NF1-NF1BIS)\n                          suite à la prise en charge de l'incident par nos équipes.\n\n\nLe 09/06/21 / responsabilité SmartCampus / Site injoignable / durée  : 2.0 heure(s) : Site injoignable / service Wifirst totalement indisponible\n\nIncident général SFR dans le département 91 \nRésultat : IG SFR , résolu"]
["Olympe de gouges (CROUS VERSAILLES)",274,100,100,2,76.7,145.69999999999999,23.7,92.5,0,"Fibre","PlanetCampus",""]
["Paris Habitat",263,99.67,99.21,5,33.1,124,10.199999999999999,57.2,0,"Fibre","PlanetCampus","Le 09/06/21 / responsabilité SmartCampus / Site injoignable / durée  : 3.0 heure(s) : Site injoignable\n                          Diagnostic : aucun équipement n'est joignable sur le site\n                          Périmètre de l'incident : l'ensemble du site.\n                          Impact de l'incident : coupure du service\n                          Le site a-t-il été informé? non\n\n                          Alerte Kiwi \"#21449002\" ouverte le 09/06/2021 à 12:18\n                          \n \nRésultat : Le service est rétabli sur le site Paris Habitat\n                          suite à la prise en charge de l'incident par nos équipes.\n\n\nLe 09/06/21 / responsabilité SmartCampus / Site injoignable / durée  : 2.0 heure(s) : Site injoignable / service Wifirst totalement indisponible\n\nIncident général SFR dans le département 91 \nRésultat : IG SFR , résolu"]
["Rene Cassin",161,100,100,4,74.099999999999994,109.7,53.1,84.6,0,"Fibre","SmartCampus",""]
["Résidence Bagneux",102,100,100,2,20.7,59.9,4.0999999999999996,35.700000000000003,0,"Fibre","PlanetCampus",""]
["Residence des Linandes bat 4 à 8",171,100,100,2,111.4,149.6,90.7,124.8,0,"Fibre","SmartCampus",""]
["Résidence Jean-Baptiste Lamarck",110,100,100,2,133.1,162.19999999999999,126.5,142.19999999999999,0,"Fibre","SmartCampus",""]
["Résidence Louise Bourgeois",110,99.67,99.67,3,51.2,82.2,28.9,59.4,0,"Fibre","SmartCampus","Le 09/06/21 / responsabilité SmartCampus / Site injoignable / durée  : 2.0 heure(s) : Site injoignable / service Wifirst totalement indisponible\n\nIncident général SFR dans le département 91 \nRésultat : IG SFR , résolu"]
["Résidence Simone Weil",155,100,100,4,39.5,68.599999999999994,26.7,48.4,0,"Fibre","SmartCampus",""]
["Résidences des Linandes - Bat principal",61,100,100,38,13.2,14.7,12.4,14.1,0,"ADSL","SmartCampus",""]
["Saint-Cloud",166,100,100,1,90.1,139.9,55.5,104.1,0,"Fibre","SmartCampus",""]
["Vauban",115,100,99.97,3,136.30000000000001,162.4,126.7,147.1,0,"Fibre","SmartCampus","Le 30/06/21 / responsabilité SmartCampus / Site injoignable / durée  : 1.0 heure(s) : Site injoignable\n                          Diagnostic : aucun équipement n'est joignable sur le site\n                          Périmètre de l'incident : l'ensemble du site.\n                          Impact de l'incident : coupure du service\n                          Le site a-t-il été informé? non\n\n                          Alerte Kiwi \"#21450046\" ouverte le 30/06/2021 à 21:48\n                          \n \nRésultat : Le service est rétabli sur le site Vauban\n                          suite à la prise en charge de l'incident par nos équipes.\n"]